{"text_format":"1","workbook":"xlsx","n_sheets":8,"sheets":["シート構成","入力シート","★設計評価","★建設評価","☆複数建築主","I","DATA","項目リスト"],"not_rendered":{"charts":0,"images":0,"macros":1,"external_links":0,"defined_names":36,"comments":0,"pivot_tables":0},"unopened":[],"bounds":{"document_bytes":16777216,"sheet_cells":100000,"rows_first":2000,"rows_last":500,"rows_between":2000,"halvings":0,"cell_chars":16384,"cell_head_chars":4096},"cells_cut":0,"cells_raw":0,"read":"whole","date_system":"1900"}

{"sheet":"シート構成","index":0,"n_rows":50,"n_cols":26,"rows_kept":50,"cut":false,"hidden":false,"merged":[[7,2,7,11],[20,12,20,17],[21,12,21,17],[20,18,20,45],[21,18,21,45],[19,12,19,24],[19,25,19,32]]}
["申請書作成シートについて",null,null,null,null,null,null,null,null,null,null,null,null,"2021/05/10 Ver.3.5"]
[]
["【住宅性能評価申請書の作成】（一戸建て住宅用）"]
[null,"◆入力"]
[null,null,"入力シートに入力した内容が印刷用シートに反映されます。"]
[null,null,"当センターの「確認申請作成シート」で、確認申請書を作成されている場合は、その入力データを取り込んで、一部の入力を省略することが出来ます。"]
[]
[null,null,"「入力シート」へ"]
[]
[null,null,"［入力について］"]
[null,null,"網掛けしたセル部分が申請書に記載される部分です。網掛けの色に応じて入力してください。"]
[null,null,null,null,null,"この色のセルには直接入力またはチェックボックスにチェックを入れてください。"]
[null,null,null,null,null,"この色のセルはリストから該当する内容を選択してください。"]
[null,null,null,null,null,"この色のセルはリストから該当する内容を選択、または直接入力してください。"]
[null,null,null,null,null,"この色のセルは入力しないでください。"]
[null,null,null,null,null,"網掛け無し（枠線のみ）のセルは自動計算部分または定型部分となりますので入力できません。"]
[null,null,null,null,null,"網掛けのセルは確認申請ファイルからデータを取り込んているので、入力不要です。確認申請ファイルから内容を変更したい場合は、そのまま入力してください。"]
[]
[]
[null,null,null,null,null,null,null,null,null,null,null,null,"取り込み可能 確認申請ファイルのバージョン",null,null,null,null,null,null,null,null,null,null,null,null,"2021/01/01 Ver.13.0"]
[null,null,null,null,null,null,null,null,null,null,null,null,"取り込みファイル名"]
[null,null,null,null,null,null,null,null,null,null,null,null,"取り込み日時"]
[]
[]
[null,"◆印刷"]
[null,null,"印刷は下の印刷プレビューボタンを押して、プレビュー画面から行ってください。"]
[null,null,"追加の建築主がいる場合は、複数建築主の印刷も忘れないようにしてください。"]
[]
[]
[]
[]
[]
[]
[]
[]
[]
[]
[]
["【注意事項】"]
[null,"○","各シートにシート間を移動するためのリンクが設定されています。"]
[null,null,"シート名を変更するとそのリンクが正常に作動しませんので、シート名の変更はしないでください。"]
[null,"○","各シートには必要箇所に保護（ロック）をかけています。"]
[null,null,"（このExcelはマクロを含んでいます。編集した場合にマクロが正常に作動しない場合がありますのでご注意ください。）"]
[null,"○","共同住宅に関しては、【No.10-3-2】共同住宅等（併用住宅）「設計住宅性能評価申請書」をご使用ください。"]
[]
["【参考】"]
[null,"第二面のデータについては、編集することが少なく数パターンに限定されると想定されます。"]
[null,"本シートにあらかじめ第二面のデータを入力したファイルを作成していただき、それを雛型として申請書を作成していただくと次回以降の入力手間が省けます。"]
[null,"数パターンある場合はファイルをコピーしてテンプレートを複数用意しておくと便利です。"]
[null,"（ファイル名は自由に変更していただいてかまいません。）"]

{"sheet":"入力シート","index":1,"n_rows":372,"n_cols":39,"rows_kept":372,"cut":false,"hidden":false,"merged":[[7,9,7,10],[7,12,7,14],[8,9,8,10],[8,11,8,16],[8,17,8,19],[166,8,166,10],[172,12,172,14],[151,1,154,26],[11,1,11,6],[12,1,12,6],[11,8,11,11],[12,8,12,23],[20,12,20,13],[23,12,23,13],[24,12,24,13],[20,21,20,22],[23,21,23,22],[66,6,66,7],[67,6,67,7],[84,8,84,26],[85,8,85,26],[86,8,86,26],[87,8,87,11],[104,8,104,11],[183,17,183,19],[184,17,184,19],[185,17,185,19],[186,17,186,19],[187,17,187,19],[188,17,188,19],[340,17,340,19],[178,0,178,7],[178,8,178,26],[261,22,261,25],[263,23,263,26],[247,8,247,26],[179,8,179,26],[213,8,213,26],[214,8,214,11],[275,8,275,26],[276,8,276,14],[279,8,279,18],[280,13,280,16],[280,19,280,22],[271,8,271,18],[272,9,272,10],[230,8,230,26],[231,8,231,11],[174,15,174,16],[174,8,174,14],[174,17,174,23],[143,8,143,26],[121,8,121,11],[122,8,122,26],[123,8,123,14],[127,8,127,26],[128,8,128,26],[138,8,138,11],[136,9,136,10],[172,8,172,10],[172,15,172,17],[136,16,136,18],[134,9,134,10],[113,8,113,11],[114,8,114,26],[115,8,115,14],[172,5,172,7],[160,8,160,11],[165,8,165,10],[21,21,21,22],[22,21,22,22],[21,12,21,13],[22,12,22,13],[106,8,106,14],[112,8,112,26],[131,8,131,14],[145,8,145,26],[146,8,146,26],[140,8,140,14],[158,8,158,11],[136,23,136,26],[135,8,135,18],[139,8,139,26],[137,8,137,26],[162,8,162,11],[169,8,169,10],[170,8,170,10],[71,0,71,4],[67,0,67,4],[65,0,65,4],[66,0,66,4],[52,0,52,4],[50,0,50,4],[45,0,45,4],[46,0,46,4],[31,6,31,22],[62,6,62,7],[63,6,63,7],[36,4,37,32],[68,6,68,7],[70,6,70,7],[40,6,40,7],[41,6,41,7],[45,6,45,7],[46,6,46,7],[50,6,50,7],[65,6,65,7],[0,25,0,31],[2,11,2,18],[2,19,2,26],[2,1,2,10],[134,15,134,18],[134,22,134,25],[44,6,44,7],[92,15,92,18],[59,8,59,33],[54,6,54,21],[58,0,58,4],[73,6,73,7],[71,6,71,7],[42,6,42,7],[47,6,47,7],[48,6,48,7],[49,6,49,7],[52,6,52,7],[56,6,56,7],[57,6,57,7],[58,6,58,7],[24,21,24,22],[129,8,129,11],[130,8,130,26],[232,8,232,26],[262,8,262,18],[263,9,263,10],[263,16,263,18],[253,8,253,26],[254,8,254,26],[255,8,255,26],[256,8,256,11],[257,8,257,26],[258,8,258,14],[261,9,261,10],[261,15,261,18],[239,8,239,26],[240,8,240,11],[241,8,241,26],[215,8,215,26],[126,8,126,26],[88,8,88,26],[89,8,89,14],[101,8,101,26],[92,22,92,25],[93,8,93,18],[102,8,102,26],[103,8,103,26],[94,9,94,10],[94,16,94,18],[94,23,94,26],[96,8,96,11],[97,8,97,26],[98,8,98,14],[92,9,92,10],[95,8,95,26],[118,8,118,26],[119,8,119,26],[120,8,120,26],[110,8,110,26],[111,8,111,26],[182,17,182,19],[105,8,105,26],[199,14,199,20],[198,14,198,20],[200,14,200,23],[211,8,211,26],[197,14,197,24],[191,8,191,14],[212,8,212,26],[308,17,308,19],[325,22,325,27],[272,16,272,18],[272,23,272,26],[270,9,270,10],[270,15,270,18],[283,8,283,26],[284,8,284,14],[282,8,282,11],[270,22,270,25],[274,8,274,11],[248,8,248,11],[249,8,249,26],[250,8,250,14],[233,8,233,14],[237,8,237,26],[238,8,238,26],[314,8,314,26],[287,8,287,26],[288,8,288,26],[293,1,296,26],[326,13,326,15],[327,13,327,15],[328,13,328,15],[329,13,329,15],[308,9,308,10],[323,5,323,7],[323,8,323,10],[323,12,323,14],[323,15,323,17],[224,8,224,26],[225,8,225,14],[216,8,216,14],[219,9,219,10],[219,15,219,18],[219,22,219,25],[220,8,220,18],[222,8,222,26],[221,9,221,10],[221,16,221,18],[221,23,221,26],[369,8,369,11],[342,8,342,26],[370,8,370,26],[371,8,371,14],[358,8,358,18],[367,8,367,18],[356,8,356,18],[359,8,359,18],[365,8,365,18],[368,8,368,18],[360,8,360,11],[361,8,361,26],[362,8,362,14],[351,8,351,14],[348,8,348,18],[347,8,347,18],[345,8,345,18],[346,8,346,18],[349,8,349,14],[350,8,350,14],[335,8,335,26],[336,8,336,26],[341,8,341,26],[331,22,331,27],[332,22,332,27],[326,22,326,27],[327,22,327,27],[328,22,328,27],[329,22,329,27],[330,22,330,27],[330,13,330,15],[331,13,331,15],[332,13,332,15],[79,10,79,12],[192,10,192,12],[193,10,193,12],[206,10,206,12],[302,10,302,12],[311,10,311,12],[317,10,317,12],[320,10,320,12],[325,13,325,15],[264,8,264,26],[273,8,273,26],[281,8,281,26],[265,8,265,11],[266,8,266,26],[267,8,267,14],[299,8,299,26],[308,11,308,16],[305,8,305,26],[242,8,242,14],[245,8,245,26],[246,8,246,26],[228,8,228,26],[229,8,229,26],[223,8,223,11]]}
["入力シート（住宅性能評価）",null,null,null,null,null,null,null,null,null,null,null,null,null,null,null,null,null,null,null,null,null,null,null,null,"シートの構成に戻る"]
[]
[null,"設計評価・建設評価 共通項目",null,null,null,null,null,null,null,null,null,"設計住宅性能評価",null,null,null,null,null,null,null,"建設住宅性能評価"]
[]
["◆","設計評価・建設評価 共通項目"]
[]
["【確認申請】"]
[null,"【確認申請　受付番号】",null,null,null,null,null,null,"第",null,null,"－",null,null,null,"号",null,null,null,null,null,null,null,null,null,null,null,null,null,null,null,null,null,null,null,{"$f":"LEN(J8)+LEN(M8)","v":0},{"$f":"I8&J8&L8&M8&P8","v":"第－号"}]
[null,"【確認済証番号】",null,null,null,null,null,null,"第",null,null,null,null,null,null,null,null,null,null,null,"号",null,null,null,null,null,null,null,null,null,null,null,null,null,null,{"$f":"LEN(J9)+LEN(R9)","v":0},{"$f":"I9&J9&L9&R9&U9","v":"第号"}]
[]
["【地域情報】"]
[null,"【都道府県名】",null,null,null,null,null,null,null,null,null,null,null,null,null,null,null,null,null,null,null,null,null,null,null,null,null,null,null,null,null,null,null,null,null,{"$f":"SUMIF(DATA!F4:F347,I12,DATA!A4:A347)","v":0}]
[null,"【市町村名】",null,null,null,null,null,null,null,null,null,null,null,null,null,null,null,null,null,null,null,null,null,null,null,null,null,null,null,null,null,null,null,null,null,{"$f":"SUMIF(DATA!F4:F347,I13,DATA!A4:A347)","v":0}]
[]
["【都市計画区域及び準都市計画区域の内外の別等】"]
[null,null,"都市計画区域内（",null,null,null,null,null,null,"市街化区域",null,null,null,null,"市街化調整区域",null,null,null,null,null,"区域区分非設定）",null,null,null,null,null,null,null,{"$f":"IF(OR(I!AD237,I!AE237,I!AF237,I!AG237,I!AD238,I!AE238),\"確認申請書　第三面 より\",0)","v":0},null,null,null,null,null,null,{"$f":"VLOOKUP($AJ$13,DATA!$A$4:$AV$347,48,FALSE)","v":{"$error":"#N/A"}},{"$f":"IF(AJ16=0,0,CHOOSE(AJ16,\"A\",\"B\",\"C\",\"D\"))","v":{"$error":"#N/A"}},{"$f":"IF(ISNUMBER(AJ16),IF(OR(I!AD237,B16=\"■\"),0,AK16&\"地域\"),AJ16&\"地域\")","v":{"$error":"#N/A"}},{"$f":"IF(AL16=0,\"\",AL16)","v":{"$error":"#N/A"}}]
[null,null,"準都市計画区域内"]
[null,null,"都市計画区域及び準都市計画区域外"]
[]
[null,null,null,null,null,null,null,null,null,null,null,null,null,null,null,null,null,null,null,null,null,"参考値"]
[null,"【断熱地域区分】",null,null,null,null,null,null,null,null,null,null,null,null,"地域",null,null,null,null,null,null,{"$f":"VLOOKUP($AJ$13,DATA!$A$4:$AV$347,7,FALSE)","v":{"$error":"#N/A"}},null,"地域",null,null,null,null,null,null,null,null,null,null,null,{"$f":"IF(M21=V21,0,1)","v":{"$error":"#N/A"}}]
[null,"【年間日射量地域区分】",null,null,null,null,null,null,null,null,null,null,null,null,"区分",null,null,null,null,null,null,{"$f":"VLOOKUP($AJ$13,DATA!$A$4:$AV$347,8,FALSE)","v":{"$error":"#N/A"}},null,"区分",null,null,null,null,null,null,null,null,null,null,null,{"$f":"IF(M22=V22,0,1)","v":{"$error":"#N/A"}}]
[null,"【暖房期日射量地域区分】",null,null,null,null,null,null,null,null,null,null,null,null,"区分",null,null,null,null,null,null,{"$f":"VLOOKUP($AJ$13,DATA!$A$4:$AV$347,9,FALSE)","v":{"$error":"#N/A"}},null,"区分",null,null,null,null,null,null,null,null,null,null,null,{"$f":"IF(M23=V23,0,1)","v":{"$error":"#N/A"}}]
[null,"【基準風速】",null,null,null,null,null,null,null,null,null,null,null,null,"m/s",null,null,null,null,null,null,{"$f":"IF(VLOOKUP($AJ$13,DATA!$A$4:$AV$347,10,FALSE)=\"\",30,VLOOKUP($AJ$13,DATA!$A$4:$AV$347,10,FALSE))","v":{"$error":"#N/A"}},null,"m/s",null,null,null,null,null,null,null,null,null,null,null,{"$f":"IF(M24=V24,0,1)","v":{"$error":"#N/A"}}]
[null,"【垂直積雪量】",null,null,null,null,null,null,null,null,null,null,null,null,"cm",null,null,null,null,null,null,{"$f":"VLOOKUP($AJ$13,DATA!$A$4:$AV$347,11,FALSE)","v":{"$error":"#N/A"}},null,"cm",null,null,{"$f":"IF(VLOOKUP($AJ$13,DATA!$A$4:$AV$347,12,FALSE)=\"○\",\"多雪地域\",\"\")","v":{"$error":"#N/A"}},null,null,null,null,null,null,null,null,{"$f":"IF(M25=V25,0,1)","v":{"$error":"#N/A"}}]
[]
[]
["【建て方】",null,null,null,null,null,null,null,"■","一戸建ての住宅",null,null,null,null,null,null,"□","共同住宅等"]
[]
["【住宅性能評価を希望する性能表示事項】"]
[null,"【地盤の液状化に関する情報提供】"]
[null,null,null,null,null,"●","地盤の液状化に関する情報提供を行わない"]
[]
[null,"【住宅性能評価を希望する性能表示事項】"]
[null,null,null,"・","選択を希望する性能表示事項にチェックしてください。"]
[null,null,null,"・","「5-1」又は「5-2」、もしくは「5-1」と「5-2」両方の選択が必要となります。"]
[null,null,null,"・","建設住宅性能評価は、設計住宅性能評価を受けた性能表示事項以外は選択することができません。（6-3を除く）"]
[]
[]
[null,null,null,"１．構造の安定に関すること"]
[null,null,null,null,null,"□","1-2",null,"耐震等級（構造躯体の損傷防止）"]
[null,null,null,null,null,"□","1-4",null,"耐風等級（構造躯体の倒壊等防止及び損傷防止）"]
[null,null,null,null,null,"□","1-5",null,"耐積雪等級（構造躯体の倒壊等防止及び損傷防止）"]
[null,null,null,"２．火災時の安全に関すること"]
[null,null,null,null,null,"□","2-1",null,"感知警報装置設置等級（自住戸火災時） "]
["※共同のみの",null,null,null,null,"□","2-2",null,"感知警報装置設置等級（他住戸等火災時） "]
["※共同のみの",null,null,null,null,"□","2-3",null,"避難安全対策（他住戸等火災時・共用廊下）"]
[null,null,null,null,null,"□","2-4",null,"脱出対策（火災時）"]
[null,null,null,null,null,"□","2-5",null,"耐火等級（延焼のおそれのある部分(開口部)）"]
[null,null,null,null,null,"□","2-6",null,"耐火等級（延焼のおそれのある部分(開口部以外)）"]
["※共同のみの",null,null,null,null,"□","2-7",null,"耐火等級（界壁及び界床）"]
[null,null,null,"４．維持管理・更新への配慮に関すること"]
["※共同のみの",null,null,null,null,"□","4-4",null,"更新対策（住戸専用部）"]
[null,null,null,"５．温熱環境・エネルギー消費量に関すること"]
[null,null,null,null,null,"●","5-1 断熱性能等級"]
[null,null,null,"６．空気環境に関すること"]
[null,null,null,null,null,"□","6-1",null,"ホルムアルデヒド対策（内装及び天井裏）"]
[null,null,null,null,null,"□","6-2",null,"換気対策（居室の換気対策）（局所換気対策）"]
["※建設評価のみの",null,null,null,null,"□","6-3",null,"室内空気中の化学物質の濃度等"]
[null,null,null,null,null,null,null,null,"測定が必要である特定測定物質ホルムアルデヒド、ホルムアルデヒド以外の特定測定物質の選択"]
[null,null,null,null,null,null,null,null,"□","トルエン",null,null,null,"□","キシレン",null,null,null,"□","エチルベンゼン",null,null,null,null,"□","スチレン"]
[null,null,null,"７．光・視環境に関すること"]
[null,null,null,null,null,"□","7-1",null,"単純開口率"]
[null,null,null,null,null,"□","7-2",null,"方位別開口比"]
[null,null,null,"８．音環境に関すること"]
["※共同のみの",null,null,null,null,"□","8-1",null,"重量床衝撃音対策"]
["※共同のみの",null,null,null,null,"□","8-2",null,"軽量床衝撃音対策"]
["※共同のみの",null,null,null,null,"□","8-3",null,"透過損失等級（界壁）"]
[null,null,null,null,null,"□","8-4",null,"透過損失等級（外壁開口部）"]
[null,null,null,"９．高齢者等への配慮に関すること"]
[null,null,null,null,null,"□","9-1",null,"高齢者等配慮対策等級（専用部分）"]
["※共同のみの",null,null,null,null,"□","9-2",null,"高齢者等配慮対策等級（共用部分）"]
[null,null,null,"10．防犯に関すること"]
[null,null,null,null,null,"□","10-1",null,"開口部の侵入防止対策"]
[]
[]
["◆","設計住宅性能評価"]
["第一面"]
[]
["【申請日】",null,null,null,null,null,null,null,"西暦",null,null,null,null,"年",null,"月",null,"日"]
[]
["第二面"]
[]
["【１．申請者】"]
[null,"【フリガナ】",null,null,null,null,null,null,null,null,null,null,null,null,null,null,null,null,null,null,null,null,null,null,null,null,null,null,{"$f":"IF(★設計評価!J82=0,0,\"【３．建築主】より\")","v":0}]
[null,"【氏名又は名称】"]
[]
[null,"【郵便番号】"]
[null,"【住所】"]
[null,"【電話番号】"]
[]
["【２．代理者】"]
[null,"【資格】",null,null,null,null,null,null,"（",null,null,"）建築士",null,null,"（",null,null,null,null,"）登録第",null,null,null,null,null,null,"号",null,{"$f":"IF(I!I31=\"\",0,\"確認申請書 第二面 より\")","v":0}]
[null,"【氏名】"]
[null,"【建築士事務所名】",null,null,null,null,null,null,"（",null,null,"）建築士事務所（",null,null,null,null,null,null,null,"）知事登録第",null,null,null,null,null,null,null,"号"]
[]
[null,"【郵便番号】"]
[null,"【所在地】"]
[null,"【電話番号】"]
[]
["【３．建築主】"]
[null,"【フリガナ】",null,null,null,null,null,null,null,null,null,null,null,null,null,null,null,null,null,null,null,null,null,null,null,null,null,null,{"$f":"IF(I!I23=\"\",0,\"確認申請書 第二面 より\")","v":0}]
[null,"【氏名又は名称】"]
[]
[null,"【郵便番号】"]
[null,"【住所】"]
[null,"【電話番号】"]
[]
["【複数建築主】"]
[null,"【建築主２】",null,null,null,null,null,null,"[複数建築主]を印刷してください。"]
[null,null,"【フリガナ】",null,null,null,null,null,null,null,null,null,null,null,null,null,null,null,null,null,null,null,null,null,null,null,null,null,{"$f":"IF(I!I203=\"\",0,\"確認申請書 第二面 より\")","v":0}]
[null,null,"【氏名又は名称】"]
[]
[null,null,"【郵便番号】"]
[null,null,"【住所】"]
[null,null,"【電話番号】"]
[]
[null,"【建築主３】",null,null,null,null,null,null,"[複数建築主]を印刷してください。"]
[null,null,"【フリガナ】",null,null,null,null,null,null,null,null,null,null,null,null,null,null,null,null,null,null,null,null,null,null,null,null,null,{"$f":"IF(I!I211=\"\",0,\"確認申請書 第二面 より\")","v":0}]
[null,null,"【氏名又は名称】"]
[]
[null,null,"【郵便番号】"]
[null,null,"【住所】"]
[null,null,"【電話番号】"]
[]
[null,"【建築主４】",null,null,null,null,null,null,"[複数建築主]を印刷してください。"]
[null,null,"【フリガナ】",null,null,null,null,null,null,null,null,null,null,null,null,null,null,null,null,null,null,null,null,null,null,null,null,null,{"$f":"IF(I!I219=\"\",0,\"確認申請書 第二面 より\")","v":0}]
[null,null,"【氏名又は名称】"]
[]
[null,null,"【郵便番号】"]
[null,null,"【住所】"]
[null,null,"【電話番号】"]
[]
["【４．設計者】"]
[null,"【資格】",null,null,null,null,null,null,"（",null,null,"）建築士",null,null,"（",null,null,null,null,"）登録第",null,null,null,null,null,null,"号",null,{"$f":"IF(I!J41=\"\",0,\"確認申請書 第二面 より\")","v":0}]
[null,"【氏名】"]
[null,"【建築士事務所名】",null,null,null,null,null,null,"（",null,null,"）建築士事務所（",null,null,null,null,null,null,null,"）知事登録第",null,null,null,null,null,null,null,"号"]
[]
[null,"【郵便番号】"]
[null,"【所在地】"]
[null,"【電話番号】"]
[]
["【６．備考】"]
[null,"【住宅の名称】"]
[]
[null,"【備考】"]
[]
[]
["第三面"]
[]
["【１．地名地番】",null,null,null,null,null,null,null,null,null,"改行は、[alt]+[Enter]"]
[null,null,null,null,null,null,null,null,null,null,null,null,null,null,null,null,null,null,null,null,null,null,null,null,null,null,null,null,{"$f":"IF(I!B228=\"\",0,\"確認申請書 第三面 より\")","v":0}]
[]
[]
[]
[]
["【３．防火地域】",null,null,null,null,null,null,null,null,"防火地域",null,null,null,null,null,"準防火地域",null,null,null,null,null,null,"指定なし",null,null,null,null,null,{"$f":"IF(OR(I!AD241,I!AE241,I!AF241),\"確認申請書　第三面 より\",0)","v":0}]
[]
["【４．敷地面積】",null,null,null,null,null,null,null,null,null,null,null,null,null,null,null,null,null,null,null,null,null,null,null,null,null,null,null,{"$f":"IF(I!K259=\"\",0,\"確認申請書　第三面 より\")","v":0}]
[]
["【６．建築面積】",null,null,null,null,null,null,null,null,null,null,null,null,null,null,null,null,null,null,null,null,null,null,null,null,null,null,null,{"$f":"IF(I!W273=\"\",0,\"確認申請書　第三面 より\")","v":0}]
[]
["【７．延べ面積】",null,null,null,null,null,null,null,null,null,null,null,null,null,null,null,null,null,null,null,null,null,null,null,null,null,null,null,{"$f":"IF(I!W409=0,0,\"確認申請書　第四面 より\")","v":0}]
[]
["【８．住戸の数】"]
[null,"【建物全体】",null,null,null,null,null,null,null,null,null,"戸"]
[null,"【評価対象住戸】",null,null,null,null,null,null,null,null,null,"戸"]
[]
["【９．建築物の高さ等】"]
[null,"【最高の高さ】",null,null,null,null,null,null,null,null,null,"ｍ",null,null,null,null,null,null,null,null,null,null,null,null,null,null,null,null,{"$f":"IF(I!K381=0,0,\"確認申請書　第四面 より\")","v":0}]
[null,"【最高の軒の高さ】",null,null,null,null,null,null,null,null,null,"ｍ",null,null,null,null,null,null,null,null,null,null,null,null,null,null,null,null,{"$f":"IF(I!K382=0,0,\"確認申請書　第四面 より\")","v":0}]
[]
[null,"【階数】",null,null,null,"（地上）",null,null,null,null,null,"階","（地下）",null,null,null,null,null,"階",null,null,null,null,null,null,null,null,null,{"$f":"IF(I!K375+I!K376=0,0,\"確認申請書　第四面 より\")","v":0}]
[]
[null,"【構造】",null,null,null,null,null,null,null,null,null,null,null,null,null,"一部",null,null,null,null,null,null,null,null,null,null,null,null,{"$f":"IF(I!C357=\"\",0,\"確認申請書　第四面 より\")","v":0}]
[]
["【10．利用関係】",null,null,null,null,null,null,null,"□","持家",null,null,"□","貸家",null,null,"□","給与住宅",null,null,null,null,"□","分譲住宅"]
[]
["【11．その他必要な事項】"]
[]
[]
["【申請費確認項目】"]
[null,"【必須分野のうち１分野を除き等級１】"]
[null,"【5-2　一次エネルギー消費量等級の評価】"]
[null,"【国交省が認める面積を用いない外皮性能計算】"]
[null,"【センターが指定するQRコードを用いた申請】"]
[null,"【2種類以上の構造計算】"]
[null,"【限界体力計算等の特殊な方法の構造計算】"]
[null,"【液状化に関する情報提供】"]
[]
["【設計住宅性能評価書 入手希望日】"]
[]
[null,"【入手希望日】",null,null,null,null,null,null,"西暦",null,null,null,null,"年",null,"月",null,"日"]
[null,"【着工予定日】",null,null,null,null,null,null,"西暦",null,null,null,null,"年",null,"月",null,"日"]
[]
["【設計内容問い合わせ先】"]
[null,null,null,null,null,null,null,null,"□","設計者　　（ここにチェックしてもらった場合は、下記の記入は不要です。）"]
[null,null,null,null,null,null,null,null,"□","その他",null,null,"氏名"]
[null,null,null,null,null,null,null,null,null,null,null,null,"TEL"]
[null,null,null,null,null,null,null,null,null,null,null,null,"FAX"]
[null,null,null,null,null,null,null,null,null,null,null,null,"Email"]
[]
[]
["◆","建設住宅性能評価"]
["第一面"]
[]
["【申請日】",null,null,null,null,null,null,null,"西暦",null,null,null,null,"年",null,"月",null,"日"]
[]
["第二面"]
[]
["【１．申請者】"]
[null,"【フリガナ】",null,null,null,null,null,null,null,null,null,null,null,null,null,null,null,null,null,null,null,null,null,null,null,null,null,null,{"$f":"IF(★建設評価!J82=0,0,\"【３．建築主】より\")","v":0}]
[null,"【氏名又は名称】"]
[]
[null,"【郵便番号】"]
[null,"【住所】"]
[null,"【電話番号】"]
[null,null,null,null,null,null,null,null,null,null,null,null,null,null,null,null,null,null,null,null,null,null,null,null,null,null,null,null,null,null,null,null,null,null,null,null,1,2,3]
["【２．代理者】",null,null,null,null,null,null,null,null,null,null,null,null,null,null,null,null,null,null,null,null,null,null,null,null,null,null,null,null,null,null,null,null,null,null,null,"確認申請","設計評価","建設で入力"]
[null,"【資格】",null,null,null,null,null,null,"（",null,null,"）建築士",null,null,"（",null,null,null,null,"）登録第",null,null,null,null,null,null,"号",null,{"$f":"CHOOSE(AJ220,AK220,AL220,AM220)","v":0},null,null,null,null,null,null,{"$f":"IF(I221=\"\",IF(ISTEXT(AL220),2,IF(ISTEXT(AK220),1,3)),3)","v":3},{"$f":"AC93","v":0},{"$f":"IF(I94=\"\",0,\"設計評価 第二面 より\")","v":0},0]
[null,"【氏名】"]
[null,"【建築士事務所名】",null,null,null,null,null,null,"（",null,null,"）建築士事務所（",null,null,null,null,null,null,null,"）知事登録第",null,null,null,null,null,null,null,"号"]
[]
[null,"【郵便番号】"]
[null,"【所在地】"]
[null,"【電話番号】"]
[null,null,null,null,null,null,null,null,null,null,null,null,null,null,null,null,null,null,null,null,null,null,null,null,null,null,null,null,null,null,null,null,null,null,null,null,1,2,3]
["【３．建築主】",null,null,null,null,null,null,null,null,null,null,null,null,null,null,null,null,null,null,null,null,null,null,null,null,null,null,null,null,null,null,null,null,null,null,null,"確認申請","設計評価","建設で入力"]
[null,"【フリガナ】",null,null,null,null,null,null,null,null,null,null,null,null,null,null,null,null,null,null,null,null,null,null,null,null,null,null,{"$f":"CHOOSE(AJ229,AK229,AL229,AM229)","v":0},null,null,null,null,null,null,{"$f":"IF(I230=\"\",IF(ISTEXT(AL229),2,IF(ISTEXT(AK229),1,3)),3)","v":3},{"$f":"AC102","v":0},{"$f":"IF(I103=\"\",0,\"設計評価 第二面 より\")","v":0},0]
[null,"【氏名又は名称】"]
[]
[null,"【郵便番号】"]
[null,"【住所】"]
[null,"【電話番号】"]
[]
["【複数建築主】",null,null,null,null,null,null,null,null,null,null,null,null,null,null,null,null,null,null,null,null,null,null,null,null,null,null,null,null,null,null,null,null,null,null,null,1,2,3]
[null,"【建築主２】",null,null,null,null,null,null,"[複数建築主]を印刷してください。",null,null,null,null,null,null,null,null,null,null,null,null,null,null,null,null,null,null,null,null,null,null,null,null,null,null,null,"確認申請","設計評価","建設で入力"]
[null,null,"【フリガナ】",null,null,null,null,null,null,null,null,null,null,null,null,null,null,null,null,null,null,null,null,null,null,null,null,null,{"$f":"CHOOSE(AJ238,AK238,AL238,AM238)","v":0},null,null,null,null,null,null,{"$f":"IF(I239=\"\",IF(ISTEXT(AL238),2,IF(ISTEXT(AK238),1,3)),3)","v":3},{"$f":"AC111","v":0},{"$f":"IF(I112=\"\",0,\"設計評価 第二面 より\")","v":0},0]
[null,null,"【氏名又は名称】"]
[]
[null,null,"【郵便番号】"]
[null,null,"【住所】"]
[null,null,"【電話番号】"]
[null,null,null,null,null,null,null,null,null,null,null,null,null,null,null,null,null,null,null,null,null,null,null,null,null,null,null,null,null,null,null,null,null,null,null,null,1,2,3]
[null,"【建築主３】",null,null,null,null,null,null,"[複数建築主]を印刷してください。",null,null,null,null,null,null,null,null,null,null,null,null,null,null,null,null,null,null,null,null,null,null,null,null,null,null,null,"確認申請","設計評価","建設で入力"]
[null,null,"【フリガナ】",null,null,null,null,null,null,null,null,null,null,null,null,null,null,null,null,null,null,null,null,null,null,null,null,null,{"$f":"CHOOSE(AJ246,AK246,AL246,AM246)","v":0},null,null,null,null,null,null,{"$f":"IF(I247=\"\",IF(ISTEXT(AL246),2,IF(ISTEXT(AK246),1,3)),3)","v":3},{"$f":"AC119","v":0},{"$f":"IF(I120=\"\",0,\"設計評価 第二面 より\")","v":0},0]
[null,null,"【氏名又は名称】"]
[]
[null,null,"【郵便番号】"]
[null,null,"【住所】"]
[null,null,"【電話番号】"]
[null,null,null,null,null,null,null,null,null,null,null,null,null,null,null,null,null,null,null,null,null,null,null,null,null,null,null,null,null,null,null,null,null,null,null,null,1,2,3]
[null,"【建築主４】",null,null,null,null,null,null,"[複数建築主]を印刷してください。",null,null,null,null,null,null,null,null,null,null,null,null,null,null,null,null,null,null,null,null,null,null,null,null,null,null,null,"確認申請","設計評価","建設で入力"]
[null,null,"【フリガナ】",null,null,null,null,null,null,null,null,null,null,null,null,null,null,null,null,null,null,null,null,null,null,null,null,null,{"$f":"CHOOSE(AJ254,AK254,AL254,AM254)","v":0},null,null,null,null,null,null,{"$f":"IF(I255=\"\",IF(ISTEXT(AL254),2,IF(ISTEXT(AK254),1,3)),3)","v":3},{"$f":"AC127","v":0},{"$f":"IF(I128=\"\",0,\"設計評価 第二面 より\")","v":0},0]
[null,null,"【氏名又は名称】"]
[]
[null,null,"【郵便番号】"]
[null,null,"【住所】"]
[null,null,"【電話番号】"]
[null,null,null,null,null,null,null,null,null,null,null,null,null,null,null,null,null,null,null,null,null,null,null,null,null,null,null,null,null,null,null,null,null,null,null,null,1,2,3]
["【４．設計者】",null,null,null,null,null,null,null,null,null,null,null,null,null,null,null,null,null,null,null,null,null,null,null,null,null,null,null,null,null,null,null,null,null,null,null,"確認申請","設計評価","建設で入力"]
[null,"【資格】",null,null,null,null,null,null,"（",null,null,"）建築士",null,null,"（",null,null,null,null,"）登録第",null,null,null,null,null,null,"号",null,{"$f":"CHOOSE(AJ262,AK262,AL262,AM262)","v":0},null,null,null,null,null,null,{"$f":"IF(I263=\"\",IF(ISTEXT(AL262),2,IF(ISTEXT(AK262),1,3)),3)","v":3},{"$f":"AC135","v":0},{"$f":"IF(I136=\"\",0,\"設計評価 第二面 より\")","v":0},0]
[null,"【氏名】"]
[null,"【建築士事務所名】",null,null,null,null,null,null,"（",null,null,"）建築士事務所（",null,null,null,null,null,null,null,"）知事登録第",null,null,null,null,null,null,null,"号"]
[]
[null,"【郵便番号】"]
[null,"【所在地】"]
[null,"【電話番号】"]
[]
["【５．工事監理者】"]
[null,"【イ.資格】",null,null,null,null,null,null,"（",null,null,"）建築士",null,null,"（",null,null,null,null,"）登録第",null,null,null,null,null,null,"号",null,{"$f":"IF(I!I143=\"\",0,\"確認申請書 第二面 より\")","v":0}]
[null,"【ロ.氏名】"]
[null,"【ハ.建築士事務所名】",null,null,null,null,null,null,"（",null,null,"）建築士事務所（",null,null,null,null,null,null,null,"）知事登録第",null,null,null,null,null,null,null,"号"]
[]
[null,"【ニ.郵便番号】"]
[null,"【ホ.所在地】"]
[null,"【ヘ.電話番号】"]
[]
["【６．工事施工者】"]
[null,"【イ.氏名】",null,null,null,null,null,null,null,null,null,null,null,null,null,null,null,null,null,null,null,null,null,null,null,null,null,null,{"$f":"IF(I!I180=\"\",0,\"確認申請書 第二面 より\")","v":0}]
[null,"【ロ.営業所名】",null,null,null,null,null,null,"建設業の許可",null,null,null,"（",null,null,null,null,"）","第",null,null,null,null,"号"]
[]
[null,"【ハ.郵便番号】"]
[null,"【ニ.所在地】"]
[null,"【ホ.電話番号】"]
[]
["【８．備考】"]
[null,"【備考】"]
[]
[]
["第三面"]
[null,null,null,null,null,null,null,null,null,null,null,null,null,null,null,null,null,null,null,null,null,null,null,null,null,null,null,null,null,null,null,null,null,null,null,null,1,2,3]
["【１．地名地番】",null,null,null,null,null,null,null,null,null,"改行は、[alt]+[Enter]",null,null,null,null,null,null,null,null,null,null,null,null,null,null,null,null,null,null,null,null,null,null,null,null,null,"確認申請","設計評価","建設で入力"]
[null,null,null,null,null,null,null,null,null,null,null,null,null,null,null,null,null,null,null,null,null,null,null,null,null,null,null,null,{"$f":"CHOOSE(AJ294,AK294,AL294,AM294)","v":0},null,null,null,null,null,null,{"$f":"IF(B294=\"\",IF(ISTEXT(AL294),2,IF(ISTEXT(AK294),1,3)),3)","v":3},{"$f":"AC152","v":0},{"$f":"IF(I169=\"\",0,\"設計評価 第三面 より\")","v":0},0]
[]
[]
[]
[]
["【２．設計住宅性能評価書の交付番号】"]
[]
[]
["【３．設計住宅性能評価書交付年月日】"]
[null,null,null,null,null,null,null,null,"西暦",null,null,null,null,"年",null,"月",null,"日"]
[]
["【４．設計住宅性能評価書交付者】"]
[null,null,null,null,null,null,null,null,"一般財団法人 愛知県建築住宅センター 理事長"]
[]
["【５．確認済証番号】"]
[null,null,null,null,null,null,null,null,"第",null,null,null,null,null,null,null,null,null,null,null,"号",null,null,null,null,null,null,null,{"$f":"IF(AJ9=0,0,\"入力済み\")","v":0},null,null,null,null,null,null,null,{"$f":"I309&J309&L309&R309&U309","v":"第号"}]
[]
["【６．確認済証交付年月日】"]
[null,null,null,null,null,null,null,null,"西暦",null,null,null,null,"年",null,"月",null,"日"]
[]
["【７．確認済証交付者】"]
[null,null,null,null,null,null,null,null,"一般財団法人 愛知県建築住宅センター 理事長"]
[]
["【８．工事着手（予定）年月日】"]
[null,null,null,null,null,null,null,null,"西暦",null,null,null,null,"年",null,"月",null,"日"]
[]
["【９．工事完了予定年月日】"]
[null,null,null,null,null,null,null,null,"西暦",null,null,null,null,"年",null,"月",null,"日"]
[null,null,null,null,null,null,null,null,null,null,null,null,null,null,null,null,null,null,null,null,null,null,null,null,null,null,null,null,null,null,null,null,null,null,null,null,1,2,3]
["【10．検査対象工程工事終了予定年月日】",null,null,null,null,null,null,null,null,null,null,null,null,null,null,null,null,null,null,null,null,null,null,null,null,null,null,null,null,null,null,null,null,null,null,null,"確認申請","設計評価","建設で入力"]
[null,"【階数】",null,null,null,"（地上）",null,null,null,null,null,"階","（地下）",null,null,null,null,null,"階",null,null,null,null,null,null,null,null,null,{"$f":"CHOOSE(AJ324,AK324,AL324,AM324)","v":0},null,null,null,null,null,null,{"$f":"IF(I324=\"\",IF(ISTEXT(AL324),2,IF(ISTEXT(AK324),1,3)),3)","v":3},{"$f":"AC173","v":0},{"$f":"IF(I173=\"\",0,\"設計評価 第二面 より\")","v":0},0]
[null,null,null,null,null,null,null,null,null,null,null,null,null,null,null,null,null,null,null,null,null,null,null,null,null,null,null,null,null,null,null,null,null,null,null,"地上",{"$f":"I!K301","v":0},{"$f":"I173","v":0},{"$f":"I324","v":0}]
[null,null,null,null,null,null,null,"（第",null,"回）",null,"西暦",null,null,null,null,"年",null,"月",null,"日","（",null,null,null,null,null,null,"）",null,null,null,null,null,null,"地下",{"$f":"I!K302","v":0},{"$f":"P173","v":0},{"$f":"P324","v":0}]
[null,null,null,null,null,null,null,"（第",null,"回）",null,"西暦",null,null,null,null,"年",null,"月",null,"日","（",null,null,null,null,null,null,"）",null,null,null,null,null,null,"合計",{"$f":"SUM(AK325:AK326)","v":0},{"$f":"SUM(AL325:AL326)","v":0},0]
[null,null,null,null,null,null,null,"（第",null,"回）",null,"西暦",null,null,null,null,"年",null,"月",null,"日","（",null,null,null,null,null,null,"）"]
[null,null,null,null,null,null,null,"（第",null,"回）",null,"西暦",null,null,null,null,"年",null,"月",null,"日","（",null,null,null,null,null,null,"）",null,null,null,null,null,null,{"$f":"IF(ISTEXT(AL324),AL327,IF(ISTEXT(AK324),AK327,AM327))","v":0},{"$f":"IF(AJ329>3,\"検査４\",\"検査３\")","v":"検査３"}]
[null,null,null,null,null,null,null,"（第",null,"回）",null,"西暦",null,null,null,null,"年",null,"月",null,"日","（",null,null,null,null,null,null,"）"]
[null,null,null,null,null,null,null,"（第",null,"回）",null,"西暦",null,null,null,null,"年",null,"月",null,"日","（",null,null,null,null,null,null,"）"]
[null,null,null,null,null,null,null,"（第",null,"回）",null,"西暦",null,null,null,null,"年",null,"月",null,"日","（",null,null,null,null,null,null,"）"]
[null,null,null,null,null,null,null,"（第",null,"回）",null,"西暦",null,null,null,null,"年",null,"月",null,"日","（",null,null,null,null,null,null,"）"]
[]
["【11．その他必要な事項】"]
[]
[]
[]
["【12．備考】"]
[null,"【申請費確認項目】"]
[null,null,"【当センターへの中間、完了検査の申請】"]
[]
[]
[]
["【現場検査における立ち合い者の連絡先】"]
[null,"【フリガナ】"]
[null,"【立ち合い者氏名】"]
[null,"【立ち合い者の所属】",null,null,null,null,null,null,null,null,null,null,null,null,null,null,null,null,null,null,null,null,null,null,null,null,null,null,null,null,null,null,null,null,null,{"$f":"IF(I348=\"\",5,SUMIF(第二面,I348,項目リスト!W3:W7))","v":5}]
[null,null,"【会社名】",null,null,null,null,null,null,null,null,null,null,null,null,null,null,null,null,null,null,null,null,null,null,null,null,null,null,null,null,null,null,null,null,{"$f":"CHOOSE(AJ348,★建設評価!J75,★建設評価!J92,★建設評価!J101,★建設評価!J109,I349)","v":0}]
[null,"【会社の電話番号】",null,null,null,null,null,null,null,null,null,null,null,null,null,null,null,null,null,null,null,null,null,null,null,null,null,null,null,null,null,null,null,null,null,{"$f":"CHOOSE(AJ348,★建設評価!J78,★建設評価!J95,★建設評価!J104,★建設評価!J112,I350)","v":0}]
[null,"【ファックス番号】"]
[null,"【携帯電話番号】"]
[]
[]
["【書類の受取方法】"]
[null,"①「施工状況報告書原本」返却と「検査報告書」交付（但し竣工時は②）"]
[null,null,"【担当者名】"]
[null,null,"【代理者、設計者、工事監理者、工事施工者の別】"]
[null,null,null,null,null,null,null,null,null,null,null,null,null,null,null,null,null,null,null,null,null,null,null,null,null,null,null,null,null,null,null,null,null,null,null,{"$f":"IF(I359=\"\",5,SUMIF(第二面,I359,項目リスト!W3:W7))","v":5}]
[null,null,"【会社名】",null,null,null,null,null,null,null,null,null,null,null,null,null,null,null,null,null,null,null,null,null,null,null,null,null,null,null,null,null,null,null,null,{"$f":"CHOOSE(AJ359,★建設評価!J75,★建設評価!J92,★建設評価!J101,★建設評価!J109,I360)","v":0}]
[null,null,"【郵便番号】",null,null,null,null,null,null,null,null,null,null,null,null,null,null,null,null,null,null,null,null,null,null,null,null,null,null,null,null,null,null,null,null,{"$f":"CHOOSE(AJ359,★建設評価!J76,★建設評価!J93,★建設評価!J102,★建設評価!J110,I361)","v":0}]
[null,null,"【所在地】",null,null,null,null,null,null,null,null,null,null,null,null,null,null,null,null,null,null,null,null,null,null,null,null,null,null,null,null,null,null,null,null,{"$f":"CHOOSE(AJ359,★建設評価!J77,★建設評価!J94,★建設評価!J103,★建設評価!J111,I362)","v":0}]
[null,null,"【電話番号】",null,null,null,null,null,null,null,null,null,null,null,null,null,null,null,null,null,null,null,null,null,null,null,null,null,null,null,null,null,null,null,null,{"$f":"CHOOSE(AJ359,★建設評価!J78,★建設評価!J95,★建設評価!J104,★建設評価!J112,I363)","v":0}]
[]
[null,"②建設評価書の交付　と　副本の返却"]
[null,null,"【担当者名】"]
[null,null,"【代理者、設計者、工事監理者、工事施工者の別】"]
[null,null,null,null,null,null,null,null,null,null,null,null,null,null,null,null,null,null,null,null,null,null,null,null,null,null,null,null,null,null,null,null,null,null,null,{"$f":"IF(I368=\"\",5,SUMIF(第二面,I368,項目リスト!W3:W7))","v":5}]
[null,null,"【会社名】",null,null,null,null,null,null,null,null,null,null,null,null,null,null,null,null,null,null,null,null,null,null,null,null,null,null,null,null,null,null,null,null,{"$f":"CHOOSE(AJ368,★建設評価!J75,★建設評価!J92,★建設評価!J101,★建設評価!J109,I369)","v":0}]
[null,null,"【郵便番号】",null,null,null,null,null,null,null,null,null,null,null,null,null,null,null,null,null,null,null,null,null,null,null,null,null,null,null,null,null,null,null,null,{"$f":"CHOOSE(AJ368,★建設評価!J76,★建設評価!J93,★建設評価!J102,★建設評価!J110,I370)","v":0}]
[null,null,"【所在地】",null,null,null,null,null,null,null,null,null,null,null,null,null,null,null,null,null,null,null,null,null,null,null,null,null,null,null,null,null,null,null,null,{"$f":"CHOOSE(AJ368,★建設評価!J77,★建設評価!J94,★建設評価!J103,★建設評価!J111,I371)","v":0}]
[null,null,"【電話番号】",null,null,null,null,null,null,null,null,null,null,null,null,null,null,null,null,null,null,null,null,null,null,null,null,null,null,null,null,null,null,null,null,{"$f":"CHOOSE(AJ368,★建設評価!J78,★建設評価!J95,★建設評価!J104,★建設評価!J112,I372)","v":0}]

{"sheet":"★設計評価","index":2,"n_rows":283,"n_cols":36,"rows_kept":283,"cut":false,"hidden":false,"merged":[[192,7,192,11],[189,7,189,11],[135,5,135,6],[138,5,138,6],[180,8,180,11],[186,8,186,13],[132,5,132,6],[133,5,133,6],[146,5,146,6],[148,5,148,6],[268,0,268,33],[269,0,269,33],[270,0,270,33],[271,0,271,33],[281,0,281,33],[282,0,282,33],[272,0,272,33],[273,0,273,33],[274,0,274,33],[275,0,275,33],[276,0,276,33],[277,0,277,33],[278,0,278,33],[279,0,279,33],[280,0,280,33],[267,0,267,33],[256,0,256,33],[257,0,257,33],[258,0,258,33],[249,9,249,16],[250,9,250,31],[204,7,204,13],[204,16,204,22],[204,14,204,15],[254,0,254,33],[255,0,255,33],[259,0,259,33],[260,0,260,33],[261,0,261,33],[262,0,262,33],[263,0,263,33],[264,0,264,33],[265,0,265,33],[266,0,266,33],[248,6,248,7],[249,6,249,7],[248,9,248,16],[252,0,252,33],[253,0,253,33],[126,5,126,6],[125,5,125,6],[131,5,131,6],[165,15,165,18],[175,9,175,13],[175,16,175,21],[175,24,175,30],[107,15,107,18],[118,5,119,11],[120,5,120,6],[121,5,121,6],[122,5,122,6],[139,5,139,6],[140,5,140,6],[145,5,145,6],[127,5,127,6],[136,5,136,6],[137,5,137,6],[141,5,141,6],[155,5,155,6],[156,5,156,6],[154,5,154,6],[160,5,160,6],[143,5,143,6],[103,1,103,33],[104,1,104,33],[246,9,247,31],[246,5,247,7],[231,2,231,7],[149,5,149,6],[151,5,151,6],[152,5,152,6],[159,5,159,6],[162,5,162,6],[175,2,175,7],[180,14,180,18],[180,21,180,24],[169,1,172,32],[157,5,157,6],[183,7,183,11],[202,17,202,19],[199,7,199,11],[200,7,200,11],[195,7,195,11],[186,16,186,20],[202,10,202,12],[210,3,210,32],[211,3,211,32],[240,16,241,16],[196,7,196,11],[240,18,241,18],[240,29,241,29],[240,31,241,31],[226,9,227,24],[240,2,240,6],[240,7,241,11],[240,20,241,24],[241,2,241,6],[240,12,241,14],[240,25,241,27],[230,2,230,7],[214,8,214,32],[213,8,213,32],[73,10,73,11],[73,18,73,21],[73,27,73,31],[123,5,123,6],[124,5,124,6],[60,15,60,18],[66,9,66,12],[63,9,63,31],[64,9,64,31],[65,9,65,31],[67,9,67,31],[68,9,68,16],[63,2,63,8],[80,9,80,31],[71,10,71,11],[71,17,71,21],[71,26,71,30],[72,9,72,21],[74,9,74,31],[91,9,91,31],[75,9,75,12],[76,9,76,31],[77,9,77,16],[90,27,90,31],[89,9,89,21],[85,9,85,16],[80,2,80,8],[93,9,93,31],[88,17,88,21],[90,10,90,11],[90,18,90,21],[88,26,88,30],[101,11,101,33],[88,10,88,11],[92,9,92,12],[81,9,81,31],[82,9,82,31],[83,9,83,12],[84,9,84,31],[94,9,94,16],[56,1,57,3],[56,4,57,6],[0,30,1,31],[25,0,28,33],[0,32,1,33],[12,25,12,26],[12,28,12,29],[12,31,12,32],[6,9,7,24],[56,27,57,29],[56,30,57,32],[56,7,57,11],[17,23,17,32],[18,23,18,32],[10,0,10,34]]}
["様式Ｃ-評-１号",null,null,null,null,null,null,null,null,null,null,null,null,null,null,null,null,null,null,null,null,null,null,null,null,null,null,null,null,null,"正",null,"副",null,null,1]
[null,null,null,null,null,null,null,null,null,null,null,null,null,null,null,null,null,null,null,null,null,null,null,null,null,null,null,null,null,null,null,null,null,null,null,1]
[null,null,null,null,null,null,null,null,null,null,null,null,null,null,null,null,null,null,null,null,null,null,null,null,null,null,null,null,null,null,null,null,null,null,null,1]
[null,null,null,null,null,null,null,null,null,null,null,null,null,null,null,null,null,null,null,null,null,null,null,null,null,null,null,null,null,null,null,null,null,null,null,1]
[null,null,null,null,null,null,null,null,null,null,null,null,null,null,null,null,null,null,null,null,null,null,null,null,null,null,null,null,null,null,null,null,null,null,null,1]
[null,null,null,null,null,null,null,null,null,null,null,null,null,null,null,null,null,null,null,null,null,null,null,null,null,null,null,null,null,null,null,null,null,null,null,1]
[null,null,null,null,null,null,null,null,null,"設計住宅性能評価申請書",null,null,null,null,null,null,null,null,null,null,null,null,null,null,null,null,null,null,null,null,null,null,null,null,null,1]
[null,null,null,null,null,null,null,null,null,null,null,null,null,null,null,null,null,null,null,null,null,null,null,null,null,null,null,null,null,null,null,null,null,null,null,1]
[null,null,null,null,null,null,null,null,null,null,null,null,null,null,null,null,null,null,null,null,null,null,null,null,null,null,null,null,null,null,null,null,null,null,null,1]
[null,null,null,null,null,null,null,null,null,null,null,null,null,null,null,null,null,null,null,null,null,null,null,null,null,null,null,null,null,null,null,null,null,null,null,1]
["（第一面）",null,null,null,null,null,null,null,null,null,null,null,null,null,null,null,null,null,null,null,null,null,null,null,null,null,null,null,null,null,null,null,null,null,null,1]
[null,null,null,null,null,null,null,null,null,null,null,null,null,null,null,null,null,null,null,null,null,null,null,null,null,null,null,null,null,null,null,null,null,null,null,1]
[null,null,null,null,null,null,null,null,null,null,null,null,null,null,null,null,null,null,null,null,null,null,null,null,null,{"$f":"入力シート!K80","v":0},null,"年",{"$f":"入力シート!O80","v":0},null,"月",{"$f":"入力シート!Q80","v":0},null,"日",null,1]
[null,"一般財団法人 愛知県建築住宅センター 理事長　様",null,null,null,null,null,null,null,null,null,null,null,null,null,null,null,null,null,null,null,null,null,null,null,null,null,null,null,null,null,null,null,null,null,1]
[null,null,null,null,null,null,null,null,null,null,null,null,null,null,null,null,null,null,null,null,null,null,null,null,null,null,null,null,null,null,null,null,null,null,null,1]
[null,null,null,null,null,null,null,null,null,null,null,null,null,null,null,null,null,null,null,null,null,null,null,null,null,null,null,null,null,null,null,null,null,null,null,1]
[null,null,null,null,null,null,null,null,null,null,null,null,null,null,null,null,null,null,null,null,null,null,null,null,null,null,null,null,null,null,null,null,null,null,null,1]
[null,null,null,null,null,null,null,null,null,null,null,null,null,null,null,null,null,null,null,null,null,"申請者の氏名又は名称",null,{"$f":"J65","v":0},null,null,null,null,null,null,null,null,null,null,null,1]
[null,null,null,null,null,null,null,null,null,null,null,null,null,null,null,null,null,null,null,null,null,"代表者の氏名",null,{"$f":"J66","v":0},null,null,null,null,null,null,null,null,null,null,null,1]
[null,null,null,null,null,null,null,null,null,null,null,null,null,null,null,null,null,null,null,null,null,null,null,null,null,null,null,null,null,null,null,null,null,null,null,1]
[null,null,null,null,null,null,null,null,null,null,null,null,null,null,null,null,null,null,null,null,null,null,null,null,null,null,null,null,null,null,null,null,null,null,null,1]
[null,null,null,null,null,null,null,null,null,null,null,null,null,null,null,null,null,null,null,null,null,null,null,null,null,null,null,null,null,null,null,null,null,null,null,1]
[null,null,null,null,null,null,null,null,null,null,null,null,null,null,null,null,null,null,null,null,null,null,null,null,null,null,null,null,null,null,null,null,null,null,null,1]
[null,null,null,null,null,null,null,null,null,null,null,null,null,null,null,null,null,null,null,null,null,null,null,null,null,null,null,null,null,null,null,null,null,null,null,1]
[null,null,null,null,null,null,null,null,null,null,null,null,null,null,null,null,null,null,null,null,null,null,null,null,null,null,null,null,null,null,null,null,null,null,null,1]
["　住宅の品質確保の促進等に関する法律第５条第１項の規定に基づき、設計住宅性能評価を申請します。この申請書及び添付図書に記載の事項は、事実に相違ありません。",null,null,null,null,null,null,null,null,null,null,null,null,null,null,null,null,null,null,null,null,null,null,null,null,null,null,null,null,null,null,null,null,null,null,1]
[null,null,null,null,null,null,null,null,null,null,null,null,null,null,null,null,null,null,null,null,null,null,null,null,null,null,null,null,null,null,null,null,null,null,null,1]
[null,null,null,null,null,null,null,null,null,null,null,null,null,null,null,null,null,null,null,null,null,null,null,null,null,null,null,null,null,null,null,null,null,null,null,1]
[null,null,null,null,null,null,null,null,null,null,null,null,null,null,null,null,null,null,null,null,null,null,null,null,null,null,null,null,null,null,null,null,null,null,null,1]
[null,null,null,null,null,null,null,null,null,null,null,null,null,null,null,null,null,null,null,null,null,null,null,null,null,null,null,null,null,null,null,null,null,null,null,1]
[null,null,null,null,null,null,null,null,null,null,null,null,null,null,null,null,null,null,null,null,null,null,null,null,null,null,null,null,null,null,null,null,null,null,null,1]
[null,null,null,null,null,null,null,null,null,null,null,null,null,null,null,null,null,null,null,null,null,null,null,null,null,null,null,null,null,null,null,null,null,null,null,1]
[null,null,null,null,null,null,null,null,null,null,null,null,null,null,null,null,null,null,null,null,null,null,null,null,null,null,null,null,null,null,null,null,null,null,null,1]
[null,null,null,null,null,null,null,null,null,null,null,null,null,null,null,null,null,null,null,null,null,null,null,null,null,null,null,null,null,null,null,null,null,null,null,1]
[null,null,null,null,null,null,null,null,null,null,null,null,null,null,null,null,null,null,null,null,null,null,null,null,null,null,null,null,null,null,null,null,null,null,null,1]
[null,null,null,null,null,null,null,null,null,null,null,null,null,null,null,null,null,null,null,null,null,null,null,null,null,null,null,null,null,null,null,null,null,null,null,1]
[null,null,null,null,null,null,null,null,null,null,null,null,null,null,null,null,null,null,null,null,null,null,null,null,null,null,null,null,null,null,null,null,null,null,null,1]
[null,null,null,null,null,null,null,null,null,null,null,null,null,null,null,null,null,null,null,null,null,null,null,null,null,null,null,null,null,null,null,null,null,null,null,1]
[null,null,null,null,null,null,null,null,null,null,null,null,null,null,null,null,null,null,null,null,null,null,null,null,null,null,null,null,null,null,null,null,null,null,null,1]
[null,null,null,null,null,null,null,null,null,null,null,null,null,null,null,null,null,null,null,null,null,null,null,null,null,null,null,null,null,null,null,null,null,null,null,1]
[null,null,null,null,null,null,null,null,null,null,null,null,null,null,null,null,null,null,null,null,null,null,null,null,null,null,null,null,null,null,null,null,null,null,null,1]
[null,null,null,null,null,null,null,null,null,null,null,null,null,null,null,null,null,null,null,null,null,null,null,null,null,null,null,null,null,null,null,null,null,null,null,1]
[null,null,null,null,null,null,null,null,null,null,null,null,null,null,null,null,null,null,null,null,null,null,null,null,null,null,null,null,null,null,null,null,null,null,null,1]
[null,null,null,null,null,null,null,null,null,null,null,null,null,null,null,null,null,null,null,null,null,null,null,null,null,null,null,null,null,null,null,null,null,null,null,1]
[null,null,null,null,null,null,null,null,null,null,null,null,null,null,null,null,null,null,null,null,null,null,null,null,null,null,null,null,null,null,null,null,null,null,null,1]
[null,null,null,null,null,null,null,null,null,null,null,null,null,null,null,null,null,null,null,null,null,null,null,null,null,null,null,null,null,null,null,null,null,null,null,1]
[null,null,null,null,null,null,null,null,null,null,null,null,null,null,null,null,null,null,null,null,null,null,null,null,null,null,null,null,null,null,null,null,null,null,null,1]
[null,"※受付欄",null,null,null,null,null,null,null,null,null,null,null,null,null,null,null,"※料金欄",null,null,null,null,null,null,null,null,null,null,null,null,null,null,null,null,null,1]
[null,null,null,null,null,null,null,null,null,null,null,null,null,null,null,null,null,null,null,null,null,null,null,null,null,null,null,null,null,null,null,null,null,null,null,1]
[null,null,null,null,null,null,null,null,null,null,null,null,null,null,null,null,null,null,null,null,null,null,null,null,null,null,null,null,null,null,null,null,null,null,null,1]
[null,null,null,null,null,null,null,null,null,null,null,null,null,null,null,null,null,null,null,null,null,null,null,null,null,null,null,null,null,null,null,null,null,null,null,1]
[null,null,null,null,null,null,null,null,null,null,null,null,null,null,null,null,null,null,null,null,null,null,null,null,null,null,null,null,null,null,null,null,null,null,null,1]
[null,null,null,null,null,null,null,null,null,null,null,null,null,null,null,null,null,null,null,null,null,null,null,null,null,null,null,null,null,null,null,null,null,null,null,1]
[null,null,null,null,null,null,null,null,null,null,null,null,null,null,null,null,null,null,null,null,null,null,null,null,null,null,null,null,null,null,null,null,null,null,null,1]
[null,null,null,null,null,null,null,null,null,"申請受理者氏名",null,null,null,null,null,null,null,null,null,null,null,null,null,null,null,null,null,null,null,null,null,null,null,null,null,1]
[null,null,null,null,null,null,null,null,null,null,null,null,null,null,null,null,null,null,null,null,null,null,null,null,null,null,null,null,null,null,null,null,null,null,null,1]
[null,"受領\n月日",null,null,"／",null,null,"受領者氏名\n連絡先",null,null,null,null,null,null,null,null,null,null,null,null,null,null,null,null,null,null,null,"受領者",null,null,null,null,null,null,null,1]
[null,null,null,null,null,null,null,null,null,null,null,null,null,"TEL（　　　　　　）　　　　　　－",null,null,null,null,null,null,null,null,null,null,null,null,null,null,null,null,null,null,null,null,null,1]
[null,null,null,null,null,null,null,null,null,null,null,null,null,null,null,null,null,null,null,null,null,null,null,null,null,null,null,null,null,null,null,null,null,null,null,1]
[null,null,null,null,null,null,null,null,null,null,null,null,null,null,null,null,null,null,null,null,null,null,null,null,null,null,null,null,null,null,null,null,null,null,null,1]
[null,null,null,null,null,null,null,null,null,null,null,null,null,null,null,"（第二面）",null,null,null,null,null,null,null,null,null,null,null,null,null,null,null,null,null,null,null,1]
[null,null,null,null,null,null,null,null,null,null,null,null,null,null,null,null,null,null,null,null,null,null,null,null,null,null,null,null,null,null,null,null,null,null,null,1]
["【１．申請者】",null,null,null,null,null,null,null,null,null,null,null,null,null,null,null,null,null,null,null,null,null,null,null,null,null,null,null,null,null,null,null,null,null,null,1]
[null,null,"【氏名又は名称のフリガナ】",null,null,null,null,null,null,{"$f":"IF(入力シート!I85=\"\",J81,入力シート!I85)","v":0},null,null,null,null,null,null,null,null,null,null,null,null,null,null,null,null,null,null,null,null,null,null,null,null,null,1]
[null,null,"【氏名又は名称】",null,null,null,null,null,null,{"$f":"IF(入力シート!I86=\"\",J82,入力シート!I86)","v":0},null,null,null,null,null,null,null,null,null,null,null,null,null,null,null,null,null,null,null,null,null,null,null,null,null,1]
[null,null,null,null,null,null,null,null,null,{"$f":"IF(入力シート!I87=\"\",J83,入力シート!I87)","v":0},null,null,null,null,null,null,null,null,null,null,null,null,null,null,null,null,null,null,null,null,null,null,null,null,null,1]
[null,null,"【郵便番号】",null,null,null,null,null,null,{"$f":"IF(入力シート!I88=\"\",J84,入力シート!I88)","v":0},null,null,null,null,null,null,null,null,null,null,null,null,null,null,null,null,null,null,null,null,null,null,null,null,null,1]
[null,null,"【住所】",null,null,null,null,null,null,{"$f":"IF(入力シート!I89=\"\",J85,入力シート!I89)","v":0},null,null,null,null,null,null,null,null,null,null,null,null,null,null,null,null,null,null,null,null,null,null,null,null,null,1]
[null,null,"【電話番号】",null,null,null,null,null,null,{"$f":"IF(入力シート!I90=\"\",J86,入力シート!I90)","v":0},null,null,null,null,null,null,null,null,null,null,null,null,null,null,null,null,null,null,null,null,null,null,null,null,null,1]
[null,null,null,null,null,null,null,null,null,null,null,null,null,null,null,null,null,null,null,null,null,null,null,null,null,null,null,null,null,null,null,null,null,null,null,1]
["【２．代理者】",null,null,null,null,null,null,null,null,null,null,null,null,null,null,null,null,null,null,null,null,null,null,null,null,null,null,null,null,null,null,null,null,null,null,1]
[null,null,"【資格】",null,null,null,null,null,null,"（",{"$f":"IF(入力シート!J93=\"\",I!J30,入力シート!J93)","v":0},null,"）建築士",null,null,null,"（",{"$f":"IF(入力シート!P93=\"\",I!P30,入力シート!P93)","v":0},null,null,null,null,"）登録第",null,null,null,{"$f":"IF(入力シート!W93=\"\",I!W30,入力シート!W93)","v":0},null,null,null,null,"号",null,null,null,1]
[null,null,"【氏名】",null,null,null,null,null,null,{"$f":"IF(入力シート!I94=\"\",I!I31,入力シート!I94)","v":0},null,null,null,null,null,null,null,null,null,null,null,null,null,null,null,null,null,null,null,null,null,null,null,null,null,1]
[null,null,"【建築士事務所名】",null,null,null,null,null,null,"（",{"$f":"IF(入力シート!J95=\"\",I!J32,入力シート!J95)","v":0},null,"）建築士事務所",null,null,null,null,"（",{"$f":"IF(入力シート!Q95=\"\",I!Q32,入力シート!Q95)","v":0},null,null,null,"）知事登録第",null,null,null,null,{"$f":"IF(入力シート!X95=\"\",I!X32,入力シート!X95)","v":0},null,null,null,null,"号",null,null,1]
[null,null,null,null,null,null,null,null,null,{"$f":"IF(入力シート!I96=\"\",I!I33,入力シート!I96)","v":0},null,null,null,null,null,null,null,null,null,null,null,null,null,null,null,null,null,null,null,null,null,null,null,null,null,1]
[null,null,"【郵便番号】",null,null,null,null,null,null,{"$f":"IF(入力シート!I97=\"\",I!I34,入力シート!I97)","v":0},null,null,null,null,null,null,null,null,null,null,null,null,null,null,null,null,null,null,null,null,null,null,null,null,null,1]
[null,null,"【所在地】",null,null,null,null,null,null,{"$f":"IF(入力シート!I98=\"\",I!I35,入力シート!I98)","v":0},null,null,null,null,null,null,null,null,null,null,null,null,null,null,null,null,null,null,null,null,null,null,null,null,null,1]
[null,null,"【電話番号】",null,null,null,null,null,null,{"$f":"IF(入力シート!I99=\"\",I!I36,入力シート!I99)","v":0},null,null,null,null,null,null,null,null,null,null,null,null,null,null,null,null,null,null,null,null,null,null,null,null,null,1]
[null,null,null,null,null,null,null,null,null,null,null,null,null,null,null,null,null,null,null,null,null,null,null,null,null,null,null,null,null,null,null,null,null,null,null,1]
["【３．建築主】",null,null,null,null,null,null,null,null,null,null,null,null,null,null,null,null,null,null,null,null,null,null,null,null,null,null,null,null,null,null,null,null,null,null,1]
[null,null,"【氏名又は名称のフリガナ】",null,null,null,null,null,null,{"$f":"IF(入力シート!I102=\"\",I!I22,入力シート!I102)","v":0},null,null,null,null,null,null,null,null,null,null,null,null,null,null,null,null,null,null,null,null,null,null,null,null,null,1]
[null,null,"【氏名又は名称】",null,null,null,null,null,null,{"$f":"IF(入力シート!I103=\"\",I!I23,入力シート!I103)","v":0},null,null,null,null,null,null,null,null,null,null,null,null,null,null,null,null,null,null,null,null,null,null,null,null,null,1]
[null,null,null,null,null,null,null,null,null,{"$f":"IF(入力シート!I104=\"\",I!I24,入力シート!I104)","v":0},null,null,null,null,null,null,null,null,null,null,null,null,null,null,null,null,null,null,null,null,null,null,null,null,null,1]
[null,null,"【郵便番号】",null,null,null,null,null,null,{"$f":"IF(入力シート!I105=\"\",I!I25,入力シート!I105)","v":0},null,null,null,null,null,null,null,null,null,null,null,null,null,null,null,null,null,null,null,null,null,null,null,null,null,1]
[null,null,"【住所】",null,null,null,null,null,null,{"$f":"IF(入力シート!I106=\"\",I!I26,入力シート!I106)","v":0},null,null,null,null,null,null,null,null,null,null,null,null,null,null,null,null,null,null,null,null,null,null,null,null,null,1]
[null,null,"【電話番号】",null,null,null,null,null,null,{"$f":"IF(入力シート!I107=\"\",I!I27,入力シート!I107)","v":0},null,null,null,null,null,null,null,null,null,null,null,null,null,null,null,null,null,null,null,null,null,null,null,null,null,1]
[null,null,null,null,null,null,null,null,null,null,null,null,null,null,null,null,null,null,null,null,null,null,null,null,null,null,null,null,null,null,null,null,null,null,null,1]
["【４．設計者】",null,null,null,null,null,null,null,null,null,null,null,null,null,null,null,null,null,null,null,null,null,null,null,null,null,null,null,null,null,null,null,null,null,null,1]
[null,null,"【資格】",null,null,null,null,null,null,"（",{"$f":"IF(入力シート!J135=\"\",I!J41,入力シート!J135)","v":0},null,"）建築士",null,null,null,"（",{"$f":"IF(入力シート!P135=\"\",I!P41,入力シート!P135)","v":0},null,null,null,null,"）登録第",null,null,null,{"$f":"IF(入力シート!W135=\"\",I!W41,入力シート!W135)","v":0},null,null,null,null,"号",null,null,null,1]
[null,null,"【氏名】",null,null,null,null,null,null,{"$f":"IF(入力シート!I136=\"\",I!I42,入力シート!I136)","v":0},null,null,null,null,null,null,null,null,null,null,null,null,null,null,null,null,null,null,null,null,null,null,null,null,null,1]
[null,null,"【建築士事務所名】",null,null,null,null,null,null,"（",{"$f":"IF(入力シート!J137=\"\",I!J43,入力シート!J137)","v":0},null,"）建築士事務所",null,null,null,null,"（",{"$f":"IF(入力シート!Q137=\"\",I!Q43,入力シート!Q137)","v":0},null,null,null,"）知事登録第",null,null,null,null,{"$f":"IF(入力シート!X137=\"\",I!X43,入力シート!X137)","v":0},null,null,null,null,"号",null,null,1]
[null,null,null,null,null,null,null,null,null,{"$f":"IF(入力シート!I138=\"\",I!I44,入力シート!I138)","v":0},null,null,null,null,null,null,null,null,null,null,null,null,null,null,null,null,null,null,null,null,null,null,null,null,null,1]
[null,null,"【郵便番号】",null,null,null,null,null,null,{"$f":"IF(入力シート!I139=\"\",I!I45,入力シート!I139)","v":0},null,null,null,null,null,null,null,null,null,null,null,null,null,null,null,null,null,null,null,null,null,null,null,null,null,1]
[null,null,"【所在地】",null,null,null,null,null,null,{"$f":"IF(入力シート!I140=\"\",I!I46,入力シート!I140)","v":0},null,null,null,null,null,null,null,null,null,null,null,null,null,null,null,null,null,null,null,null,null,null,null,null,null,1]
[null,null,"【電話番号】",null,null,null,null,null,null,{"$f":"IF(入力シート!I141=\"\",I!I47,入力シート!I141)","v":0},null,null,null,null,null,null,null,null,null,null,null,null,null,null,null,null,null,null,null,null,null,null,null,null,null,1]
[null,null,null,null,null,null,null,null,null,null,null,null,null,null,null,null,null,null,null,null,null,null,null,null,null,null,null,null,null,null,null,null,null,null,null,1]
["【５．設計住宅性能評価を希望する性能表示事項】",null,null,null,null,null,null,null,null,null,null,null,null,null,null,null,null,null,null,null,null,null,null,null,null,null,null,null,null,null,null,null,null,null,null,1]
[null,null,null,null,null,null,null,null,null,null,null,null,null,null,null,null,null,null,null,null,null,null,null,null,null,null,null,null,null,null,null,null,null,null,null,1]
[null,null,"別紙による",null,null,null,null,null,null,null,null,null,null,null,null,null,null,null,null,null,null,null,null,null,null,null,null,null,null,null,null,null,null,null,null,1]
[null,null,null,null,null,null,null,null,null,null,null,null,null,null,null,null,null,null,null,null,null,null,null,null,null,null,null,null,null,null,null,null,null,null,null,1]
["【６．備考】",null,null,null,null,null,null,null,null,null,null,null,null,null,null,null,null,null,null,null,null,null,null,null,null,null,null,null,null,null,null,null,null,null,null,1]
[null,"【住宅又は建築物の名称】",null,null,null,null,null,null,null,null,null,{"$f":"入力シート!I144","v":0},null,null,null,null,null,null,null,null,null,null,null,null,null,null,null,null,null,null,null,null,null,null,null,1]
[null,null,null,null,null,null,null,null,null,null,null,null,null,null,null,null,null,null,null,null,null,null,null,null,null,null,null,null,null,null,null,null,null,null,null,1]
[null,{"$f":"入力シート!I146","v":0},null,null,null,null,null,null,null,null,null,null,null,null,null,null,null,null,null,null,null,null,null,null,null,null,null,null,null,null,null,null,null,null,null,1]
[null,{"$f":"入力シート!I147","v":0},null,null,null,null,null,null,null,null,null,null,null,null,null,null,null,null,null,null,null,null,null,null,null,null,null,null,null,null,null,null,null,null,null,1]
[null,null,null,null,null,null,null,null,null,null,null,null,null,null,null,null,null,null,null,null,null,null,null,null,null,null,null,null,null,null,null,null,null,null,null,1]
[null,null,null,null,null,null,null,null,null,null,null,null,null,null,null,null,null,null,null,null,null,null,null,null,null,null,null,null,null,null,null,null,null,null,null,1]
[null,null,null,null,null,null,null,null,null,null,null,null,null,null,null,"（第二面）",null,null,null,null,null,null,null,null,null,null,null,null,null,null,null,"別紙",null,null,null,1]
[null,null,null,null,null,null,null,null,null,null,null,null,null,null,null,null,null,null,null,null,null,null,null,null,null,null,null,null,null,null,null,null,null,null,null,1]
["【地盤の液状化に関する情報提供】",null,null,null,null,null,null,null,null,null,null,null,null,null,null,null,null,null,null,null,null,null,null,null,null,null,null,null,null,null,null,null,null,null,null,1]
[null,null,null,null,{"$f":"IF(入力シート!G32=F111,\"■\",\"□\")","v":"□"},"地盤の液状化に関する情報提供を行う",null,null,null,null,null,null,null,null,null,null,null,null,null,null,null,null,null,null,null,null,null,null,null,null,null,null,null,null,null,1]
[null,null,null,null,{"$f":"IF(入力シート!G32=F112,\"■\",\"□\")","v":"■"},"地盤の液状化に関する情報提供を行わない",null,null,null,null,null,null,null,null,null,null,null,null,null,null,null,null,null,null,null,null,null,null,null,null,null,null,null,null,null,1]
[null,null,null,null,null,null,null,null,null,null,null,null,null,null,null,null,null,null,null,null,null,null,null,null,null,null,null,null,null,null,null,null,null,null,null,1]
["【設計住宅性能評価を希望する性能表示事項】",null,null,null,null,null,null,null,null,null,null,null,null,null,null,null,null,null,null,null,null,null,null,null,null,null,null,null,null,null,null,null,null,null,null,1]
[null,null,null,null,null,null,null,null,null,null,null,null,null,null,null,null,null,null,null,null,null,null,null,null,null,null,null,null,null,null,null,null,null,null,null,1]
["（注意）",null,null,null,null,null,null,null,null,null,null,null,null,null,null,null,null,null,null,null,null,null,null,null,null,null,null,null,null,null,null,null,null,null,null,1]
[null,"・","選択を希望する性能表示事項にチェックしてください。",null,null,null,null,null,null,null,null,null,null,null,null,null,null,null,null,null,null,null,null,null,null,null,null,null,null,null,null,null,null,null,null,1]
[null,"・","「5-1」又は「5-2」、もしくは「5-1」と「5-2」両方の選択が必要となります。",null,null,null,null,null,null,null,null,null,null,null,null,null,null,null,null,null,null,null,null,null,null,null,null,null,null,null,null,null,null,null,null,1]
[null,null,null,null,null,"【参考】　必須項目",null,null,null,null,null,null,null,null,null,null,null,null,null,null,null,null,null,null,null,null,null,null,null,null,null,null,null,null,null,1]
[null,null,null,null,null,null,null,null,null,null,null,null,null,null,null,null,null,null,null,null,null,null,null,null,null,null,null,null,null,null,null,null,null,null,null,1]
[null,null,null,null,null,"1-1",null,"耐震等級（構造躯体の倒壊等防止）",null,null,null,null,null,null,null,null,null,null,null,null,null,null,null,null,null,null,null,null,null,null,null,null,null,null,null,1]
[null,null,null,null,null,"1-3",null,"その他（地震に対する構造躯体の倒壊等防止及び損傷防止）",null,null,null,null,null,null,null,null,null,null,null,null,null,null,null,null,null,null,null,null,null,null,null,null,null,null,null,1]
[null,null,null,null,null,"1-6",null,"地盤又は杭の許容支持力等及びその設定方法",null,null,null,null,null,null,null,null,null,null,null,null,null,null,null,null,null,null,null,null,null,null,null,null,null,null,null,1]
[null,null,null,null,null,"1-7",null,"基礎の構造方法及び形式等",null,null,null,null,null,null,null,null,null,null,null,null,null,null,null,null,null,null,null,null,null,null,null,null,null,null,null,1]
[null,null,null,null,null,"3-1",null,"劣化対策等級（構造躯体等）",null,null,null,null,null,null,null,null,null,null,null,null,null,null,null,null,null,null,null,null,null,null,null,null,null,null,null,1]
[null,null,null,null,null,"4-1",null,"維持管理対策等級（専用配管）",null,null,null,null,null,null,null,null,null,null,null,null,null,null,null,null,null,null,null,null,null,null,null,null,null,null,null,1]
[null,null,null,null,null,"4-2",null,"維持管理対策等級（共用配管）",null,null,null,null,null,null,null,null,null,null,null,null,null,null,null,null,null,null,null,null,null,null,null,null,null,null,null,"a"]
[null,null,null,null,null,"4-3",null,"更新対策（共用排水管）",null,null,null,null,null,null,null,null,null,null,null,null,null,null,null,null,null,null,null,null,null,null,null,null,null,null,null,"a"]
[null,null,null,null,null,null,null,null,null,null,null,null,null,null,null,null,null,null,null,null,null,null,null,null,null,null,null,null,null,null,null,null,null,null,null,1]
[null,null,null,null,null,null,null,null,null,null,null,null,null,null,null,null,null,null,null,null,null,null,null,null,null,null,null,null,null,null,null,null,null,null,null,1]
[null,null,"１．構造の安定に関すること",null,null,null,null,null,null,null,null,null,null,null,null,null,null,null,null,null,null,null,null,null,null,null,null,null,null,null,null,null,null,null,null,1]
[null,null,null,null,{"$f":"入力シート!F41","v":"□"},"1-2",null,"耐震等級（構造躯体の損傷防止）",null,null,null,null,null,null,null,null,null,null,null,null,null,null,null,null,null,null,null,null,null,null,null,null,null,null,null,1]
[null,null,null,null,{"$f":"入力シート!F42","v":"□"},"1-4",null,"耐風等級（構造躯体の倒壊等防止及び損傷防止）",null,null,null,null,null,null,null,null,null,null,null,null,null,null,null,null,null,null,null,null,null,null,null,null,null,null,null,1]
[null,null,null,null,{"$f":"入力シート!F43","v":"□"},"1-5",null,"耐積雪等級（構造躯体の倒壊等防止及び損傷防止）",null,null,null,null,null,null,null,null,null,null,null,null,null,null,null,null,null,null,null,null,null,null,null,null,null,null,null,1]
[null,null,"２．火災時の安全に関すること",null,null,null,null,null,null,null,null,null,null,null,null,null,null,null,null,null,null,null,null,null,null,null,null,null,null,null,null,null,null,null,null,1]
[null,null,null,null,{"$f":"入力シート!F45","v":"□"},"2-1",null,"感知警報装置設置等級（自住戸火災時） ",null,null,null,null,null,null,null,null,null,null,null,null,null,null,null,null,null,null,null,null,null,null,null,null,null,null,null,1]
[null,null,null,null,{"$f":"入力シート!F46","v":"□"},"2-2",null,"感知警報装置設置等級（他住戸等火災時） ",null,null,null,null,null,null,null,null,null,null,null,null,null,null,null,null,null,null,null,null,null,null,null,null,null,null,null,"a"]
[null,null,null,null,{"$f":"入力シート!F47","v":"□"},"2-3",null,"避難安全対策（他住戸等火災時・共用廊下）",null,null,null,null,null,null,null,null,null,null,null,null,null,null,null,null,null,null,null,null,null,null,null,null,null,null,null,"a"]
[null,null,null,null,{"$f":"入力シート!F48","v":"□"},"2-4",null,"脱出対策（火災時）",null,null,null,null,null,null,null,null,null,null,null,null,null,null,null,null,null,null,null,null,null,null,null,null,null,null,null,1]
[null,null,null,null,{"$f":"入力シート!F49","v":"□"},"2-5",null,"耐火等級（延焼のおそれのある部分(開口部)）",null,null,null,null,null,null,null,null,null,null,null,null,null,null,null,null,null,null,null,null,null,null,null,null,null,null,null,1]
[null,null,null,null,{"$f":"入力シート!F50","v":"□"},"2-6",null,"耐火等級（延焼のおそれのある部分(開口部以外)）",null,null,null,null,null,null,null,null,null,null,null,null,null,null,null,null,null,null,null,null,null,null,null,null,null,null,null,1]
[null,null,null,null,{"$f":"入力シート!F51","v":"□"},"2-7",null,"耐火等級（界壁及び界床）",null,null,null,null,null,null,null,null,null,null,null,null,null,null,null,null,null,null,null,null,null,null,null,null,null,null,null,"a"]
[null,null,"４．維持管理・更新への配慮に関すること",null,null,null,null,null,null,null,null,null,null,null,null,null,null,null,null,null,null,null,null,null,null,null,null,null,null,null,null,null,null,null,null,"a"]
[null,null,null,null,{"$f":"入力シート!F53","v":"□"},"4-4",null,"更新対策（住戸専用部）",null,null,null,null,null,null,null,null,null,null,null,null,null,null,null,null,null,null,null,null,null,null,null,null,null,null,null,"a"]
[null,null,"５．温熱環境・エネルギー消費量に関すること",null,null,null,null,null,null,null,null,null,null,null,null,null,null,null,null,null,null,null,null,null,null,null,null,null,null,null,null,null,null,null,null,1]
[null,null,null,null,{"$f":"IF(OR(入力シート!G55=項目リスト!R3,入力シート!G55=項目リスト!R5),\"■\",\"□\")","v":"■"},"5-1",null,"断熱性能等級",null,null,null,null,null,null,null,null,null,null,null,null,null,null,null,null,null,null,null,null,null,null,null,null,null,null,null,1]
[null,null,null,null,{"$f":"IF(OR(入力シート!G55=項目リスト!R4,入力シート!G55=項目リスト!R5),\"■\",\"□\")","v":"□"},"5-2",null,"一次エネルギー消費量等級",null,null,null,null,null,null,null,null,null,null,null,null,null,null,null,null,null,null,null,null,null,null,null,null,null,null,null,1]
[null,null,"６．空気環境に関すること",null,null,null,null,null,null,null,null,null,null,null,null,null,null,null,null,null,null,null,null,null,null,null,null,null,null,null,null,null,null,null,null,1]
[null,null,null,null,{"$f":"入力シート!F57","v":"□"},"6-1",null,"ホルムアルデヒド対策（内装及び天井裏）",null,null,null,null,null,null,null,null,null,null,null,null,null,null,null,null,null,null,null,null,null,null,null,null,null,null,null,1]
[null,null,null,null,{"$f":"入力シート!F58","v":"□"},"6-2",null,"換気対策（居室の換気対策）（局所換気対策）",null,null,null,null,null,null,null,null,null,null,null,null,null,null,null,null,null,null,null,null,null,null,null,null,null,null,null,1]
[null,null,"７．光・視環境に関すること",null,null,null,null,null,null,null,null,null,null,null,null,null,null,null,null,null,null,null,null,null,null,null,null,null,null,null,null,null,null,null,null,1]
[null,null,null,null,{"$f":"入力シート!F63","v":"□"},"7-1",null,"単純開口率",null,null,null,null,null,null,null,null,null,null,null,null,null,null,null,null,null,null,null,null,null,null,null,null,null,null,null,1]
[null,null,null,null,{"$f":"入力シート!F64","v":"□"},"7-2",null,"方位別開口比",null,null,null,null,null,null,null,null,null,null,null,null,null,null,null,null,null,null,null,null,null,null,null,null,null,null,null,1]
[null,null,"８．音環境に関すること",null,null,null,null,null,null,null,null,null,null,null,null,null,null,null,null,null,null,null,null,null,null,null,null,null,null,null,null,null,null,null,null,1]
[null,null,null,null,{"$f":"入力シート!F66","v":"□"},"8-1",null,"重量床衝撃音対策",null,null,null,null,null,null,null,null,null,null,null,null,null,null,null,null,null,null,null,null,null,null,null,null,null,null,null,"a"]
[null,null,null,null,{"$f":"入力シート!F67","v":"□"},"8-2",null,"軽量床衝撃音対策",null,null,null,null,null,null,null,null,null,null,null,null,null,null,null,null,null,null,null,null,null,null,null,null,null,null,null,"a"]
[null,null,null,null,{"$f":"入力シート!F68","v":"□"},"8-3",null,"透過損失等級（界壁）",null,null,null,null,null,null,null,null,null,null,null,null,null,null,null,null,null,null,null,null,null,null,null,null,null,null,null,"a"]
[null,null,null,null,{"$f":"入力シート!F69","v":"□"},"8-4",null,"透過損失等級（外壁開口部）",null,null,null,null,null,null,null,null,null,null,null,null,null,null,null,null,null,null,null,null,null,null,null,null,null,null,null,1]
[null,null,"９．高齢者等への配慮に関すること",null,null,null,null,null,null,null,null,null,null,null,null,null,null,null,null,null,null,null,null,null,null,null,null,null,null,null,null,null,null,null,null,1]
[null,null,null,null,{"$f":"入力シート!F71","v":"□"},"9-1",null,"高齢者等配慮対策等級（専用部分）",null,null,null,null,null,null,null,null,null,null,null,null,null,null,null,null,null,null,null,null,null,null,null,null,null,null,null,1]
[null,null,null,null,{"$f":"入力シート!F72","v":"□"},"9-2",null,"高齢者等配慮対策等級（共用部分）",null,null,null,null,null,null,null,null,null,null,null,null,null,null,null,null,null,null,null,null,null,null,null,null,null,null,null,"a"]
[null,null,"10．防犯に関すること",null,null,null,null,null,null,null,null,null,null,null,null,null,null,null,null,null,null,null,null,null,null,null,null,null,null,null,null,null,null,null,null,1]
[null,null,null,null,{"$f":"入力シート!F74","v":"□"},"10-1",null,"開口部の侵入防止対策",null,null,null,null,null,null,null,null,null,null,null,null,null,null,null,null,null,null,null,null,null,null,null,null,null,null,null,1]
[null,null,null,null,null,null,null,null,null,null,null,null,null,null,null,null,null,null,null,null,null,null,null,null,null,null,null,null,null,null,null,null,null,null,null,1]
[null,null,null,null,null,null,null,null,null,null,null,null,null,null,null,null,null,null,null,null,null,null,null,null,null,null,null,null,null,null,null,null,null,null,null,1]
[null,null,null,null,null,null,null,null,null,null,null,null,null,null,null,"（第三面）",null,null,null,null,null,null,null,null,null,null,null,null,null,null,null,null,null,null,null,1]
[null,null,null,null,null,null,null,null,null,null,null,null,null,null,null,null,null,null,null,null,null,null,null,null,null,null,null,null,null,null,null,null,null,null,null,1]
["建築物に関する事項",null,null,null,null,null,null,null,null,null,null,null,null,null,null,null,null,null,null,null,null,null,null,null,null,null,null,null,null,null,null,null,null,null,null,1]
["【１．地名地番】",null,null,null,null,null,null,null,null,null,null,null,null,null,null,null,null,null,null,null,null,null,null,null,null,null,null,null,null,null,null,null,null,null,null,1]
[null,{"$f":"IF(入力シート!B152=\"\",I!B228,入力シート!B152)","v":0},null,null,null,null,null,null,null,null,null,null,null,null,null,null,null,null,null,null,null,null,null,null,null,null,null,null,null,null,null,null,null,null,null,1]
[null,null,null,null,null,null,null,null,null,null,null,null,null,null,null,null,null,null,null,null,null,null,null,null,null,null,null,null,null,null,null,null,null,null,null,1]
[null,null,null,null,null,null,null,null,null,null,null,null,null,null,null,null,null,null,null,null,null,null,null,null,null,null,null,null,null,null,null,null,null,null,null,1]
[null,null,null,null,null,null,null,null,null,null,null,null,null,null,null,null,null,null,null,null,null,null,null,null,null,null,null,null,null,null,null,null,null,null,null,1]
[null,null,null,null,null,null,null,null,null,null,null,null,null,null,null,null,null,null,null,null,null,null,null,null,null,null,null,null,null,null,null,null,null,null,null,1]
["【２．都市計画区域及び準都市計画区域の内外の別等】",null,null,null,null,null,null,null,null,null,null,null,null,null,null,null,null,null,null,null,null,null,null,null,null,null,null,null,null,null,null,null,null,null,null,1]
[null,{"$f":"IF(入力シート!B16=\"\",IF(I!AD237,\"■\",\"□\"),入力シート!B16)","v":"□"},"都市計画区域内（",null,null,null,null,null,{"$f":"IF(入力シート!I16=\"\",IF(I!AE237,\"■\",\"□\"),入力シート!I16)","v":"□"},"市街化区域",null,null,null,null,null,{"$f":"IF(入力シート!N16=\"\",IF(I!AF237,\"■\",\"□\"),入力シート!N16)","v":"□"},"市街化調整区域",null,null,null,null,null,null,{"$f":"IF(入力シート!T16=\"\",IF(I!AG237,\"■\",\"□\"),入力シート!T16)","v":"□"},"区域区分非設定）",null,null,null,null,null,null,null,null,null,null,1]
[null,{"$f":"IF(入力シート!B17=\"\",IF(I!AD238,\"■\",\"□\"),入力シート!B17)","v":"□"},"準都市計画区域内",null,null,null,null,null,null,null,null,null,null,null,null,null,null,null,null,null,null,null,null,null,null,null,null,null,null,null,null,null,null,null,null,1]
[null,{"$f":"IF(入力シート!B18=\"\",IF(I!AE238,\"■\",\"□\"),入力シート!B18)","v":"□"},"都市計画区域及び準都市計画区域外",null,null,null,null,null,null,null,null,null,null,null,null,null,null,null,null,null,null,null,null,null,null,null,null,null,null,null,null,null,null,null,null,1]
[null,null,null,null,null,null,null,null,null,null,null,null,null,null,null,null,null,null,null,null,null,null,null,null,null,null,null,null,null,null,null,null,null,null,null,1]
["【３．防火地域】",null,null,null,null,null,null,null,null,null,null,null,null,null,null,null,null,null,null,null,null,null,null,null,null,null,null,null,null,null,null,null,null,null,null,1]
[null,null,null,null,null,null,null,{"$f":"IF(入力シート!I157=\"\",IF(I!AD241,\"■\",\"□\"),入力シート!I157)","v":"□"},"防火地域",null,null,null,null,{"$f":"IF(入力シート!O157=\"\",IF(I!AE241,\"■\",\"□\"),入力シート!O157)","v":"□"},"準防火地域",null,null,null,null,null,{"$f":"IF(入力シート!V157=\"\",IF(I!AF241,\"■\",\"□\"),入力シート!V157)","v":"□"},"指定なし",null,null,null,null,null,null,null,null,null,null,null,null,null,1]
[null,null,null,null,null,null,null,null,null,null,null,null,null,null,null,null,null,null,null,null,null,null,null,null,null,null,null,null,null,null,null,null,null,null,null,1]
["【４．敷地面積】",null,null,null,null,null,null,null,null,null,null,null,null,null,null,null,null,null,null,null,null,null,null,null,null,null,null,null,null,null,null,null,null,null,null,1]
[null,null,null,null,null,null,null,{"$f":"IF(入力シート!I159=\"\",I!K259,入力シート!I159)","v":0},null,null,null,null,"㎡",null,null,null,null,null,null,null,null,null,null,null,null,null,null,null,null,null,null,null,null,null,null,1]
[null,null,null,null,null,null,null,null,null,null,null,null,null,null,null,null,null,null,null,null,null,null,null,null,null,null,null,null,null,null,null,null,null,null,null,1]
["【５．建て方】",null,null,null,null,null,null,null,null,null,null,null,null,null,null,null,null,null,null,null,null,null,null,null,null,null,null,null,null,null,null,null,null,null,null,1]
[null,null,null,null,null,null,null,{"$f":"入力シート!I28","v":"■"},"一戸建ての住宅",null,null,null,null,null,null,{"$f":"入力シート!Q28","v":"□"},"共同住宅等",null,null,null,null,null,null,null,null,null,null,null,null,null,null,null,null,null,null,1]
[null,null,null,null,null,null,null,null,null,null,null,null,null,null,null,null,null,null,null,null,null,null,null,null,null,null,null,null,null,null,null,null,null,null,null,1]
["【６．建築面積】",null,null,null,null,null,null,null,null,null,null,null,null,null,null,null,null,null,null,null,null,null,null,null,null,null,null,null,null,null,null,null,null,null,null,1]
[null,null,null,null,null,null,null,{"$f":"IF(入力シート!I161=\"\",I!W273,入力シート!I161)","v":0},null,null,null,null,"㎡",null,null,null,null,null,null,null,null,null,null,null,null,null,null,null,null,null,null,null,null,null,null,1]
[null,null,null,null,null,null,null,null,null,null,null,null,null,null,null,null,null,null,null,null,null,null,null,null,null,null,null,null,null,null,null,null,null,null,null,1]
["【７．延べ面積】",null,null,null,null,null,null,null,null,null,null,null,null,null,null,null,null,null,null,null,null,null,null,null,null,null,null,null,null,null,null,null,null,null,null,1]
[null,null,null,null,null,null,null,{"$f":"IF(入力シート!I163=\"\",I!W409,入力シート!I163)","v":0},null,null,null,null,"㎡",null,null,null,null,null,null,null,null,null,null,null,null,null,null,null,null,null,null,null,null,null,null,1]
[null,null,null,null,null,null,null,null,null,null,null,null,null,null,null,null,null,null,null,null,null,null,null,null,null,null,null,null,null,null,null,null,null,null,null,1]
["【８．住戸の数】",null,null,null,null,null,null,null,null,null,null,null,null,null,null,null,null,null,null,null,null,null,null,null,null,null,null,null,null,null,null,null,null,null,null,1]
[null,"【建物全体】",null,null,null,null,null,{"$f":"入力シート!I166","v":0},null,null,null,null,"戸",null,null,null,null,null,null,null,null,null,null,null,null,null,null,null,null,null,null,null,null,null,null,1]
[null,"【評価対象住戸】",null,null,null,null,null,{"$f":"入力シート!I167","v":0},null,null,null,null,"戸",null,null,null,null,null,null,null,null,null,null,null,null,null,null,null,null,null,null,null,null,null,null,1]
[null,null,null,null,null,null,null,null,null,null,null,null,null,null,null,null,null,null,null,null,null,null,null,null,null,null,null,null,null,null,null,null,null,null,null,1]
["【９．建築物の高さ等】",null,null,null,null,null,null,null,null,null,null,null,null,null,null,null,null,null,null,null,null,null,null,null,null,null,null,null,null,null,null,null,null,null,null,1]
[null,"【最高の高さ】",null,null,null,null,null,{"$f":"IF(入力シート!I170=\"\",I!K381,入力シート!I170)","v":0},null,null,null,null,"ｍ",null,null,null,null,null,null,null,null,null,null,null,null,null,null,null,null,null,null,null,null,null,null,1]
[null,"【最高の軒の高さ】",null,null,null,null,null,{"$f":"IF(入力シート!I171=\"\",I!K382,入力シート!I171)","v":0},null,null,null,null,"ｍ",null,null,null,null,null,null,null,null,null,null,null,null,null,null,null,null,null,null,null,null,null,null,1]
[null,null,null,null,null,null,null,null,null,null,null,null,null,null,null,null,null,null,null,null,null,null,null,null,null,null,null,null,null,null,null,null,null,null,null,1]
[null,"【階数】",null,null,null,null,null,"（地上）",null,null,{"$f":"IF(入力シート!I173=\"\",I!K375,入力シート!I173)","v":0},null,null,"階","（地下）",null,null,{"$f":"IF(入力シート!P173=\"\",I!K376,入力シート!P173)","v":0},null,null,"階",null,null,null,null,null,null,null,null,null,null,null,null,null,null,1]
[null,null,null,null,null,null,null,null,null,null,null,null,null,null,null,null,null,null,null,null,null,null,null,null,null,null,null,null,null,null,null,null,null,null,null,1]
[null,"【構造】",null,null,null,null,null,{"$f":"IF(入力シート!I175=\"\",I!C357,入力シート!I175)","v":0},null,null,null,null,null,null,"一部",null,{"$f":"IF(入力シート!R175=\"\",I!L357,入力シート!R175)","v":0},null,null,null,null,null,null,null,null,null,null,null,null,null,null,null,null,null,null,1]
[null,null,null,null,null,null,null,null,null,null,null,null,null,null,null,null,null,null,null,null,null,null,null,null,null,null,null,null,null,null,null,null,null,null,null,1]
["【10．利用関係】",null,null,null,null,null,null,null,null,null,null,null,null,null,null,null,null,null,null,null,null,null,null,null,null,null,null,null,null,null,null,null,null,null,null,1]
[null,null,null,null,null,null,null,{"$f":"入力シート!I177","v":"□"},"持家",null,null,{"$f":"入力シート!M177","v":"□"},"貸家",null,null,{"$f":"入力シート!Q177","v":"□"},"給与住宅",null,null,null,null,{"$f":"入力シート!W177","v":"□"},"分譲住宅",null,null,null,null,null,null,null,null,null,null,null,null,1]
[null,null,null,null,null,null,null,null,null,null,null,null,null,null,null,null,null,null,null,null,null,null,null,null,null,null,null,null,null,null,null,null,null,null,null,1]
["【11．その他必要な事項】",null,null,null,null,null,null,null,null,null,null,null,null,null,null,null,null,null,null,null,null,null,null,null,null,null,null,null,null,null,null,null,null,null,null,1]
[null,null,null,{"$f":"入力シート!I179","v":0},null,null,null,null,null,null,null,null,null,null,null,null,null,null,null,null,null,null,null,null,null,null,null,null,null,null,null,null,null,null,null,1]
[null,null,null,{"$f":"入力シート!I180","v":0},null,null,null,null,null,null,null,null,null,null,null,null,null,null,null,null,null,null,null,null,null,null,null,null,null,null,null,null,null,null,null,1]
["【12．備考】",null,null,null,null,null,null,null,null,null,null,null,null,null,null,null,null,null,null,null,null,null,null,null,null,null,null,null,null,null,null,null,null,null,null,1]
[null,"確認申請　受付番号",null,null,null,null,null,null,{"$f":"IF(入力シート!AJ8=0,0,入力シート!AK8)","v":0},null,null,null,null,null,null,null,null,null,null,null,null,null,null,null,null,null,null,null,null,null,null,null,null,null,null,1]
[null,"確認済証番号",null,null,null,null,null,null,{"$f":"IF(入力シート!AJ9=0,0,入力シート!AK9)","v":0},null,null,null,null,null,null,null,null,null,null,null,null,null,null,null,null,null,null,null,null,null,null,null,null,null,null,1]
[null,"【申請費確認項目】",null,null,null,null,null,null,null,null,null,null,null,null,null,null,null,null,null,null,null,null,null,null,null,null,null,null,null,null,null,null,null,null,null,1]
[null,null,"【当センターへの確認申請】",null,null,null,null,null,null,null,null,null,null,null,null,null,null,null,null,{"$f":"IF(OR(I214<>0,I215<>0),\"有り\",\"なし\")","v":"なし"},null,null,null,null,null,null,null,null,null,null,null,null,null,null,null,1]
[null,null,"【必須分野のうち１分野を除き等級１】",null,null,null,null,null,null,null,null,null,null,null,null,null,null,null,null,{"$f":"入力シート!R183","v":0},null,null,null,null,null,null,null,null,null,null,null,null,null,null,null,1]
[null,null,"【5-2　一次エネルギー消費量等級の評価】",null,null,null,null,null,null,null,null,null,null,null,null,null,null,null,null,{"$f":"入力シート!R184","v":0},null,null,null,null,null,null,null,null,null,null,null,null,null,null,null,1]
[null,null,"【国交省が認める面積を用いない外皮性能計算】",null,null,null,null,null,null,null,null,null,null,null,null,null,null,null,null,{"$f":"入力シート!R185","v":0},null,null,null,null,null,null,null,null,null,null,null,null,null,null,null,1]
[null,null,"【センターが指定するQRコードを用いた申請】",null,null,null,null,null,null,null,null,null,null,null,null,null,null,null,null,{"$f":"入力シート!R186","v":0},null,null,null,null,null,null,null,null,null,null,null,null,null,null,null,1]
[null,null,"【2種類以上の構造計算】",null,null,null,null,null,null,null,null,null,null,null,null,null,null,null,null,{"$f":"入力シート!R187","v":0},null,null,null,null,null,null,null,null,null,null,null,null,null,null,null,1]
[null,null,"【限界体力計算等の特殊な方法の構造計算】",null,null,null,null,null,null,null,null,null,null,null,null,null,null,null,null,{"$f":"入力シート!R188","v":0},null,null,null,null,null,null,null,null,null,null,null,null,null,null,null,1]
[null,null,"【液状化に関する情報提供】",null,null,null,null,null,null,null,null,null,null,null,null,null,null,null,null,{"$f":"入力シート!R189","v":0},null,null,null,null,null,null,null,null,null,null,null,null,null,null,null,1]
[null,null,null,null,null,null,null,null,null,null,null,null,null,null,null,null,null,null,null,null,null,null,null,null,null,null,null,null,null,null,null,null,null,null,null,1]
[null,null,null,null,null,null,null,null,null,null,null,null,null,null,null,null,null,null,null,null,null,null,null,null,null,null,null,null,null,null,null,null,null,null,null,1]
[null,null,null,null,null,null,null,null,null,"設計住宅性能評価申請チェックリスト",null,null,null,null,null,null,null,null,null,null,null,null,null,null,null,null,null,null,null,null,null,null,null,null,null,1]
[null,null,null,null,null,null,null,null,null,null,null,null,null,null,null,null,null,null,null,null,null,null,null,null,null,null,null,null,null,null,null,null,null,null,null,1]
[null,null,null,null,null,null,null,null,null,null,null,null,null,null,null,null,null,null,null,null,null,null,null,null,null,null,null,null,null,null,null,null,null,null,null,1]
["【地域情報】",null,null,null,null,null,null,null,null,null,null,null,null,null,null,null,null,null,null,null,null,null,null,null,null,null,null,null,null,null,null,null,null,null,null,1]
[null,null,"【都道府県名】",null,null,null,null,null,null,null,null,null,{"$f":"入力シート!I12","v":0},null,null,null,null,null,null,null,null,null,null,null,null,null,null,null,null,null,null,null,null,null,null,1]
[null,null,"【市町村名】",null,null,null,null,null,null,null,null,null,{"$f":"入力シート!I13","v":0},null,null,null,null,null,null,null,null,null,null,null,null,null,null,null,null,null,null,null,null,null,null,1]
[null,null,null,null,null,null,null,null,null,null,null,null,null,null,null,null,null,null,null,null,null,null,null,null,null,null,null,null,null,null,null,null,null,null,null,1]
[null,null,"【断熱地域区分】",null,null,null,null,null,null,null,null,null,{"$f":"IF(入力シート!AJ21=0,入力シート!M21,入力シート!M21&\"　(\"&入力シート!V21&\")\")&\"　地域\"","v":{"$error":"#N/A"}},null,null,null,null,null,null,null,null,null,null,null,null,{"$f":"IF(入力シート!AJ21=0,\"\",\"※カッコ内は参考値\")","v":{"$error":"#N/A"}},null,null,null,null,null,null,null,null,null,1]
[null,null,"【年間日射量地域区分】",null,null,null,null,null,null,null,null,null,{"$f":"IF(入力シート!AJ22=0,入力シート!M22,入力シート!M22&\"　(\"&入力シート!V22&\")\")&\"　区分\"","v":{"$error":"#N/A"}},null,null,null,null,null,null,null,null,null,null,null,null,{"$f":"IF(入力シート!AJ22=0,\"\",\"※カッコ内は参考値\")","v":{"$error":"#N/A"}},null,null,null,null,null,null,null,null,null,1]
[null,null,"【暖房期日射量地域区分】",null,null,null,null,null,null,null,null,null,{"$f":"IF(入力シート!AJ23=0,入力シート!M23,入力シート!M23&\"　(\"&入力シート!V23&\")\")&\"　区分\"","v":{"$error":"#N/A"}},null,null,null,null,null,null,null,null,null,null,null,null,{"$f":"IF(入力シート!AJ23=0,\"\",\"※カッコ内は参考値\")","v":{"$error":"#N/A"}},null,null,null,null,null,null,null,null,null,1]
[null,null,"【基準風速】",null,null,null,null,null,null,null,null,null,{"$f":"IF(入力シート!AJ24=0,入力シート!M24,入力シート!M24&\"　(\"&入力シート!V24&\")\")&\"　m/s\"","v":{"$error":"#N/A"}},null,null,null,null,null,null,null,null,null,null,null,null,{"$f":"IF(入力シート!AJ24=0,\"\",\"※カッコ内は参考値\")","v":{"$error":"#N/A"}},null,null,null,null,null,null,null,null,null,1]
[null,null,"【垂直積雪量】",null,null,null,null,null,null,null,null,null,{"$f":"IF(入力シート!AJ25=0,入力シート!M25,入力シート!M25&\"　(\"&入力シート!V25&\")\")&\"　cm\"","v":{"$error":"#N/A"}},null,null,null,null,null,{"$f":"入力シート!AA25","v":{"$error":"#N/A"}},null,null,null,null,null,null,{"$f":"IF(入力シート!AJ25=0,\"\",\"※カッコ内は参考値\")","v":{"$error":"#N/A"}},null,null,null,null,null,null,null,null,null,1]
[null,null,null,null,null,null,null,null,null,null,null,null,null,null,null,null,null,null,null,null,null,null,null,null,null,null,null,null,null,null,null,null,null,null,null,1]
["【設計住宅性能評価書 入手希望日】",null,null,null,null,null,null,null,null,null,null,null,null,null,null,null,null,null,null,null,null,null,null,null,null,null,null,null,null,null,null,null,null,null,null,1]
[null,{"$f":"IF(入力シート!I192=C241,\"■\",\"□\")","v":"□"},"決まっている",null,null,null,null,"入手希望日：",null,null,null,null,{"$f":"入力シート!K193","v":0},null,null,null,{"$f":"入力シート!O193","v":0},null,{"$f":"入力シート!Q193","v":0},null,"着工予定日：",null,null,null,null,{"$f":"入力シート!K194","v":0},null,null,null,{"$f":"入力シート!O194","v":0},null,{"$f":"入力シート!Q194","v":0},null,null,null,1]
[null,{"$f":"IF(入力シート!I192=C242,\"■\",\"□\")","v":"□"},"決まっていない",null,null,null,null,null,null,null,null,null,null,null,null,"年",null,"月",null,"日",null,null,null,null,null,null,null,null,"年",null,"月",null,"日",null,null,1]
[null,null,null,null,null,null,null,null,null,null,null,null,null,null,null,null,null,null,null,null,null,null,null,null,null,null,null,null,null,null,null,null,null,null,null,1]
[null,null,null,null,null,null,null,null,null,null,null,null,null,null,null,null,null,null,null,null,null,null,null,null,null,null,null,null,null,null,null,null,null,null,null,1]
["【設計内容問い合わせ先】",null,null,null,null,null,null,null,null,null,null,null,null,null,null,null,null,null,null,null,null,null,null,null,null,null,null,null,null,null,null,null,null,null,null,1]
[null,{"$f":"入力シート!I197","v":"□"},"設計者　　（ここにチェックしてもらった場合は、下記の記入は不要です。）",null,null,null,null,null,null,null,null,null,null,null,null,null,null,null,null,null,null,null,null,null,null,null,null,null,null,null,null,null,null,null,null,1]
[null,{"$f":"入力シート!I198","v":"□"},"その他",null,null,"氏名",null,null,null,{"$f":"入力シート!O198","v":0},null,null,null,null,null,null,null,null,null,null,null,null,null,null,null,null,null,null,null,null,null,null,null,null,null,1]
[null,null,null,null,null,null,null,null,null,null,null,null,null,null,null,null,null,null,null,null,null,null,null,null,null,null,null,null,null,null,null,null,null,null,null,1]
[null,null,null,null,null,null,"TEL",null,null,{"$f":"入力シート!O199","v":0},null,null,null,null,null,null,null,null,null,null,null,null,null,null,null,null,null,null,null,null,null,null,null,null,null,1]
[null,null,null,null,null,null,"FAX",null,null,{"$f":"入力シート!O200","v":0},null,null,null,null,null,null,null,null,null,null,null,null,null,null,null,null,null,null,null,null,null,null,null,null,null,1]
[null,null,null,null,null,null,"Email",null,null,{"$f":"入力シート!O201","v":0},null,null,null,null,null,null,null,null,null,null,null,null,null,null,null,null,null,null,null,null,null,null,null,null,null,1]
[null,null,null,null,null,null,null,null,null,null,null,null,null,null,null,null,null,null,null,null,null,null,null,null,null,null,null,null,null,null,null,null,null,null,null,1]
["（注意）",null,null,null,null,null,null,null,null,null,null,null,null,null,null,null,null,null,null,null,null,null,null,null,null,null,null,null,null,null,null,null,null,null,null,1]
["１．各面共通関係",null,null,null,null,null,null,null,null,null,null,null,null,null,null,null,null,null,null,null,null,null,null,null,null,null,null,null,null,null,null,null,null,null,null,1]
["数字は算用数字を、単位はメートル法を用いてください。",null,null,null,null,null,null,null,null,null,null,null,null,null,null,null,null,null,null,null,null,null,null,null,null,null,null,null,null,null,null,null,null,null,null,1]
["２．第一面関係",null,null,null,null,null,null,null,null,null,null,null,null,null,null,null,null,null,null,null,null,null,null,null,null,null,null,null,null,null,null,null,null,null,null,1]
["※印のある欄は記入しないでください。",null,null,null,null,null,null,null,null,null,null,null,null,null,null,null,null,null,null,null,null,null,null,null,null,null,null,null,null,null,null,null,null,null,null,1]
["３．第二面関係",null,null,null,null,null,null,null,null,null,null,null,null,null,null,null,null,null,null,null,null,null,null,null,null,null,null,null,null,null,null,null,null,null,null,1]
["①　申請者からの委任を受けて申請を代理で行う者がいる場合においては、２欄に記入してください。",null,null,null,null,null,null,null,null,null,null,null,null,null,null,null,null,null,null,null,null,null,null,null,null,null,null,null,null,null,null,null,null,null,null,1]
["②　申請者が２以上のときは、１欄には代表となる申請者のみについて記入し、別紙に他の申請者に\n　　ついてそれぞれ必要な事項を記入してください。",null,null,null,null,null,null,null,null,null,null,null,null,null,null,null,null,null,null,null,null,null,null,null,null,null,null,null,null,null,null,null,null,null,null,1]
["③　建築主が２以上のときは、３欄には代表となる建築主のみについて記入し、別紙に他の建築主に\n　　ついてそれぞれ必要な事項を記入して添えてください。",null,null,null,null,null,null,null,null,null,null,null,null,null,null,null,null,null,null,null,null,null,null,null,null,null,null,null,null,null,null,null,null,null,null,1]
["④　４欄の郵便番号、所在地及び電話番号には、設計者が建築士事務所に属しているときはそれぞれ\n　　建築士事務所のものを、設計者が建築士事務所に属してないときはそれぞれ設計者のもの（所在\n　　地は住所とします。）を書いてください。",null,null,null,null,null,null,null,null,null,null,null,null,null,null,null,null,null,null,null,null,null,null,null,null,null,null,null,null,null,null,null,null,null,null,1]
["⑤　５欄は、必須評価事項以外で設計住宅性能評価を希望する性能表示事項を記入してください。",null,null,null,null,null,null,null,null,null,null,null,null,null,null,null,null,null,null,null,null,null,null,null,null,null,null,null,null,null,null,null,null,null,null,1]
["４．第三面関係",null,null,null,null,null,null,null,null,null,null,null,null,null,null,null,null,null,null,null,null,null,null,null,null,null,null,null,null,null,null,null,null,null,null,1]
["①　１欄は、住居表示が定まっていないときは、地名地番を記入してください。",null,null,null,null,null,null,null,null,null,null,null,null,null,null,null,null,null,null,null,null,null,null,null,null,null,null,null,null,null,null,null,null,null,null,1]
["②　２欄は、該当するチェックボックスに「レ」マークを入れてください。だだし、建築物の敷地が\n　　都市計画区域、準都市計画区域又はこれらの区域以外の区域のうち２以上の区域にわた\n　　る場合においては、当該敷地の過半の属する区域について記入してください。なお、当該\n　　敷地が３の区域にわたる場合で、かつ、当該敷地の過半の属する区域がない場合におい\n　　ては、都市計画区域又は準都市計画区域のうち、当該敷地の属する面積が大きい区域に\n　　ついて記入してください。",null,null,null,null,null,null,null,null,null,null,null,null,null,null,null,null,null,null,null,null,null,null,null,null,null,null,null,null,null,null,null,null,null,null,1]
["③　３欄は、該当するチェックボックスに「レ」マークを入れてください。なお、建築物の敷地が\n　　防火地域、準防火地域又は指定のない区域のうち２以上の地域又は区域にわたるとき\n　　は、それぞれの地域又は区域について記入してください。",null,null,null,null,null,null,null,null,null,null,null,null,null,null,null,null,null,null,null,null,null,null,null,null,null,null,null,null,null,null,null,null,null,null,1]
["④　10欄の「利用関係」は、該当するチェックボックスに「レ」マークを入れてください。なお、\n　　利用関係が未定のときは、予定する利用関係としてください。また、「持家」、「貸家」、\n　　「給与住宅」、「分譲住宅」とは、次のとおりです。",null,null,null,null,null,null,null,null,null,null,null,null,null,null,null,null,null,null,null,null,null,null,null,null,null,null,null,null,null,null,null,null,null,null,1]
["イ．持家　建築主が自ら居住する目的で建築する住宅",null,null,null,null,null,null,null,null,null,null,null,null,null,null,null,null,null,null,null,null,null,null,null,null,null,null,null,null,null,null,null,null,null,null,1]
["ロ．貸家　建築主が賃貸する目的で建築する住宅",null,null,null,null,null,null,null,null,null,null,null,null,null,null,null,null,null,null,null,null,null,null,null,null,null,null,null,null,null,null,null,null,null,null,1]
["ハ．給与住宅　会社、官公署等がその社員、職員等を居住させる目的で建築する住宅",null,null,null,null,null,null,null,null,null,null,null,null,null,null,null,null,null,null,null,null,null,null,null,null,null,null,null,null,null,null,null,null,null,null,1]
["ニ．分譲住宅　建売り又は分譲の目的で建築する住宅",null,null,null,null,null,null,null,null,null,null,null,null,null,null,null,null,null,null,null,null,null,null,null,null,null,null,null,null,null,null,null,null,null,null,1]
["⑥　変更設計住宅性能評価に係る申請の際は、12欄に第三面に係る部分の変更の概要について記入\n　　してください。",null,null,null,null,null,null,null,null,null,null,null,null,null,null,null,null,null,null,null,null,null,null,null,null,null,null,null,null,null,null,null,null,null,null,1]
["５．第四面関係",null,null,null,null,null,null,null,null,null,null,null,null,null,null,null,null,null,null,null,null,null,null,null,null,null,null,null,null,null,null,null,null,null,null,1]
["①　１欄は、住戸の数が１のときは「１」と記入し、住戸の数が２以上のときは、申請住戸ごとに\n　　通し番号を付し、その番号を記入してください。",null,null,null,null,null,null,null,null,null,null,null,null,null,null,null,null,null,null,null,null,null,null,null,null,null,null,null,null,null,null,null,null,null,null,1]
["②　４欄及び５欄は、該当するチェックボックスに「レ」マークを入れてください。",null,null,null,null,null,null,null,null,null,null,null,null,null,null,null,null,null,null,null,null,null,null,null,null,null,null,null,null,null,null,null,null,null,null,1]
["③　ここに書き表せない事項で、評価に当たり特に注意を要する事項は、６欄又は別紙に記載して添\n　　えてください。",null,null,null,null,null,null,null,null,null,null,null,null,null,null,null,null,null,null,null,null,null,null,null,null,null,null,null,null,null,null,null,null,null,null,1]
["④　変更設計住宅性能評価に係る申請の際は、７欄に第四面に係る部分の変更の概要について記入し\n　　てください。",null,null,null,null,null,null,null,null,null,null,null,null,null,null,null,null,null,null,null,null,null,null,null,null,null,null,null,null,null,null,null,null,null,null,1]
["備考",null,null,null,null,null,null,null,null,null,null,null,null,null,null,null,null,null,null,null,null,null,null,null,null,null,null,null,null,null,null,null,null,null,null,1]
["１　この用紙の大きさは、日本産業規格Ａ４としてください。",null,null,null,null,null,null,null,null,null,null,null,null,null,null,null,null,null,null,null,null,null,null,null,null,null,null,null,null,null,null,null,null,null,null,1]
["２　第二面から第四面までについては、建築確認等他の制度の申請書の写しに必要事項を補うこと\n　　、複数の住戸に関する情報を集約して記載すること等により記載すべき事項のすべてが明示さ\n　　れた別の書面をもって代えることができます。",null,null,null,null,null,null,null,null,null,null,null,null,null,null,null,null,null,null,null,null,null,null,null,null,null,null,null,null,null,null,null,null,null,null,1]
["３　共同住宅等に係る設計住宅性能評価の申請にあっては、第四面を申請に係る住戸ごとに作成し\n　　た場合、この申請書を共同住宅等一棟又は複数の住戸につき一部とすることができます。　",null,null,null,null,null,null,null,null,null,null,null,null,null,null,null,null,null,null,null,null,null,null,null,null,null,null,null,null,null,null,null,null,null,null,1]
[null,null,null,null,null,null,null,null,null,null,null,null,null,null,null,null,null,null,null,null,null,null,null,null,null,null,null,null,null,null,null,null,null,null,null,1]

{"sheet":"★建設評価","index":3,"n_rows":289,"n_cols":36,"rows_kept":289,"cut":false,"hidden":false,"merged":[[268,0,268,33],[254,2,254,7],[254,8,254,31],[255,2,255,7],[262,2,262,7],[262,8,262,31],[258,2,258,7],[258,8,258,31],[259,2,259,7],[259,8,259,31],[260,2,260,7],[260,8,260,31],[255,8,255,31],[269,0,269,33],[270,0,270,33],[271,0,271,33],[261,2,261,7],[168,5,168,6],[192,9,192,23],[88,26,88,30],[60,15,60,18],[71,10,71,11],[68,9,68,16],[117,11,117,33],[146,5,146,6],[147,5,147,6],[139,5,139,6],[140,5,140,6],[151,5,151,6],[152,5,152,6],[121,15,121,18],[133,5,134,11],[156,5,156,6],[165,5,165,6],[148,5,148,6],[150,5,150,6],[261,8,261,31],[287,0,287,33],[288,0,288,33],[272,0,272,33],[273,0,273,33],[274,0,274,33],[275,0,275,33],[276,0,276,33],[277,0,277,33],[281,0,281,33],[282,0,282,33],[283,0,283,33],[284,0,284,33],[285,0,285,33],[286,0,286,33],[280,0,280,33],[278,0,278,33],[279,0,279,33],[37,14,37,21],[99,18,99,21],[99,27,99,31],[80,2,80,8],[76,9,76,31],[72,9,72,21],[73,10,73,11],[39,23,39,31],[110,9,110,31],[109,9,109,12],[101,9,101,12],[102,9,102,31],[103,9,103,16],[93,9,93,31],[94,9,94,16],[88,10,88,11],[90,10,90,11],[90,18,90,21],[90,27,90,31],[75,9,75,12],[92,9,92,12],[106,9,106,21],[97,10,97,11],[88,17,88,21],[63,9,63,31],[64,9,64,31],[65,9,65,31],[67,9,67,31],[73,18,73,21],[73,27,73,31],[80,9,80,31],[81,9,81,31],[82,9,82,31],[83,9,83,12],[84,9,84,31],[85,9,85,16],[66,9,66,12],[77,9,77,16],[74,9,74,31],[251,2,251,7],[251,8,251,31],[252,2,252,7],[252,8,252,31],[111,9,111,16],[177,5,177,6],[158,5,158,6],[171,5,171,6],[89,9,89,21],[91,9,91,31],[142,5,142,6],[153,5,153,6],[154,5,154,6],[135,5,135,6],[136,5,136,6],[99,10,99,11],[172,5,172,6],[173,5,173,6],[253,2,253,7],[253,8,253,31],[137,5,137,6],[107,16,107,22],[107,25,107,29],[195,13,195,14],[195,16,195,17],[204,10,204,11],[204,13,204,14],[204,16,204,17],[118,1,118,33],[119,1,119,33],[138,5,138,6],[169,5,169,6],[174,5,174,6],[176,5,176,6],[179,5,179,6],[182,15,182,18],[186,1,189,32],[155,5,155,6],[160,5,160,6],[161,5,161,6],[163,5,163,6],[164,5,164,6],[0,30,1,31],[0,32,1,33],[12,25,12,26],[12,28,12,29],[12,31,12,32],[25,0,28,33],[6,9,7,24],[71,17,71,21],[71,26,71,30],[56,1,57,3],[56,4,57,6],[56,7,57,11],[31,12,31,21],[31,23,31,31],[33,14,33,21],[33,23,33,31],[17,23,17,32],[56,27,57,29],[54,17,54,28],[56,30,57,32],[63,2,63,8],[37,23,37,31],[18,23,18,32],[10,0,10,34],[141,5,141,6],[219,20,219,31],[217,10,217,11],[217,13,217,14],[217,16,217,17],[97,17,97,21],[97,26,97,30],[98,9,98,21],[100,9,100,31],[108,9,108,31],[219,13,219,14],[219,16,219,17],[210,10,210,11],[210,13,210,14],[210,16,210,17],[213,10,213,11],[213,13,213,14],[213,16,213,17],[216,10,216,11],[216,13,216,14],[216,16,216,17],[223,16,223,17],[218,10,218,11],[218,13,218,14],[218,16,218,17],[219,10,219,11],[195,10,195,11],[220,20,220,31],[221,20,221,31],[222,20,222,31],[223,20,223,31],[220,10,220,11],[220,13,220,14],[220,16,220,17],[221,10,221,11],[221,13,221,14],[221,16,221,17],[222,10,222,11],[222,13,222,14],[222,16,222,17],[223,10,223,11],[223,13,223,14],[216,20,216,31],[217,20,217,31],[218,20,218,31],[247,2,247,7],[247,8,247,31],[227,1,227,33],[228,1,228,33],[235,1,235,33],[236,1,236,33],[242,8,242,31],[242,2,242,7],[243,2,243,7],[243,8,243,31],[244,2,244,7],[244,8,244,31],[245,2,245,7],[245,8,245,31],[246,2,246,7],[246,8,246,31],[239,9,240,24]]}
["様式Ｃ-評-8号",null,null,null,null,null,null,null,null,null,null,null,null,null,null,null,null,null,null,null,null,null,null,null,null,null,null,null,null,null,"正",null,"副",null,null,1]
[null,null,null,null,null,null,null,null,null,null,null,null,null,null,null,null,null,null,null,null,null,null,null,null,null,null,null,null,null,null,null,null,null,null,null,1]
[null,null,null,null,null,null,null,null,null,null,null,null,null,null,null,null,null,null,null,null,null,null,null,null,null,null,null,null,null,null,null,null,null,null,null,1]
[null,null,null,null,null,null,null,null,null,null,null,null,null,null,null,null,null,null,null,null,null,null,null,null,null,null,null,null,null,null,null,null,null,null,null,1]
[null,null,null,null,null,null,null,null,null,null,null,null,null,null,null,null,null,null,null,null,null,null,null,null,null,null,null,null,null,null,null,null,null,null,null,1]
[null,null,null,null,null,null,null,null,null,null,null,null,null,null,null,null,null,null,null,null,null,null,null,null,null,null,null,null,null,null,null,null,null,null,null,1]
[null,null,null,null,null,null,null,null,null,"建設住宅性能評価申請書（新築住宅）",null,null,null,null,null,null,null,null,null,null,null,null,null,null,null,null,null,null,null,null,null,null,null,null,null,1]
[null,null,null,null,null,null,null,null,null,null,null,null,null,null,null,null,null,null,null,null,null,null,null,null,null,null,null,null,null,null,null,null,null,null,null,1]
[null,null,null,null,null,null,null,null,null,null,null,null,null,null,null,null,null,null,null,null,null,null,null,null,null,null,null,null,null,null,null,null,null,null,null,1]
[null,null,null,null,null,null,null,null,null,null,null,null,null,null,null,null,null,null,null,null,null,null,null,null,null,null,null,null,null,null,null,null,null,null,null,1]
["（第一面）",null,null,null,null,null,null,null,null,null,null,null,null,null,null,null,null,null,null,null,null,null,null,null,null,null,null,null,null,null,null,null,null,null,null,1]
[null,null,null,null,null,null,null,null,null,null,null,null,null,null,null,null,null,null,null,null,null,null,null,null,null,null,null,null,null,null,null,null,null,null,null,1]
[null,null,null,null,null,null,null,null,null,null,null,null,null,null,null,null,null,null,null,null,null,null,null,null,null,{"$f":"入力シート!K80","v":0},null,"年",{"$f":"入力シート!O80","v":0},null,"月",{"$f":"入力シート!Q80","v":0},null,"日",null,1]
[null,"一般財団法人 愛知県建築住宅センター 理事長　様",null,null,null,null,null,null,null,null,null,null,null,null,null,null,null,null,null,null,null,null,null,null,null,null,null,null,null,null,null,null,null,null,null,1]
[null,null,null,null,null,null,null,null,null,null,null,null,null,null,null,null,null,null,null,null,null,null,null,null,null,null,null,null,null,null,null,null,null,null,null,1]
[null,null,null,null,null,null,null,null,null,null,null,null,null,null,null,null,null,null,null,null,null,null,null,null,null,null,null,null,null,null,null,null,null,null,null,1]
[null,null,null,null,null,null,null,null,null,null,null,null,null,null,null,null,null,null,null,null,null,null,null,null,null,null,null,null,null,null,null,null,null,null,null,1]
[null,null,null,null,null,null,null,null,null,null,null,null,null,null,null,null,null,null,null,null,null,"申請者の氏名又は名称",null,{"$f":"J65","v":0},null,null,null,null,null,null,null,null,null,null,null,1]
[null,null,null,null,null,null,null,null,null,null,null,null,null,null,null,null,null,null,null,null,null,"代表者の氏名",null,{"$f":"J66","v":0},null,null,null,null,null,null,null,null,null,null,null,1]
[null,null,null,null,null,null,null,null,null,null,null,null,null,null,null,null,null,null,null,null,null,null,null,null,null,null,null,null,null,null,null,null,null,null,null,1]
[null,null,null,null,null,null,null,null,null,null,null,null,null,null,null,null,null,null,null,null,null,null,null,null,null,null,null,null,null,null,null,null,null,null,null,1]
[null,null,null,null,null,null,null,null,null,null,null,null,null,null,null,null,null,null,null,null,null,null,null,null,null,null,null,null,null,null,null,null,null,null,null,1]
[null,null,null,null,null,null,null,null,null,null,null,null,null,null,null,null,null,null,null,null,null,null,null,null,null,null,null,null,null,null,null,null,null,null,null,1]
[null,null,null,null,null,null,null,null,null,null,null,null,null,null,null,null,null,null,null,null,null,null,null,null,null,null,null,null,null,null,null,null,null,null,null,1]
[null,null,null,null,null,null,null,null,null,null,null,null,null,null,null,null,null,null,null,null,null,null,null,null,null,null,null,null,null,null,null,null,null,null,null,1]
["　住宅の品質確保の促進等に関する法律第５条第１項の規定に基づき、建設住宅性能評価を申請します。この申請書及び添付図書に記載の事項は、事実に相違ありません。",null,null,null,null,null,null,null,null,null,null,null,null,null,null,null,null,null,null,null,null,null,null,null,null,null,null,null,null,null,null,null,null,null,null,1]
[null,null,null,null,null,null,null,null,null,null,null,null,null,null,null,null,null,null,null,null,null,null,null,null,null,null,null,null,null,null,null,null,null,null,null,1]
[null,null,null,null,null,null,null,null,null,null,null,null,null,null,null,null,null,null,null,null,null,null,null,null,null,null,null,null,null,null,null,null,null,null,null,1]
[null,null,null,null,null,null,null,null,null,null,null,null,null,null,null,null,null,null,null,null,null,null,null,null,null,null,null,null,null,null,null,null,null,null,null,1]
[null,null,null,null,null,null,null,null,null,null,null,null,null,null,null,null,null,null,null,null,null,null,null,null,null,null,null,null,null,null,null,null,null,null,null,1]
[null,null,null,null,null,null,null,null,null,null,null,null,null,null,null,null,null,null,null,null,null,null,null,null,null,null,null,null,null,null,null,null,null,null,null,1]
[null,null,null,null,null,null,null,null,null,null,null,null,"工事施工者の氏名又は名称",null,null,null,null,null,null,null,null,null,null,{"$f":"J109","v":0},null,null,null,null,null,null,null,null,null,null,null,1]
[null,null,null,null,null,null,null,null,null,null,null,null,null,null,null,null,null,null,null,null,null,null,null,null,null,null,null,null,null,null,null,null,null,null,null,1]
[null,null,null,null,null,null,null,null,null,null,null,null,null,null,"代表者の氏名",null,null,null,null,null,null,null,null,{"$f":"J107","v":0},null,null,null,null,null,null,null,null,null,null,null,1]
[null,null,null,null,null,null,null,null,null,null,null,null,null,null,null,null,null,null,null,null,null,null,null,null,null,null,null,null,null,null,null,null,null,null,null,1]
[null,null,null,null,null,null,null,null,null,null,null,null,null,null,null,null,null,null,null,null,null,null,null,null,null,null,null,null,null,null,null,null,null,null,null,1]
[null,null,null,null,null,null,null,null,null,null,null,null,null,null,null,null,null,null,null,null,null,null,null,null,null,null,null,null,null,null,null,null,null,null,null,1]
[null,null,null,null,null,null,null,null,null,null,null,null,null,null,"工事監理者の氏名",null,null,null,null,null,null,null,null,{"$f":"J101","v":0},null,null,null,null,null,null,null,null,null,null,null,1]
[null,null,null,null,null,null,null,null,null,null,null,null,null,null,null,null,null,null,null,null,null,null,null,null,null,null,null,null,null,null,null,null,null,null,null,1]
[null,null,null,null,null,null,null,null,null,null,null,null,null,null,null,null,null,null,null,null,null,null,null,{"$f":"J99","v":0},null,null,null,null,null,null,null,null,null,null,null,1]
[null,null,null,null,null,null,null,null,null,null,null,null,null,null,null,null,null,null,null,null,null,null,null,null,null,null,null,null,null,null,null,null,null,null,null,1]
[null,null,null,null,null,null,null,null,null,null,null,null,null,null,null,null,null,null,null,null,null,null,null,null,null,null,null,null,null,null,null,null,null,null,null,1]
[null,null,null,null,null,null,null,null,null,null,null,null,null,null,null,null,null,null,null,null,null,null,null,null,null,null,null,null,null,null,null,null,null,null,null,1]
[null,null,null,null,null,null,null,null,null,null,null,null,null,null,null,null,null,null,null,null,null,null,null,null,null,null,null,null,null,null,null,null,null,null,null,1]
[null,null,null,null,null,null,null,null,null,null,null,null,null,null,null,null,null,null,null,null,null,null,null,null,null,null,null,null,null,null,null,null,null,null,null,1]
[null,null,null,null,null,null,null,null,null,null,null,null,null,null,null,null,null,null,null,null,null,null,null,null,null,null,null,null,null,null,null,null,null,null,null,1]
[null,null,null,null,null,null,null,null,null,null,null,null,null,null,null,null,null,null,null,null,null,null,null,null,null,null,null,null,null,null,null,null,null,null,null,1]
[null,"※受付欄",null,null,null,null,null,null,null,null,null,null,null,null,null,null,null,"※料金欄",null,null,null,null,null,null,null,null,null,null,null,null,null,null,null,null,null,1]
[null,null,null,null,null,null,null,null,null,null,null,null,null,null,null,null,null,null,null,null,null,null,null,null,null,null,null,null,null,null,null,null,null,null,null,1]
[null,null,null,null,null,null,null,null,null,null,null,null,null,null,null,null,null,null,null,null,null,null,null,null,null,null,null,null,null,null,null,null,null,null,null,1]
[null,null,null,null,null,null,null,null,null,null,null,null,null,null,null,null,null,null,null,null,null,null,null,null,null,null,null,null,null,null,null,null,null,null,null,1]
[null,null,null,null,null,null,null,null,null,null,null,null,null,null,null,null,null,null,null,null,null,null,null,null,null,null,null,null,null,null,null,null,null,null,null,1]
[null,null,null,null,null,null,null,null,null,null,null,null,null,null,null,null,null,null,null,null,null,null,null,null,null,null,null,null,null,null,null,null,null,null,null,1]
[null,null,null,null,null,null,null,null,null,null,null,null,null,null,null,null,null,null,null,null,null,null,null,null,null,null,null,null,null,null,null,null,null,null,null,1]
[null,null,null,null,null,null,null,null,null,"申請受理者氏名",null,null,null,null,null,null,null,{"$f":"入力シート!AM16","v":{"$error":"#N/A"}},null,null,null,null,null,null,null,null,null,null,null,null,null,null,null,null,null,1]
[null,null,null,null,null,null,null,null,null,null,null,null,null,null,null,null,null,null,null,null,null,null,null,null,null,null,null,null,null,null,null,null,null,null,null,1]
[null,"受領\n月日",null,null,"／",null,null,"受領者氏名\n連絡先",null,null,null,null,null,null,null,null,null,null,null,null,null,null,null,null,null,null,null,"受領者",null,null,null,null,null,null,null,1]
[null,null,null,null,null,null,null,null,null,null,null,null,null,"TEL（　　　　　　）　　　　　　－",null,null,null,null,null,null,null,null,null,null,null,null,null,null,null,null,null,null,null,null,null,1]
[null,null,null,null,null,null,null,null,null,null,null,null,null,null,null,null,null,null,null,null,null,null,null,null,null,null,null,null,null,null,null,null,null,null,null,1]
[null,null,null,null,null,null,null,null,null,null,null,null,null,null,null,null,null,null,null,null,null,null,null,null,null,null,null,null,null,null,null,null,null,null,null,1]
[null,null,null,null,null,null,null,null,null,null,null,null,null,null,null,"（第二面）",null,null,null,null,null,null,null,null,null,null,null,null,null,null,null,null,null,null,null,1]
[null,null,null,null,null,null,null,null,null,null,null,null,null,null,null,null,null,null,null,null,null,null,null,null,null,null,null,null,null,null,null,null,null,null,null,1]
["【１．申請者】",null,null,null,null,null,null,null,null,null,null,null,null,null,null,null,null,null,null,null,null,null,null,null,null,null,null,null,null,null,null,null,null,null,null,1]
[null,null,"【氏名又は名称のフリガナ】",null,null,null,null,null,null,{"$f":"IF(入力シート!I212=\"\",J81,入力シート!I212)","v":0},null,null,null,null,null,null,null,null,null,null,null,null,null,null,null,null,null,null,null,null,null,null,null,null,null,1]
[null,null,"【氏名又は名称】",null,null,null,null,null,null,{"$f":"IF(入力シート!I213=\"\",J82,入力シート!I213)","v":0},null,null,null,null,null,null,null,null,null,null,null,null,null,null,null,null,null,null,null,null,null,null,null,null,null,1]
[null,null,null,null,null,null,null,null,null,{"$f":"IF(入力シート!I214=\"\",J83,入力シート!I214)","v":0},null,null,null,null,null,null,null,null,null,null,null,null,null,null,null,null,null,null,null,null,null,null,null,null,null,1]
[null,null,"【郵便番号】",null,null,null,null,null,null,{"$f":"IF(入力シート!I215=\"\",J84,入力シート!I215)","v":0},null,null,null,null,null,null,null,null,null,null,null,null,null,null,null,null,null,null,null,null,null,null,null,null,null,1]
[null,null,"【住所】",null,null,null,null,null,null,{"$f":"IF(入力シート!I216=\"\",J85,入力シート!I216)","v":0},null,null,null,null,null,null,null,null,null,null,null,null,null,null,null,null,null,null,null,null,null,null,null,null,null,1]
[null,null,"【電話番号】",null,null,null,null,null,null,{"$f":"IF(入力シート!I217=\"\",J86,入力シート!I217)","v":0},null,null,null,null,null,null,null,null,null,null,null,null,null,null,null,null,null,null,null,null,null,null,null,null,null,1]
[null,null,null,null,null,null,null,null,null,null,null,null,null,null,null,null,null,null,null,null,null,null,null,null,null,null,null,null,null,null,null,null,null,null,null,1]
["【２．代理者】",null,null,null,null,null,null,null,null,null,null,null,null,null,null,null,null,null,null,null,null,null,null,null,null,null,null,null,null,null,null,null,null,null,null,1]
[null,null,"【資格】",null,null,null,null,null,null,"（",{"$f":"CHOOSE(入力シート!$AJ$220,I!J30,★設計評価!K72,入力シート!J220)","v":0},null,"）建築士",null,null,null,"（",{"$f":"CHOOSE(入力シート!$AJ$220,I!P30,★設計評価!R72,入力シート!P220)","v":0},null,null,null,null,"）登録第",null,null,null,{"$f":"CHOOSE(入力シート!$AJ$220,I!W30,★設計評価!AA72,入力シート!W220)","v":0},null,null,null,null,"号",null,null,null,1]
[null,null,"【氏名】",null,null,null,null,null,null,{"$f":"CHOOSE(入力シート!$AJ$220,I!I31,★設計評価!J73,入力シート!I221)","v":0},null,null,null,null,null,null,null,null,null,null,null,null,null,null,null,null,null,null,null,null,null,null,null,null,null,1]
[null,null,"【建築士事務所名】",null,null,null,null,null,null,"（",{"$f":"CHOOSE(入力シート!$AJ$220,I!J32,★設計評価!K74,入力シート!J222)","v":0},null,"）建築士事務所",null,null,null,null,"（",{"$f":"CHOOSE(入力シート!$AJ$220,I!Q32,★設計評価!S74,入力シート!Q222)","v":0},null,null,null,"）知事登録第",null,null,null,null,{"$f":"CHOOSE(入力シート!$AJ$220,I!X32,★設計評価!AB74,入力シート!X222)","v":0},null,null,null,null,"号",null,null,1]
[null,null,null,null,null,null,null,null,null,{"$f":"CHOOSE(入力シート!$AJ$220,I!I33,★設計評価!J75,入力シート!I223)","v":0},null,null,null,null,null,null,null,null,null,null,null,null,null,null,null,null,null,null,null,null,null,null,null,null,null,1]
[null,null,"【郵便番号】",null,null,null,null,null,null,{"$f":"CHOOSE(入力シート!$AJ$220,I!I34,★設計評価!J76,入力シート!I224)","v":0},null,null,null,null,null,null,null,null,null,null,null,null,null,null,null,null,null,null,null,null,null,null,null,null,null,1]
[null,null,"【所在地】",null,null,null,null,null,null,{"$f":"CHOOSE(入力シート!$AJ$220,I!I35,★設計評価!J77,入力シート!I225)","v":0},null,null,null,null,null,null,null,null,null,null,null,null,null,null,null,null,null,null,null,null,null,null,null,null,null,1]
[null,null,"【電話番号】",null,null,null,null,null,null,{"$f":"CHOOSE(入力シート!$AJ$220,I!I36,★設計評価!J78,入力シート!I226)","v":0},null,null,null,null,null,null,null,null,null,null,null,null,null,null,null,null,null,null,null,null,null,null,null,null,null,1]
[null,null,null,null,null,null,null,null,null,null,null,null,null,null,null,null,null,null,null,null,null,null,null,null,null,null,null,null,null,null,null,null,null,null,null,1]
["【３．建築主】",null,null,null,null,null,null,null,null,null,null,null,null,null,null,null,null,null,null,null,null,null,null,null,null,null,null,null,null,null,null,null,null,null,null,1]
[null,null,"【氏名又は名称のフリガナ】",null,null,null,null,null,null,{"$f":"CHOOSE(入力シート!$AJ$229,I!I22,★設計評価!J81,入力シート!I229)","v":0},null,null,null,null,null,null,null,null,null,null,null,null,null,null,null,null,null,null,null,null,null,null,null,null,null,1]
[null,null,"【氏名又は名称】",null,null,null,null,null,null,{"$f":"CHOOSE(入力シート!$AJ$229,I!I23,★設計評価!J82,入力シート!I230)","v":0},null,null,null,null,null,null,null,null,null,null,null,null,null,null,null,null,null,null,null,null,null,null,null,null,null,1]
[null,null,null,null,null,null,null,null,null,{"$f":"CHOOSE(入力シート!$AJ$229,I!I24,★設計評価!J83,入力シート!I231)","v":0},null,null,null,null,null,null,null,null,null,null,null,null,null,null,null,null,null,null,null,null,null,null,null,null,null,1]
[null,null,"【郵便番号】",null,null,null,null,null,null,{"$f":"CHOOSE(入力シート!$AJ$229,I!I25,★設計評価!J84,入力シート!I232)","v":0},null,null,null,null,null,null,null,null,null,null,null,null,null,null,null,null,null,null,null,null,null,null,null,null,null,1]
[null,null,"【住所】",null,null,null,null,null,null,{"$f":"CHOOSE(入力シート!$AJ$229,I!I26,★設計評価!J85,入力シート!I233)","v":0},null,null,null,null,null,null,null,null,null,null,null,null,null,null,null,null,null,null,null,null,null,null,null,null,null,1]
[null,null,"【電話番号】",null,null,null,null,null,null,{"$f":"CHOOSE(入力シート!$AJ$229,I!I27,★設計評価!J86,入力シート!I234)","v":0},null,null,null,null,null,null,null,null,null,null,null,null,null,null,null,null,null,null,null,null,null,null,null,null,null,1]
[null,null,null,null,null,null,null,null,null,null,null,null,null,null,null,null,null,null,null,null,null,null,null,null,null,null,null,null,null,null,null,null,null,null,null,1]
["【４．設計者】",null,null,null,null,null,null,null,null,null,null,null,null,null,null,null,null,null,null,null,null,null,null,null,null,null,null,null,null,null,null,null,null,null,null,1]
[null,null,"【資格】",null,null,null,null,null,null,"（",{"$f":"CHOOSE(入力シート!$AJ$262,I!J41,★設計評価!K89,入力シート!J262)","v":0},null,"）建築士",null,null,null,"（",{"$f":"CHOOSE(入力シート!$AJ$262,I!P41,★設計評価!R89,入力シート!P262)","v":0},null,null,null,null,"）登録第",null,null,null,{"$f":"CHOOSE(入力シート!$AJ$262,I!W41,★設計評価!AA89,入力シート!Z262)","v":0},null,null,null,null,"号",null,null,null,1]
[null,null,"【氏名】",null,null,null,null,null,null,{"$f":"CHOOSE(入力シート!$AJ$262,I!I42,★設計評価!J90,入力シート!I263)","v":0},null,null,null,null,null,null,null,null,null,null,null,null,null,null,null,null,null,null,null,null,null,null,null,null,null,1]
[null,null,"【建築士事務所名】",null,null,null,null,null,null,"（",{"$f":"CHOOSE(入力シート!$AJ$262,I!J43,★設計評価!K91,入力シート!J264)","v":0},null,"）建築士事務所",null,null,null,null,"（",{"$f":"CHOOSE(入力シート!$AJ$262,I!Q43,★設計評価!S91,入力シート!Q264)","v":0},null,null,null,"）知事登録第",null,null,null,null,{"$f":"CHOOSE(入力シート!$AJ$262,I!X43,★設計評価!AB91,入力シート!AA264)","v":0},null,null,null,null,"号",null,null,1]
[null,null,null,null,null,null,null,null,null,{"$f":"CHOOSE(入力シート!$AJ$262,I!I44,★設計評価!J92,入力シート!I265)","v":0},null,null,null,null,null,null,null,null,null,null,null,null,null,null,null,null,null,null,null,null,null,null,null,null,null,1]
[null,null,"【郵便番号】",null,null,null,null,null,null,{"$f":"CHOOSE(入力シート!$AJ$262,I!I45,★設計評価!J93,入力シート!I266)","v":0},null,null,null,null,null,null,null,null,null,null,null,null,null,null,null,null,null,null,null,null,null,null,null,null,null,1]
[null,null,"【所在地】",null,null,null,null,null,null,{"$f":"CHOOSE(入力シート!$AJ$262,I!I46,★設計評価!J94,入力シート!I267)","v":0},null,null,null,null,null,null,null,null,null,null,null,null,null,null,null,null,null,null,null,null,null,null,null,null,null,1]
[null,null,"【電話番号】",null,null,null,null,null,null,{"$f":"CHOOSE(入力シート!$AJ$262,I!I47,★設計評価!J95,入力シート!I268)","v":0},null,null,null,null,null,null,null,null,null,null,null,null,null,null,null,null,null,null,null,null,null,null,null,null,null,1]
[null,null,null,null,null,null,null,null,null,null,null,null,null,null,null,null,null,null,null,null,null,null,null,null,null,null,null,null,null,null,null,null,null,null,null,1]
["【５．工事監理者】",null,null,null,null,null,null,null,null,null,null,null,null,null,null,null,null,null,null,null,null,null,null,null,null,null,null,null,null,null,null,null,null,null,null,1]
[null,null,"【イ.資格】",null,null,null,null,null,null,"（",{"$f":"IF(入力シート!J271=\"\",I!J142,入力シート!J271)","v":0},null,"）建築士",null,null,null,"（",{"$f":"IF(入力シート!P271=\"\",I!P142,入力シート!P271)","v":0},null,null,null,null,"）登録第",null,null,null,{"$f":"IF(入力シート!W271=\"\",I!W142,入力シート!W271)","v":0},null,null,null,null,"号",null,null,null,1]
[null,null,"【ロ.氏名】",null,null,null,null,null,null,{"$f":"IF(入力シート!I272=\"\",I!I143,入力シート!I272)","v":0},null,null,null,null,null,null,null,null,null,null,null,null,null,null,null,null,null,null,null,null,null,null,null,null,null,1]
[null,null,"【ハ.建築士事務所名】",null,null,null,null,null,null,"（",{"$f":"IF(入力シート!I274=\"\",I!J144,入力シート!J274)","v":0},null,"）建築士事務所",null,null,null,null,"（",{"$f":"IF(入力シート!Q273=\"\",I!Q144,入力シート!Q273)","v":0},null,null,null,"）知事登録第",null,null,null,null,{"$f":"IF(入力シート!X273=\"\",I!X144,入力シート!X273)","v":0},null,null,null,null,"号",null,null,1]
[null,null,null,null,null,null,null,null,null,{"$f":"IF(入力シート!I274=\"\",I!I145,入力シート!I274)","v":0},null,null,null,null,null,null,null,null,null,null,null,null,null,null,null,null,null,null,null,null,null,null,null,null,null,1]
[null,null,"【ニ.郵便番号】",null,null,null,null,null,null,{"$f":"IF(入力シート!I275=\"\",I!I146,入力シート!I275)","v":0},null,null,null,null,null,null,null,null,null,null,null,null,null,null,null,null,null,null,null,null,null,null,null,null,null,1]
[null,null,"【ホ.所在地】",null,null,null,null,null,null,{"$f":"IF(入力シート!I276=\"\",I!I147,入力シート!I276)","v":0},null,null,null,null,null,null,null,null,null,null,null,null,null,null,null,null,null,null,null,null,null,null,null,null,null,1]
[null,null,"【ヘ.電話番号】",null,null,null,null,null,null,{"$f":"IF(入力シート!I277=\"\",I!I148,入力シート!I277)","v":0},null,null,null,null,null,null,null,null,null,null,null,null,null,null,null,null,null,null,null,null,null,null,null,null,null,1]
[null,null,null,null,null,null,null,null,null,null,null,null,null,null,null,null,null,null,null,null,null,null,null,null,null,null,null,null,null,null,null,null,null,null,null,1]
["【６．工事施工者】",null,null,null,null,null,null,null,null,null,null,null,null,null,null,null,null,null,null,null,null,null,null,null,null,null,null,null,null,null,null,null,null,null,null,1]
[null,null,"【イ.氏名】",null,null,null,null,null,null,{"$f":"IF(入力シート!I280=\"\",I!I180,入力シート!I280)","v":0},null,null,null,null,null,null,null,null,null,null,null,null,null,null,null,null,null,null,null,null,null,null,null,null,null,1]
[null,null,"【ロ.営業所名】",null,null,null,null,null,null,"建設業の許可",null,null,null,null,null,"（",{"$f":"IF(入力シート!N281=\"\",I!N181,入力シート!N281)","v":0},null,null,null,null,null,null,"）",null,{"$f":"IF(入力シート!T281=\"\",I!T181,入力シート!T281)","v":0},null,null,null,null,"号",null,null,null,null,1]
[null,null,null,null,null,null,null,null,null,{"$f":"IF(入力シート!I282=\"\",I!I182,入力シート!I282)","v":0},null,null,null,null,null,null,null,null,null,null,null,null,null,null,null,null,null,null,null,null,null,null,null,null,null,1]
[null,null,"【ハ.郵便番号】",null,null,null,null,null,null,{"$f":"IF(入力シート!I283=\"\",I!I183,入力シート!I283)","v":0},null,null,null,null,null,null,null,null,null,null,null,null,null,null,null,null,null,null,null,null,null,null,null,null,null,1]
[null,null,"【ニ.所在地】",null,null,null,null,null,null,{"$f":"IF(入力シート!I284=\"\",I!I184,入力シート!I284)","v":0},null,null,null,null,null,null,null,null,null,null,null,null,null,null,null,null,null,null,null,null,null,null,null,null,null,1]
[null,null,"【ホ.電話番号】",null,null,null,null,null,null,{"$f":"IF(入力シート!I285=\"\",I!I185,入力シート!I285)","v":0},null,null,null,null,null,null,null,null,null,null,null,null,null,null,null,null,null,null,null,null,null,null,null,null,null,1]
[null,null,null,null,null,null,null,null,null,null,null,null,null,null,null,null,null,null,null,null,null,null,null,null,null,null,null,null,null,null,null,null,null,null,null,1]
["【７．建設住宅性能評価を希望する性能表示事項】",null,null,null,null,null,null,null,null,null,null,null,null,null,null,null,null,null,null,null,null,null,null,null,null,null,null,null,null,null,null,null,null,null,null,1]
[null,null,"別紙による",null,null,null,null,null,null,null,null,null,null,null,null,null,null,null,null,null,null,null,null,null,null,null,null,null,null,null,null,null,null,null,null,1]
[null,null,null,null,null,null,null,null,null,null,null,null,null,null,null,null,null,null,null,null,null,null,null,null,null,null,null,null,null,null,null,null,null,null,null,1]
["【８．備考】",null,null,null,null,null,null,null,null,null,null,null,null,null,null,null,null,null,null,null,null,null,null,null,null,null,null,null,null,null,null,null,null,null,null,1]
[null,"【住宅又は建築物の名称】",null,null,null,null,null,null,null,null,null,{"$f":"入力シート!I144","v":0},null,null,null,null,null,null,null,null,null,null,null,null,null,null,null,null,null,null,null,null,null,null,null,1]
[null,{"$f":"入力シート!I288","v":0},null,null,null,null,null,null,null,null,null,null,null,null,null,null,null,null,null,null,null,null,null,null,null,null,null,null,null,null,null,null,null,null,null,1]
[null,{"$f":"入力シート!I289","v":0},null,null,null,null,null,null,null,null,null,null,null,null,null,null,null,null,null,null,null,null,null,null,null,null,null,null,null,null,null,null,null,null,null,1]
[null,null,null,null,null,null,null,null,null,null,null,null,null,null,null,null,null,null,null,null,null,null,null,null,null,null,null,null,null,null,null,null,null,null,null,1]
[null,null,null,null,null,null,null,null,null,null,null,null,null,null,null,"（第二面）",null,null,null,null,null,null,null,null,null,null,null,null,null,null,null,"別紙",null,null,null,1]
[null,null,null,null,null,null,null,null,null,null,null,null,null,null,null,null,null,null,null,null,null,null,null,null,null,null,null,null,null,null,null,null,null,null,null,1]
["【地盤の液状化に関する情報提供】",null,null,null,null,null,null,null,null,null,null,null,null,null,null,null,null,null,null,null,null,null,null,null,null,null,null,null,null,null,null,null,null,null,null,1]
[null,null,null,null,{"$f":"★設計評価!E111","v":"□"},"地盤の液状化に関する情報提供を行う",null,null,null,null,null,null,null,null,null,null,null,null,null,null,null,null,null,null,null,null,null,null,null,null,null,null,null,null,null,1]
[null,null,null,null,{"$f":"★設計評価!E112","v":"■"},"地盤の液状化に関する情報提供を行わない",null,null,null,null,null,null,null,null,null,null,null,null,null,null,null,null,null,null,null,null,null,null,null,null,null,null,null,null,null,1]
[null,null,null,null,{"$f":"IF(入力シート!G32=項目リスト!X5,\"■\",\"□\")","v":"□"},"地盤の液状化に関する情報は設計評価で提出済み",null,null,null,null,null,null,null,null,null,null,null,null,null,null,null,null,null,null,null,null,null,null,null,null,null,null,null,null,null,1]
[null,null,null,null,null,null,null,null,null,null,null,null,null,null,null,null,null,null,null,null,null,null,null,null,null,null,null,null,null,null,null,null,null,null,null,1]
["【建設住宅性能評価を希望する性能表示事項】",null,null,null,null,null,null,null,null,null,null,null,null,null,null,null,null,null,null,null,null,null,null,null,null,null,null,null,null,null,null,null,null,null,null,1]
[null,null,null,null,null,null,null,null,null,null,null,null,null,null,null,null,null,null,null,null,null,null,null,null,null,null,null,null,null,null,null,null,null,null,null,1]
["（注意）",null,null,null,null,null,null,null,null,null,null,null,null,null,null,null,null,null,null,null,null,null,null,null,null,null,null,null,null,null,null,null,null,null,null,1]
[null,"・","選択を希望する性能表示事項にチェックしてください。",null,null,null,null,null,null,null,null,null,null,null,null,null,null,null,null,null,null,null,null,null,null,null,null,null,null,null,null,null,null,null,null,1]
[null,"・","「5-1」又は「5-2」、もしくは「5-1」と「5-2」両方の選択が必要となります。",null,null,null,null,null,null,null,null,null,null,null,null,null,null,null,null,null,null,null,null,null,null,null,null,null,null,null,null,null,null,null,null,1]
[null,null,null,null,null,"【参考】　必須項目",null,null,null,null,null,null,null,null,null,null,null,null,null,null,null,null,null,null,null,null,null,null,null,null,null,null,null,null,null,1]
[null,null,null,null,null,null,null,null,null,null,null,null,null,null,null,null,null,null,null,null,null,null,null,null,null,null,null,null,null,null,null,null,null,null,null,1]
[null,null,null,null,null,"1-1",null,"耐震等級（構造躯体の倒壊等防止）",null,null,null,null,null,null,null,null,null,null,null,null,null,null,null,null,null,null,null,null,null,null,null,null,null,null,null,1]
[null,null,null,null,null,"1-3",null,"その他（地震に対する構造躯体の倒壊等防止及び損傷防止）",null,null,null,null,null,null,null,null,null,null,null,null,null,null,null,null,null,null,null,null,null,null,null,null,null,null,null,1]
[null,null,null,null,null,"1-6",null,"地盤又は杭の許容支持力等及びその設定方法",null,null,null,null,null,null,null,null,null,null,null,null,null,null,null,null,null,null,null,null,null,null,null,null,null,null,null,1]
[null,null,null,null,null,"1-7",null,"基礎の構造方法及び形式等",null,null,null,null,null,null,null,null,null,null,null,null,null,null,null,null,null,null,null,null,null,null,null,null,null,null,null,1]
[null,null,null,null,null,"3-1",null,"劣化対策等級（構造躯体等）",null,null,null,null,null,null,null,null,null,null,null,null,null,null,null,null,null,null,null,null,null,null,null,null,null,null,null,1]
[null,null,null,null,null,"4-1",null,"維持管理対策等級（専用配管）",null,null,null,null,null,null,null,null,null,null,null,null,null,null,null,null,null,null,null,null,null,null,null,null,null,null,null,1]
[null,null,null,null,null,"4-2",null,"維持管理対策等級（共用配管）",null,null,null,null,null,null,null,null,null,null,null,null,null,null,null,null,null,null,null,null,null,null,null,null,null,null,null,"a"]
[null,null,null,null,null,"4-3",null,"更新対策（共用排水管）",null,null,null,null,null,null,null,null,null,null,null,null,null,null,null,null,null,null,null,null,null,null,null,null,null,null,null,"a"]
[null,null,null,null,null,null,null,null,null,null,null,null,null,null,null,null,null,null,null,null,null,null,null,null,null,null,null,null,null,null,null,null,null,null,null,1]
[null,null,null,null,null,null,null,null,null,null,null,null,null,null,null,null,null,null,null,null,null,null,null,null,null,null,null,null,null,null,null,null,null,null,null,1]
[null,null,"１．構造の安定に関すること",null,null,null,null,null,null,null,null,null,null,null,null,null,null,null,null,null,null,null,null,null,null,null,null,null,null,null,null,null,null,null,null,1]
[null,null,null,null,{"$f":"入力シート!F41","v":"□"},"1-2",null,"耐震等級（構造躯体の損傷防止）",null,null,null,null,null,null,null,null,null,null,null,null,null,null,null,null,null,null,null,null,null,null,null,null,null,null,null,1]
[null,null,null,null,{"$f":"入力シート!F42","v":"□"},"1-4",null,"耐風等級（構造躯体の倒壊等防止及び損傷防止）",null,null,null,null,null,null,null,null,null,null,null,null,null,null,null,null,null,null,null,null,null,null,null,null,null,null,null,1]
[null,null,null,null,{"$f":"入力シート!F43","v":"□"},"1-5",null,"耐積雪等級（構造躯体の倒壊等防止及び損傷防止）",null,null,null,null,null,null,null,null,null,null,null,null,null,null,null,null,null,null,null,null,null,null,null,null,null,null,null,1]
[null,null,"２．火災時の安全に関すること",null,null,null,null,null,null,null,null,null,null,null,null,null,null,null,null,null,null,null,null,null,null,null,null,null,null,null,null,null,null,null,null,1]
[null,null,null,null,{"$f":"入力シート!F45","v":"□"},"2-1",null,"感知警報装置設置等級（自住戸火災時） ",null,null,null,null,null,null,null,null,null,null,null,null,null,null,null,null,null,null,null,null,null,null,null,null,null,null,null,1]
[null,null,null,null,{"$f":"入力シート!F46","v":"□"},"2-2",null,"感知警報装置設置等級（他住戸等火災時） ",null,null,null,null,null,null,null,null,null,null,null,null,null,null,null,null,null,null,null,null,null,null,null,null,null,null,null,"a"]
[null,null,null,null,{"$f":"入力シート!F47","v":"□"},"2-3",null,"避難安全対策（他住戸等火災時・共用廊下）",null,null,null,null,null,null,null,null,null,null,null,null,null,null,null,null,null,null,null,null,null,null,null,null,null,null,null,"a"]
[null,null,null,null,{"$f":"入力シート!F48","v":"□"},"2-4",null,"脱出対策（火災時）",null,null,null,null,null,null,null,null,null,null,null,null,null,null,null,null,null,null,null,null,null,null,null,null,null,null,null,1]
[null,null,null,null,{"$f":"入力シート!F49","v":"□"},"2-5",null,"耐火等級（延焼のおそれのある部分(開口部)）",null,null,null,null,null,null,null,null,null,null,null,null,null,null,null,null,null,null,null,null,null,null,null,null,null,null,null,1]
[null,null,null,null,{"$f":"入力シート!F50","v":"□"},"2-6",null,"耐火等級（延焼のおそれのある部分(開口部以外)）",null,null,null,null,null,null,null,null,null,null,null,null,null,null,null,null,null,null,null,null,null,null,null,null,null,null,null,1]
[null,null,null,null,{"$f":"入力シート!F51","v":"□"},"2-7",null,"耐火等級（界壁及び界床）",null,null,null,null,null,null,null,null,null,null,null,null,null,null,null,null,null,null,null,null,null,null,null,null,null,null,null,"a"]
[null,null,"４．維持管理・更新への配慮に関すること",null,null,null,null,null,null,null,null,null,null,null,null,null,null,null,null,null,null,null,null,null,null,null,null,null,null,null,null,null,null,null,null,"a"]
[null,null,null,null,{"$f":"入力シート!F53","v":"□"},"4-4",null,"更新対策（住戸専用部）",null,null,null,null,null,null,null,null,null,null,null,null,null,null,null,null,null,null,null,null,null,null,null,null,null,null,null,"a"]
[null,null,"５．温熱環境・エネルギー消費量に関すること",null,null,null,null,null,null,null,null,null,null,null,null,null,null,null,null,null,null,null,null,null,null,null,null,null,null,null,null,null,null,null,null,1]
[null,null,null,null,{"$f":"★設計評価!E146","v":"■"},"5-1",null,"断熱性能等級",null,null,null,null,null,null,null,null,null,null,null,null,null,null,null,null,null,null,null,null,null,null,null,null,null,null,null,1]
[null,null,null,null,{"$f":"★設計評価!E147","v":"□"},"5-2",null,"一次エネルギー消費量等級",null,null,null,null,null,null,null,null,null,null,null,null,null,null,null,null,null,null,null,null,null,null,null,null,null,null,null,1]
[null,null,"６．空気環境に関すること",null,null,null,null,null,null,null,null,null,null,null,null,null,null,null,null,null,null,null,null,null,null,null,null,null,null,null,null,null,null,null,null,1]
[null,null,null,null,{"$f":"入力シート!F57","v":"□"},"6-1",null,"ホルムアルデヒド対策（内装及び天井裏）",null,null,null,null,null,null,null,null,null,null,null,null,null,null,null,null,null,null,null,null,null,null,null,null,null,null,null,1]
[null,null,null,null,{"$f":"入力シート!F58","v":"□"},"6-2",null,"換気対策（居室の換気対策）（局所換気対策）",null,null,null,null,null,null,null,null,null,null,null,null,null,null,null,null,null,null,null,null,null,null,null,null,null,null,null,1]
[null,null,null,null,{"$f":"入力シート!F59","v":"□"},"6-3",null,"室内空気中の化学物質の濃度等",null,null,null,null,null,null,null,null,null,null,null,null,null,null,null,null,null,null,null,null,null,null,null,null,null,null,null,1]
[null,null,null,null,null,null,null,{"$f":"入力シート!I61","v":"□"},"トルエン",null,null,null,{"$f":"入力シート!N61","v":"□"},"キシレン",null,null,null,{"$f":"入力シート!S61","v":"□"},"エチルベンゼン",null,null,null,null,{"$f":"入力シート!Y61","v":"□"},"スチレン",null,null,null,null,null,null,null,null,null,null,1]
[null,null,"７．光・視環境に関すること",null,null,null,null,null,null,null,null,null,null,null,null,null,null,null,null,null,null,null,null,null,null,null,null,null,null,null,null,null,null,null,null,1]
[null,null,null,null,{"$f":"入力シート!F63","v":"□"},"7-1",null,"単純開口率",null,null,null,null,null,null,null,null,null,null,null,null,null,null,null,null,null,null,null,null,null,null,null,null,null,null,null,1]
[null,null,null,null,{"$f":"入力シート!F64","v":"□"},"7-2",null,"方位別開口比",null,null,null,null,null,null,null,null,null,null,null,null,null,null,null,null,null,null,null,null,null,null,null,null,null,null,null,1]
[null,null,"８．音環境に関すること",null,null,null,null,null,null,null,null,null,null,null,null,null,null,null,null,null,null,null,null,null,null,null,null,null,null,null,null,null,null,null,null,1]
[null,null,null,null,{"$f":"入力シート!F66","v":"□"},"8-1",null,"重量床衝撃音対策",null,null,null,null,null,null,null,null,null,null,null,null,null,null,null,null,null,null,null,null,null,null,null,null,null,null,null,"a"]
[null,null,null,null,{"$f":"入力シート!F67","v":"□"},"8-2",null,"軽量床衝撃音対策",null,null,null,null,null,null,null,null,null,null,null,null,null,null,null,null,null,null,null,null,null,null,null,null,null,null,null,"a"]
[null,null,null,null,{"$f":"入力シート!F68","v":"□"},"8-3",null,"透過損失等級（界壁）",null,null,null,null,null,null,null,null,null,null,null,null,null,null,null,null,null,null,null,null,null,null,null,null,null,null,null,"a"]
[null,null,null,null,{"$f":"入力シート!F69","v":"□"},"8-4",null,"透過損失等級（外壁開口部）",null,null,null,null,null,null,null,null,null,null,null,null,null,null,null,null,null,null,null,null,null,null,null,null,null,null,null,1]
[null,null,"９．高齢者等への配慮に関すること",null,null,null,null,null,null,null,null,null,null,null,null,null,null,null,null,null,null,null,null,null,null,null,null,null,null,null,null,null,null,null,null,1]
[null,null,null,null,{"$f":"入力シート!F71","v":"□"},"9-1",null,"高齢者等配慮対策等級（専用部分）",null,null,null,null,null,null,null,null,null,null,null,null,null,null,null,null,null,null,null,null,null,null,null,null,null,null,null,1]
[null,null,null,null,{"$f":"入力シート!F72","v":"□"},"9-2",null,"高齢者等配慮対策等級（共用部分）",null,null,null,null,null,null,null,null,null,null,null,null,null,null,null,null,null,null,null,null,null,null,null,null,null,null,null,"a"]
[null,null,"10．防犯に関すること",null,null,null,null,null,null,null,null,null,null,null,null,null,null,null,null,null,null,null,null,null,null,null,null,null,null,null,null,null,null,null,null,1]
[null,null,null,null,{"$f":"入力シート!F74","v":"□"},"10-1",null,"開口部の侵入防止対策",null,null,null,null,null,null,null,null,null,null,null,null,null,null,null,null,null,null,null,null,null,null,null,null,null,null,null,1]
[null,null,null,null,null,null,null,null,null,null,null,null,null,null,null,null,null,null,null,null,null,null,null,null,null,null,null,null,null,null,null,null,null,null,null,1]
[null,null,null,null,null,null,null,null,null,null,null,null,null,null,null,null,null,null,null,null,null,null,null,null,null,null,null,null,null,null,null,null,null,null,null,1]
[null,null,null,null,null,null,null,null,null,null,null,null,null,null,null,"（第三面）",null,null,null,null,null,null,null,null,null,null,null,null,null,null,null,null,null,null,null,1]
[null,null,null,null,null,null,null,null,null,null,null,null,null,null,null,null,null,null,null,null,null,null,null,null,null,null,null,null,null,null,null,null,null,null,null,1]
["建築物に関する事項",null,null,null,null,null,null,null,null,null,null,null,null,null,null,null,null,null,null,null,null,null,null,null,null,null,null,null,null,null,null,null,null,null,null,1]
["【１．地名地番】",null,null,null,null,null,null,null,null,null,null,null,null,null,null,null,null,null,null,null,null,null,null,null,null,null,null,null,null,null,null,null,null,null,null,1]
[null,{"$f":"IF(入力シート!B152=\"\",I!B228,入力シート!B152)","v":0},null,null,null,null,null,null,null,null,null,null,null,null,null,null,null,null,null,null,null,null,null,null,null,null,null,null,null,null,null,null,null,null,null,1]
[null,null,null,null,null,null,null,null,null,null,null,null,null,null,null,null,null,null,null,null,null,null,null,null,null,null,null,null,null,null,null,null,null,null,null,1]
[null,null,null,null,null,null,null,null,null,null,null,null,null,null,null,null,null,null,null,null,null,null,null,null,null,null,null,null,null,null,null,null,null,null,null,1]
[null,null,null,null,null,null,null,null,null,null,null,null,null,null,null,null,null,null,null,null,null,null,null,null,null,null,null,null,null,null,null,null,null,null,null,1]
[null,null,null,null,null,null,null,null,null,null,null,null,null,null,null,null,null,null,null,null,null,null,null,null,null,null,null,null,null,null,null,null,null,null,null,1]
["【２．設計住宅性能評価書の交付番号】",null,null,null,null,null,null,null,null,null,null,null,null,null,null,null,null,null,null,null,null,null,null,null,null,null,null,null,null,null,null,null,null,null,null,1]
[null,null,null,null,null,null,null,null,"第",{"$f":"入力シート!I300","v":0},null,null,null,null,null,null,null,null,null,null,null,null,null,null,"号",null,null,null,null,null,null,null,null,null,null,1]
[null,null,null,null,null,null,null,null,null,null,null,null,null,null,null,null,null,null,null,null,null,null,null,null,null,null,null,null,null,null,null,null,null,null,null,1]
["【３．設計住宅性能評価書交付年月日】",null,null,null,null,null,null,null,null,null,null,null,null,null,null,null,null,null,null,null,null,null,null,null,null,null,null,null,null,null,null,null,null,null,null,1]
[null,null,null,null,null,null,null,null,null,null,{"$f":"入力シート!K303","v":0},null,"年",{"$f":"入力シート!O303","v":0},null,"月",{"$f":"入力シート!Q303","v":0},null,"日",null,null,null,null,null,null,null,null,null,null,null,null,null,null,null,null,1]
[null,null,null,null,null,null,null,null,null,null,null,null,null,null,null,null,null,null,null,null,null,null,null,null,null,null,null,null,null,null,null,null,null,null,null,1]
["【４．設計住宅性能評価書交付者】",null,null,null,null,null,null,null,null,null,null,null,null,null,null,null,null,null,null,null,null,null,null,null,null,null,null,null,null,null,null,null,null,null,null,1]
[null,null,null,null,null,null,null,null,{"$f":"入力シート!I306","v":"一般財団法人 愛知県建築住宅センター 理事長"},null,null,null,null,null,null,null,null,null,null,null,null,null,null,null,null,null,null,null,null,null,null,null,null,null,null,1]
[null,null,null,null,null,null,null,null,null,null,null,null,null,null,null,null,null,null,null,null,null,null,null,null,null,null,null,null,null,null,null,null,null,null,null,1]
["【５．確認済証番号】",null,null,null,null,null,null,null,null,null,null,null,null,null,null,null,null,null,null,null,null,null,null,null,null,null,null,null,null,null,null,null,null,null,null,1]
[null,null,null,null,null,null,null,null,{"$f":"IF(入力シート!AC309=0,入力シート!AK309,入力シート!AK9)","v":"第号"},null,null,null,null,null,null,null,null,null,null,null,null,null,null,null,null,null,null,null,null,null,null,null,null,null,null,1]
[null,null,null,null,null,null,null,null,null,null,null,null,null,null,null,null,null,null,null,null,null,null,null,null,null,null,null,null,null,null,null,null,null,null,null,1]
["【６．確認済証交付年月日】",null,null,null,null,null,null,null,null,null,null,null,null,null,null,null,null,null,null,null,null,null,null,null,null,null,null,null,null,null,null,null,null,null,null,1]
[null,null,null,null,null,null,null,null,null,null,{"$f":"入力シート!K312","v":0},null,"年",{"$f":"入力シート!O312","v":0},null,"月",{"$f":"入力シート!Q312","v":0},null,"日",null,null,null,null,null,null,null,null,null,null,null,null,null,null,null,null,1]
[null,null,null,null,null,null,null,null,null,null,null,null,null,null,null,null,null,null,null,null,null,null,null,null,null,null,null,null,null,null,null,null,null,null,null,1]
["【７．確認済証交付者】",null,null,null,null,null,null,null,null,null,null,null,null,null,null,null,null,null,null,null,null,null,null,null,null,null,null,null,null,null,null,null,null,null,null,1]
[null,null,null,null,null,null,null,null,{"$f":"入力シート!I315","v":"一般財団法人 愛知県建築住宅センター 理事長"},null,null,null,null,null,null,null,null,null,null,null,null,null,null,null,null,null,null,null,null,null,null,null,null,null,null,1]
[null,null,null,null,null,null,null,null,null,null,null,null,null,null,null,null,null,null,null,null,null,null,null,null,null,null,null,null,null,null,null,null,null,null,null,1]
["【８．工事着手（予定）年月日】",null,null,null,null,null,null,null,null,null,null,null,null,null,null,null,null,null,null,null,null,null,null,null,null,null,null,null,null,null,null,null,null,null,null,1]
[null,null,null,null,null,null,null,null,null,null,{"$f":"入力シート!K318","v":0},null,"年",{"$f":"入力シート!O318","v":0},null,"月",{"$f":"入力シート!Q318","v":0},null,"日",null,null,null,null,null,null,null,null,null,null,null,null,null,null,null,null,1]
[null,null,null,null,null,null,null,null,null,null,null,null,null,null,null,null,null,null,null,null,null,null,null,null,null,null,null,null,null,null,null,null,null,null,null,1]
["【９．工事完了予定年月日】",null,null,null,null,null,null,null,null,null,null,null,null,null,null,null,null,null,null,null,null,null,null,null,null,null,null,null,null,null,null,null,null,null,null,1]
[null,null,null,null,null,null,null,null,null,null,{"$f":"入力シート!K321","v":0},null,"年",{"$f":"入力シート!O321","v":0},null,"月",{"$f":"入力シート!Q321","v":0},null,"日",null,null,null,null,null,null,null,null,null,null,null,null,null,null,null,null,1]
[null,null,null,null,null,null,null,null,null,null,null,null,null,null,null,null,null,null,null,null,null,null,null,null,null,null,null,null,null,null,null,null,null,null,null,1]
["【10．検査対象工程工事終了予定年月日】",null,null,null,null,null,null,null,null,null,null,null,null,null,null,null,null,null,null,null,null,null,null,null,null,null,null,null,null,null,null,null,null,null,null,1]
[null,null,null,null,"（第",{"$f":"入力シート!I326","v":0},"回）",null,null,null,{"$f":"入力シート!N326","v":0},null,"年",{"$f":"入力シート!R326","v":0},null,"月",{"$f":"入力シート!T326","v":0},null,"日","（",{"$f":"入力シート!W326","v":0},null,null,null,null,null,null,null,null,null,null,null,"）",null,null,1]
[null,null,null,null,"（第",{"$f":"入力シート!I327","v":0},"回）",null,null,null,{"$f":"入力シート!N327","v":0},null,"年",{"$f":"入力シート!R327","v":0},null,"月",{"$f":"入力シート!T327","v":0},null,"日","（",{"$f":"入力シート!W327","v":0},null,null,null,null,null,null,null,null,null,null,null,"）",null,null,1]
[null,null,null,null,"（第",{"$f":"入力シート!I328","v":0},"回）",null,null,null,{"$f":"入力シート!N328","v":0},null,"年",{"$f":"入力シート!R328","v":0},null,"月",{"$f":"入力シート!T328","v":0},null,"日","（",{"$f":"入力シート!W328","v":0},null,null,null,null,null,null,null,null,null,null,null,"）",null,null,1]
[null,null,null,null,"（第",{"$f":"入力シート!I329","v":0},"回）",null,null,null,{"$f":"入力シート!N329","v":0},null,"年",{"$f":"入力シート!R329","v":0},null,"月",{"$f":"入力シート!T329","v":0},null,"日","（",{"$f":"入力シート!W329","v":0},null,null,null,null,null,null,null,null,null,null,null,"）",null,null,1]
[null,null,null,null,"（第",{"$f":"入力シート!I330","v":0},"回）",null,null,null,{"$f":"入力シート!N330","v":0},null,"年",{"$f":"入力シート!R330","v":0},null,"月",{"$f":"入力シート!T330","v":0},null,"日","（",{"$f":"入力シート!W330","v":0},null,null,null,null,null,null,null,null,null,null,null,"）",null,null,1]
[null,null,null,null,"（第",{"$f":"入力シート!I331","v":0},"回）",null,null,null,{"$f":"入力シート!N331","v":0},null,"年",{"$f":"入力シート!R331","v":0},null,"月",{"$f":"入力シート!T331","v":0},null,"日","（",{"$f":"入力シート!W331","v":0},null,null,null,null,null,null,null,null,null,null,null,"）",null,null,1]
[null,null,null,null,"（第",{"$f":"入力シート!I332","v":0},"回）",null,null,null,{"$f":"入力シート!N332","v":0},null,"年",{"$f":"入力シート!R332","v":0},null,"月",{"$f":"入力シート!T332","v":0},null,"日","（",{"$f":"入力シート!W332","v":0},null,null,null,null,null,null,null,null,null,null,null,"）",null,null,1]
[null,null,null,null,"（第",{"$f":"入力シート!I333","v":0},"回）",null,null,null,{"$f":"入力シート!N333","v":0},null,"年",{"$f":"入力シート!R333","v":0},null,"月",{"$f":"入力シート!T333","v":0},null,"日","（",{"$f":"入力シート!W333","v":0},null,null,null,null,null,null,null,null,null,null,null,"）",null,null,1]
[null,null,null,null,null,null,null,null,null,null,null,null,null,null,null,null,null,null,null,null,null,null,null,null,null,null,null,null,null,null,null,null,null,null,null,1]
[null,null,null,null,null,null,null,null,null,null,null,null,null,null,null,null,null,null,null,null,null,null,null,null,null,null,null,null,null,null,null,null,null,null,null,1]
["【11．その他必要な事項】",null,null,null,null,null,null,null,null,null,null,null,null,null,null,null,null,null,null,null,null,null,null,null,null,null,null,null,null,null,null,null,null,null,null,1]
[null,{"$f":"入力シート!I336","v":0},null,null,null,null,null,null,null,null,null,null,null,null,null,null,null,null,null,null,null,null,null,null,null,null,null,null,null,null,null,null,null,null,null,1]
[null,{"$f":"入力シート!I337","v":0},null,null,null,null,null,null,null,null,null,null,null,null,null,null,null,null,null,null,null,null,null,null,null,null,null,null,null,null,null,null,null,null,null,1]
[null,null,null,null,null,null,null,null,null,null,null,null,null,null,null,null,null,null,null,null,null,null,null,null,null,null,null,null,null,null,null,null,null,null,null,1]
[null,null,null,null,null,null,null,null,null,null,null,null,null,null,null,null,null,null,null,null,null,null,null,null,null,null,null,null,null,null,null,null,null,null,null,1]
["【12．備考】",null,null,null,null,null,null,null,null,null,null,null,null,null,null,null,null,null,null,null,null,null,null,null,null,null,null,null,null,null,null,null,null,null,null,1]
[null,"【申請費確認項目】",null,null,null,null,null,null,null,null,null,null,null,null,null,null,null,null,null,null,null,null,null,null,null,null,null,null,null,null,null,null,null,null,null,1]
[null,null,"【5-2　一次エネルギー消費量等級の評価】",null,null,null,null,null,null,null,null,null,null,null,null,null,null,null,null,{"$f":"入力シート!R184","v":0},null,null,null,null,null,null,null,null,null,null,null,null,null,null,null,1]
[null,null,"【当センターへの中間、完了検査の申請】",null,null,null,null,null,null,null,null,null,null,null,null,null,null,null,null,{"$f":"入力シート!R341","v":0},null,null,null,null,null,null,null,null,null,null,null,null,null,null,null,1]
[null,{"$f":"入力シート!I342","v":0},null,null,null,null,null,null,null,null,null,null,null,null,null,null,null,null,null,null,null,null,null,null,null,null,null,null,null,null,null,null,null,null,null,1]
[null,{"$f":"入力シート!I343","v":0},null,null,null,null,null,null,null,null,null,null,null,null,null,null,null,null,null,null,null,null,null,null,null,null,null,null,null,null,null,null,null,null,null,1]
[null,null,null,null,null,null,null,null,null,null,null,null,null,null,null,null,null,null,null,null,null,null,null,null,null,null,null,null,null,null,null,null,null,null,null,1]
[null,null,null,null,null,null,null,null,null,null,null,null,null,null,null,null,null,null,null,null,null,null,null,null,null,null,null,null,null,null,null,null,null,null,null,1]
[null,null,null,null,null,null,null,null,null,"建設住宅性能評価申請チェックリスト",null,null,null,null,null,null,null,null,null,null,null,null,null,null,null,null,null,null,null,null,null,null,null,null,null,1]
[null,null,null,null,null,null,null,null,null,null,null,null,null,null,null,null,null,null,null,null,null,null,null,null,null,null,null,null,null,null,null,null,null,null,null,1]
[null,"１．現場立会者の連絡先",null,null,null,null,null,null,null,null,null,null,null,null,null,null,null,null,null,null,null,null,null,null,null,null,null,null,null,null,null,null,null,null,null,1]
[null,null,"フリガナ",null,null,null,null,null,{"$f":"入力シート!I346","v":0},null,null,null,null,null,null,null,null,null,null,null,null,null,null,null,null,null,null,null,null,null,null,null,null,null,null,1]
[null,null,"現場立会者名",null,null,null,null,null,{"$f":"入力シート!I347","v":0},null,null,null,null,null,null,null,null,null,null,null,null,null,null,null,null,null,null,null,null,null,null,null,null,null,null,1]
[null,null,"会社名",null,null,null,null,null,{"$f":"入力シート!AJ349","v":0},null,null,null,null,null,null,null,null,null,null,null,null,null,null,null,null,null,null,null,null,null,null,null,null,null,null,1]
[null,null,"会社電話番号",null,null,null,null,null,{"$f":"入力シート!AJ350","v":0},null,null,null,null,null,null,null,null,null,null,null,null,null,null,null,null,null,null,null,null,null,null,null,null,null,null,1]
[null,null,"FAX番号",null,null,null,null,null,{"$f":"入力シート!I351","v":0},null,null,null,null,null,null,null,null,null,null,null,null,null,null,null,null,null,null,null,null,null,null,null,null,null,null,1]
[null,null,"携帯電話番号",null,null,null,null,null,{"$f":"入力シート!I352","v":0},null,null,null,null,null,null,null,null,null,null,null,null,null,null,null,null,null,null,null,null,null,null,null,null,null,null,1]
[null,null,null,null,null,null,null,null,null,null,null,null,null,null,null,null,null,null,null,null,null,null,null,null,null,null,null,null,null,null,null,null,null,null,null,1]
[null,"２．書類の受取方法",null,null,null,null,null,null,null,null,null,null,null,null,null,null,null,null,null,null,null,null,null,null,null,null,null,null,null,null,null,null,null,null,null,1]
[null,null,"①「施工状況報告書原本」返却と「検査報告書」交付（但し竣工時は②）",null,null,null,null,null,null,null,null,null,null,null,null,null,null,null,null,null,null,null,null,null,null,null,null,null,null,null,null,null,null,null,null,1]
[null,null,"担当者名",null,null,null,null,null,{"$f":"入力シート!I357","v":0},null,null,null,null,null,null,null,null,null,null,null,null,null,null,null,null,null,null,null,null,null,null,null,null,null,null,1]
[null,null,"会社名",null,null,null,null,null,{"$f":"入力シート!AJ360","v":0},null,null,null,null,null,null,null,null,null,null,null,null,null,null,null,null,null,null,null,null,null,null,null,null,null,null,1]
[null,null,"郵便番号",null,null,null,null,null,{"$f":"入力シート!AJ361","v":0},null,null,null,null,null,null,null,null,null,null,null,null,null,null,null,null,null,null,null,null,null,null,null,null,null,null,1]
[null,null,"所在地",null,null,null,null,null,{"$f":"入力シート!AJ362","v":0},null,null,null,null,null,null,null,null,null,null,null,null,null,null,null,null,null,null,null,null,null,null,null,null,null,null,1]
[null,null,"電話番号",null,null,null,null,null,{"$f":"入力シート!AJ363","v":0},null,null,null,null,null,null,null,null,null,null,null,null,null,null,null,null,null,null,null,null,null,null,null,null,null,null,1]
[null,null,null,null,null,null,null,null,null,null,null,null,null,null,null,null,null,null,null,null,null,null,null,null,null,null,null,null,null,null,null,null,null,null,null,1]
[null,null,"②建設評価書の交付　と　副本の返却",null,null,null,null,null,null,null,null,null,null,null,null,null,null,null,null,null,null,null,null,null,null,null,null,null,null,null,null,null,null,null,null,1]
[null,null,"担当者名",null,null,null,null,null,{"$f":"入力シート!I366","v":0},null,null,null,null,null,null,null,null,null,null,null,null,null,null,null,null,null,null,null,null,null,null,null,null,null,null,1]
[null,null,"会社名",null,null,null,null,null,{"$f":"入力シート!AJ369","v":0},null,null,null,null,null,null,null,null,null,null,null,null,null,null,null,null,null,null,null,null,null,null,null,null,null,null,1]
[null,null,"郵便番号",null,null,null,null,null,{"$f":"入力シート!AJ370","v":0},null,null,null,null,null,null,null,null,null,null,null,null,null,null,null,null,null,null,null,null,null,null,null,null,null,null,1]
[null,null,"所在地",null,null,null,null,null,{"$f":"入力シート!AJ371","v":0},null,null,null,null,null,null,null,null,null,null,null,null,null,null,null,null,null,null,null,null,null,null,null,null,null,null,1]
[null,null,"電話番号",null,null,null,null,null,{"$f":"入力シート!AJ372","v":0},null,null,null,null,null,null,null,null,null,null,null,null,null,null,null,null,null,null,null,null,null,null,null,null,null,null,1]
[null,null,null,null,null,null,null,null,null,null,null,null,null,null,null,null,null,null,null,null,null,null,null,null,null,null,null,null,null,null,null,null,null,null,null,1]
[null,null,null,null,null,null,null,null,null,null,null,null,null,null,null,null,null,null,null,null,null,null,null,null,null,null,null,null,null,null,null,null,null,null,null,1]
["※建設住宅性能評価書の交付には 建築基準法に基づく検査済証 の写しが必要になります。",null,null,null,null,null,null,null,null,null,null,null,null,null,null,null,null,null,null,null,null,null,null,null,null,null,null,null,null,null,null,null,null,null,null,1]
["検査済証が交付されましたら、 052-264-4088 へファックスをお願いします。",null,null,null,null,null,null,null,null,null,null,null,null,null,null,null,null,null,null,null,null,null,null,null,null,null,null,null,null,null,null,null,null,null,null,1]
[null,null,null,null,null,null,null,null,null,null,null,null,null,null,null,null,null,null,null,null,null,null,null,null,null,null,null,null,null,null,null,null,null,null,null,1]
["（注意）",null,null,null,null,null,null,null,null,null,null,null,null,null,null,null,null,null,null,null,null,null,null,null,null,null,null,null,null,null,null,null,null,null,null,1]
["１．第一面関係",null,null,null,null,null,null,null,null,null,null,null,null,null,null,null,null,null,null,null,null,null,null,null,null,null,null,null,null,null,null,null,null,null,null,1]
["※印のある欄は記入しないでください。",null,null,null,null,null,null,null,null,null,null,null,null,null,null,null,null,null,null,null,null,null,null,null,null,null,null,null,null,null,null,null,null,null,null,1]
["２．第二面関係",null,null,null,null,null,null,null,null,null,null,null,null,null,null,null,null,null,null,null,null,null,null,null,null,null,null,null,null,null,null,null,null,null,null,1]
["　①　申請者からの委任を受けて申請を代理で行う者がいる場合においては、２欄に記入してください。",null,null,null,null,null,null,null,null,null,null,null,null,null,null,null,null,null,null,null,null,null,null,null,null,null,null,null,null,null,null,null,null,null,null,1]
["　②　申請者が２以上のときは、１欄には代表となる申請者のみについて記入し、別紙に他の申請者について\n　　それぞれ必要な事項を記入してください。",null,null,null,null,null,null,null,null,null,null,null,null,null,null,null,null,null,null,null,null,null,null,null,null,null,null,null,null,null,null,null,null,null,null,1]
["　③　建築主が２以上のときは、３欄には代表となる建築主のみについて記入し、別紙に他の建築主について\n　　それぞれ必要な事項を記入して添えてください。",null,null,null,null,null,null,null,null,null,null,null,null,null,null,null,null,null,null,null,null,null,null,null,null,null,null,null,null,null,null,null,null,null,null,1]
["　④　４欄及び５欄の郵便番号、所在地及び電話番号には、設計者又は工事監理者が建築士事務所に属し\n　　ているときはそれぞれ建築士事務所のものを、設計者又は工事監理者が建築士事務所に属していない\n　　ときはそれぞれ設計者又は工事監理者のもの（所在地は住所とします。）を書いてください。",null,null,null,null,null,null,null,null,null,null,null,null,null,null,null,null,null,null,null,null,null,null,null,null,null,null,null,null,null,null,null,null,null,null,1]
["３．第三面関係",null,null,null,null,null,null,null,null,null,null,null,null,null,null,null,null,null,null,null,null,null,null,null,null,null,null,null,null,null,null,null,null,null,null,1]
["　①　１欄は、住居表示が定まっていないときは、地名地番を記入してください。",null,null,null,null,null,null,null,null,null,null,null,null,null,null,null,null,null,null,null,null,null,null,null,null,null,null,null,null,null,null,null,null,null,null,1]
["　②　５欄から７欄までは、確認済証が交付されていない場合は空欄としてください。　　　　　　　",null,null,null,null,null,null,null,null,null,null,null,null,null,null,null,null,null,null,null,null,null,null,null,null,null,null,null,null,null,null,null,null,null,null,1]
["　③　８欄は、既に工事を着手している場合はその年月日を、それ以外の場合は予定の年月日を記入してください。",null,null,null,null,null,null,null,null,null,null,null,null,null,null,null,null,null,null,null,null,null,null,null,null,null,null,null,null,null,null,null,null,null,null,1]
["　④　10欄は、検査の回数が5回以上の場合は、適宜記入欄を増やして記入してください。",null,null,null,null,null,null,null,null,null,null,null,null,null,null,null,null,null,null,null,null,null,null,null,null,null,null,null,null,null,null,null,null,null,null,1]
["　⑤　ここに書き表せない事項で、評価に当たり特に注意を要する事項は、11欄又は別紙に記載して添えてください。",null,null,null,null,null,null,null,null,null,null,null,null,null,null,null,null,null,null,null,null,null,null,null,null,null,null,null,null,null,null,null,null,null,null,1]
["　⑥　変更建設住宅性能評価に係る申請の際は、12欄に第三面に係る部分の変更の概要について記入してください。",null,null,null,null,null,null,null,null,null,null,null,null,null,null,null,null,null,null,null,null,null,null,null,null,null,null,null,null,null,null,null,null,null,null,1]
[null,null,null,null,null,null,null,null,null,null,null,null,null,null,null,null,null,null,null,null,null,null,null,null,null,null,null,null,null,null,null,null,null,null,null,1]
["備考",null,null,null,null,null,null,null,null,null,null,null,null,null,null,null,null,null,null,null,null,null,null,null,null,null,null,null,null,null,null,null,null,null,null,1]
["１　この用紙の大きさは、日本産業規格Ａ４としてください。",null,null,null,null,null,null,null,null,null,null,null,null,null,null,null,null,null,null,null,null,null,null,null,null,null,null,null,null,null,null,null,null,null,null,1]
["２　第二面及び第三面については、建築確認等他の制度の申請書の写しに必要事項を補うこと、複数の\n　　住戸に関する情報を集約して記載すること等により記載すべき事項のすべてが明示された別の書面\n　　をもって代えることができます。",null,null,null,null,null,null,null,null,null,null,null,null,null,null,null,null,null,null,null,null,null,null,null,null,null,null,null,null,null,null,null,null,null,null,1]
["３　共同住宅等に係る建設住宅性能評価の申請にあっては、この申請書を共同住宅等一棟又は複数の\n　　住戸につき一部とすることができます。",null,null,null,null,null,null,null,null,null,null,null,null,null,null,null,null,null,null,null,null,null,null,null,null,null,null,null,null,null,null,null,null,null,null,1]
[null,null,null,null,null,null,null,null,null,null,null,null,null,null,null,null,null,null,null,null,null,null,null,null,null,null,null,null,null,null,null,null,null,null,null,1]

{"sheet":"☆複数建築主","index":4,"n_rows":31,"n_cols":36,"rows_kept":31,"cut":false,"hidden":false,"merged":[[12,9,12,12],[13,9,13,31],[14,9,14,16],[17,9,17,31],[18,9,18,31],[0,15,0,18],[9,2,9,8],[9,9,9,31],[10,9,10,31],[11,9,11,31],[17,2,17,8],[30,9,30,16],[29,9,29,31],[28,9,28,12],[27,9,27,31],[26,9,26,31],[25,9,25,31],[25,2,25,8],[19,9,19,31],[20,9,20,12],[21,9,21,31],[22,9,22,16]]}
[null,null,null,null,null,null,null,null,null,null,null,null,null,null,null,"（第二面）",null,null,null,null,null,null,null,null,null,null,null,null,null,null,null,null,"別紙　複数建築主"]
[]
[]
[]
[]
[]
[]
[]
["【３．建築主 ２】"]
[null,null,"【氏名又は名称のフリガナ】",null,null,null,null,null,null,{"$f":"IF(AJ10=0,\"\",AJ10)","v":""},null,null,null,null,null,null,null,null,null,null,null,null,null,null,null,null,null,null,null,null,null,null,null,null,null,{"$f":"IF(入力シート!I111=\"\",I!I202,入力シート!I111)","v":0}]
[null,null,"【氏名又は名称】",null,null,null,null,null,null,"",null,null,null,null,null,null,null,null,null,null,null,null,null,null,null,null,null,null,null,null,null,null,null,null,null,{"$f":"IF(入力シート!I112=\"\",I!I203,入力シート!I112)","v":0}]
[null,null,null,null,null,null,null,null,null,"",null,null,null,null,null,null,null,null,null,null,null,null,null,null,null,null,null,null,null,null,null,null,null,null,null,{"$f":"IF(入力シート!I113=\"\",I!I204,入力シート!I113)","v":0}]
[null,null,"【郵便番号】",null,null,null,null,null,null,"",null,null,null,null,null,null,null,null,null,null,null,null,null,null,null,null,null,null,null,null,null,null,null,null,null,{"$f":"IF(入力シート!I114=\"\",I!I205,入力シート!I114)","v":0}]
[null,null,"【住所】",null,null,null,null,null,null,"",null,null,null,null,null,null,null,null,null,null,null,null,null,null,null,null,null,null,null,null,null,null,null,null,null,{"$f":"IF(入力シート!I115=\"\",I!I206,入力シート!I115)","v":0}]
[null,null,"【電話番号】",null,null,null,null,null,null,"",null,null,null,null,null,null,null,null,null,null,null,null,null,null,null,null,null,null,null,null,null,null,null,null,null,{"$f":"IF(入力シート!I116=\"\",I!I207,入力シート!I116)","v":0}]
[]
["【３．建築主 ３】"]
[null,null,"【氏名又は名称のフリガナ】",null,null,null,null,null,null,{"$f":"IF(AJ18=0,\"\",AJ18)","v":""},null,null,null,null,null,null,null,null,null,null,null,null,null,null,null,null,null,null,null,null,null,null,null,null,null,{"$f":"IF(入力シート!I119=\"\",I!I210,入力シート!I119)","v":0}]
[null,null,"【氏名又は名称】",null,null,null,null,null,null,"",null,null,null,null,null,null,null,null,null,null,null,null,null,null,null,null,null,null,null,null,null,null,null,null,null,{"$f":"IF(入力シート!I120=\"\",I!I211,入力シート!I120)","v":0}]
[null,null,null,null,null,null,null,null,null,"",null,null,null,null,null,null,null,null,null,null,null,null,null,null,null,null,null,null,null,null,null,null,null,null,null,{"$f":"IF(入力シート!I121=\"\",I!I212,入力シート!I121)","v":0}]
[null,null,"【郵便番号】",null,null,null,null,null,null,"",null,null,null,null,null,null,null,null,null,null,null,null,null,null,null,null,null,null,null,null,null,null,null,null,null,{"$f":"IF(入力シート!I122=\"\",I!I213,入力シート!I122)","v":0}]
[null,null,"【住所】",null,null,null,null,null,null,"",null,null,null,null,null,null,null,null,null,null,null,null,null,null,null,null,null,null,null,null,null,null,null,null,null,{"$f":"IF(入力シート!I123=\"\",I!I214,入力シート!I123)","v":0}]
[null,null,"【電話番号】",null,null,null,null,null,null,"",null,null,null,null,null,null,null,null,null,null,null,null,null,null,null,null,null,null,null,null,null,null,null,null,null,{"$f":"IF(入力シート!I124=\"\",I!I215,入力シート!I124)","v":0}]
[]
["【３．建築主 ４】"]
[null,null,"【氏名又は名称のフリガナ】",null,null,null,null,null,null,{"$f":"IF(AJ26=0,\"\",AJ26)","v":""},null,null,null,null,null,null,null,null,null,null,null,null,null,null,null,null,null,null,null,null,null,null,null,null,null,{"$f":"IF(入力シート!I127=\"\",I!I218,入力シート!I127)","v":0}]
[null,null,"【氏名又は名称】",null,null,null,null,null,null,"",null,null,null,null,null,null,null,null,null,null,null,null,null,null,null,null,null,null,null,null,null,null,null,null,null,{"$f":"IF(入力シート!I128=\"\",I!I219,入力シート!I128)","v":0}]
[null,null,null,null,null,null,null,null,null,"",null,null,null,null,null,null,null,null,null,null,null,null,null,null,null,null,null,null,null,null,null,null,null,null,null,{"$f":"IF(入力シート!I129=\"\",I!I220,入力シート!I129)","v":0}]
[null,null,"【郵便番号】",null,null,null,null,null,null,"",null,null,null,null,null,null,null,null,null,null,null,null,null,null,null,null,null,null,null,null,null,null,null,null,null,{"$f":"IF(入力シート!I130=\"\",I!I221,入力シート!I130)","v":0}]
[null,null,"【住所】",null,null,null,null,null,null,"",null,null,null,null,null,null,null,null,null,null,null,null,null,null,null,null,null,null,null,null,null,null,null,null,null,{"$f":"IF(入力シート!I131=\"\",I!I222,入力シート!I131)","v":0}]
[null,null,"【電話番号】",null,null,null,null,null,null,"",null,null,null,null,null,null,null,null,null,null,null,null,null,null,null,null,null,null,null,null,null,null,null,null,null,{"$f":"IF(入力シート!I132=\"\",I!I223,入力シート!I132)","v":0}]

{"sheet":"I","index":5,"n_rows":748,"n_cols":33,"rows_kept":748,"cut":false,"hidden":true,"merged":[]}
[]
[]
[]
[]
[]
[]
[]
[]
[]
[]
[]
[]
[]
[]
[]
[]
[]
[]
[]
[]
[]
[]
[]
[]
[]
[]
[]
[]
[]
[]
[]
[]
[]
[]
[]
[]
[]
[]
[]
[]
[]
[]
[]
[]
[]
[]
[]
[]
[]
[]
[]
[]
[]
[]
[]
[]
[]
[]
[]
[]
[]
[]
[]
[]
[]
[]
[]
[]
[]
[]
[]
[]
[]
[]
[]
[]
[]
[]
[]
[]
[]
[]
[]
[]
[]
[]
[]
[]
[]
[]
[]
[]
[]
[]
[]
[]
[]
[]
[]
[]
[]
[]
[]
[]
[]
[]
[]
[]
[]
[]
[]
[]
[]
[]
[]
[]
[]
[]
[]
[]
[]
[]
[]
[]
[]
[]
[]
[]
[]
[]
[]
[]
[]
[]
[]
[]
[]
[]
[]
[]
[]
[]
[]
[]
[]
[]
[]
[]
[]
[]
[]
[]
[]
[]
[]
[]
[]
[]
[]
[]
[]
[]
[]
[]
[]
[]
[]
[]
[]
[]
[]
[]
[]
[]
[]
[]
[]
[]
[]
[]
[]
[]
[]
[]
[]
[]
[]
[]
[]
[]
[]
[]
[]
[]
[]
[]
[]
[]
[]
[]
[]
[]
[]
[]
[]
[]
[]
[]
[]
[]
[]
[]
[]
[]
[]
[]
[]
[]
[]
[]
[]
[]
[]
[]
[]
[]
[]
[]
[]
[]
[]
[]
[]
[]
[]
[]
[null,null,null,null,null,null,null,null,null,null,null,null,null,null,null,null,null,null,null,null,null,null,null,null,null,null,null,null,null,false,false,false,false]
[null,null,null,null,null,null,null,null,null,null,null,null,null,null,null,null,null,null,null,null,null,null,null,null,null,null,null,null,null,false,false]
[]
[]
[null,null,null,null,null,null,null,null,null,null,null,null,null,null,null,null,null,null,null,null,null,null,null,null,null,null,null,null,null,false,false,false]
[]
[]
[]
[]
[]
[]
[]
[]
[]
[]
[]
[]
[]
[]
[]
[]
[]
[]
[]
[]
[]
[]
[]
[]
[]
[]
[]
[]
[null,null,null,null,null,null,null,null,null,null,null,null,null,null,null,null,null,null,null,null,null,null,null,null,null,null,null,null,null,true,false,false,false]
[]
[]
[]
[]
[]
[]
[null,null,null,null,null,null,null,null,null,null,null,null,null,null,null,null,null,null,null,null,null,null,null,null,null,null,null,null,null,106.32]
[]
[null,null,null,null,null,null,null,null,null,null,null,null,null,null,null,null,null,null,null,null,null,null,null,null,null,null,null,null,null,0]
[]
[null,null,null,null,null,null,null,null,null,null,null,null,null,null,null,null,null,null,null,null,null,null,null,null,null,null,null,null,null,0]
[]
[null,null,null,null,null,null,null,null,null,null,null,null,null,null,null,null,null,null,null,null,null,null,null,null,null,null,null,null,null,0]
[null,null,null,null,null,null,null,null,null,null,null,null,null,null,null,null,null,null,null,null,null,null,null,null,null,null,null,null,null,0]
[null,null,null,null,null,null,null,null,null,null,null,null,null,null,null,null,null,null,null,null,null,null,null,null,null,null,null,null,null,0]
[null,null,null,null,null,null,null,null,null,null,null,null,null,null,null,null,null,null,null,null,null,null,null,null,null,null,null,null,null,0]
[null,null,null,null,null,null,null,null,null,null,null,null,null,null,null,null,null,null,null,null,null,null,null,null,null,null,null,null,null,0]
[null,null,null,null,null,null,null,null,null,null,null,null,null,null,null,null,null,null,null,null,null,null,null,null,null,null,null,null,null,0]
[null,null,null,null,null,null,null,null,null,null,null,null,null,null,null,null,null,null,null,null,null,null,null,null,null,null,null,null,null,106.32]
[]
[null,null,null,null,null,null,null,null,null,null,null,null,null,null,null,null,null,null,null,null,null,null,null,null,null,null,null,null,null,0]
[]
[]
[]
[]
[]
[]
[]
[]
[]
[]
[]
[]
[null,null,null,null,null,null,null,null,null,null,null,null,null,null,null,null,null,null,null,null,null,null,null,null,null,null,null,null,null,false,true]
[]
[null,null,null,null,null,null,null,null,null,null,null,null,null,null,null,null,null,null,null,null,null,null,null,null,null,null,null,null,null,false,false,false]
[]
[]
[]
[]
[]
[]
[]
[]
[]
[]
[]
[]
[]
[]
[]
[]
[]
[]
[]
[]
[]
[]
[]
[]
[]
[]
[]
[]
[]
[]
[]
[]
[]
[]
[]
[]
[]
[]
[]
[]
[]
[]
[]
[]
[]
[]
[]
[null,null,null,null,null,null,null,null,null,null,null,null,null,null,null,null,null,null,null,null,null,null,null,null,null,null,null,null,null,true,false,false,false]
[]
[]
[]
[]
[]
[null,null,null,null,null,null,null,null,null,null,null,null,null,null,null,null,null,null,null,null,null,null,null,null,null,null,null,null,null,false,false,false,false]
[null,null,null,null,null,null,null,null,null,null,null,null,null,null,null,null,null,null,null,null,null,null,null,null,null,null,null,null,null,false,false,false,true]
[]
[]
[]
[]
[]
[]
[]
[]
[]
[]
[]
[]
[null,null,null,null,null,null,null,null,null,null,null,null,null,null,null,null,null,null,null,null,null,null,null,null,null,null,null,null,null,true,true,false,true]
[null,null,null,null,null,null,null,null,null,null,null,null,null,null,null,null,null,null,null,null,null,null,null,null,null,null,null,null,null,false,false,false,false]
[null,null,null,null,null,null,null,null,null,null,null,null,null,null,null,null,null,null,null,null,null,null,null,null,null,null,null,null,null,false,false,true,false]
[null,null,null,null,null,null,null,null,null,null,null,null,null,null,null,null,null,null,null,null,null,null,null,null,null,null,null,null,null,"電気、","都市ガス、","","給水、"]
[null,null,null,null,null,null,null,null,null,null,null,null,null,null,null,null,null,null,null,null,null,null,null,null,null,null,null,null,null,"","","",""]
[null,null,null,null,null,null,null,null,null,null,null,null,null,null,null,null,null,null,null,null,null,null,null,null,null,null,null,null,null,"","","住宅用火災警報器、",""]
[]
[]
[null,null,null,null,null,null,null,null,null,null,null,null,null,null,null,null,null,null,null,null,null,null,null,null,null,null,null,null,null,false,true]
[null,null,null,null,null,null,null,null,null,null,null,null,null,null,null,null,null,null,null,null,null,null,null,null,null,null,null,null,null,true,false]
[]
[]
[]
[null,null,null,null,null,null,null,null,null,null,null,null,null,null,null,null,null,null,null,null,null,null,null,null,null,null,null,null,null,false]
[null,null,null,null,null,null,null,null,null,null,null,null,null,null,null,null,null,null,null,null,null,null,null,null,null,null,null,null,null,false]
[]
[]
[]
[]
[]
[]
[]
[]
[]
[]
[]
[]
[]
[]
[]
[]
[]
[]
[]
[]
[]
[]
[]
[]
[]
[]
[]
[]
[]
[]
[]
[]
[]
[]
[]
[]
[]
[]
[]
[]
[]
[]
[]
[]
[]
[]
[]
[]
[]
[]
[]
[]
[]
[]
[null,null,null,null,null,null,null,null,null,null,null,null,null,null,null,null,null,null,null,null,null,null,null,null,null,null,null,null,null,false,true]
[]
[]
[]
[]
[]
[]
[]
[]
[]
[]
[]
[]
[]
[]
[]
[]
[]
[]
[]
[]
[]
[]
[]
[]
[]
[]
[]
[]
[]
[]
[]
[]
[]
[]
[]
[]
[null,null,null,null,null,null,null,null,null,null,null,null,null,null,null,null,null,null,null,null,null,null,null,null,null,null,null,null,null,false,true]
[]
[]
[]
[]
[]
[]
[]
[]
[]
[]
[]
[]
[]
[]
[]
[]
[]
[]
[]
[]
[]
[]
[]
[]
[]
[]
[]
[]
[]
[]
[]
[]
[]
[]
[]
[]
[]
[null,null,null,null,null,null,null,null,null,null,null,null,null,null,null,null,null,null,null,null,null,null,null,null,null,null,null,null,null,false,false]
[]
[]
[]
[]
[]
[]
[]
[]
[]
[]
[]
[]
[]
[]
[]
[]
[]
[]
[]
[]
[]
[]
[]
[]
[]
[]
[]
[]
[]
[]
[]
[]
[]
[]
[]
[]
[null,null,null,null,null,null,null,null,null,null,null,null,null,null,null,null,null,null,null,null,null,null,null,null,null,null,null,null,null,false,false]
[]
[]
[]
[]
[]
[]
[]
[]
[]
[]
[]
[]
[]
[]
[]
[]
[]
[]
[]
[]
[]
[]
[]
[]
[]
[]
[]
[]
[]
[]
[]
[]
[]
[null,null,null,null,null,null,null,null,null,null,null,null,null,null,null,null,null,null,null,null,null,null,null,null,null,null,null,null,null,false]
[null,null,null,null,null,null,null,null,null,null,null,null,null,null,null,null,null,null,null,null,null,null,null,null,null,null,null,null,null,false]
[]
[]
[null,null,null,null,null,null,null,null,null,null,null,null,null,null,null,null,null,null,null,null,null,null,null,null,null,null,null,null,null,false]
[null,null,null,null,null,null,null,null,null,null,null,null,null,null,null,null,null,null,null,null,null,null,null,null,null,null,null,null,null,false]
[null,null,null,null,null,null,null,null,null,null,null,null,null,null,null,null,null,null,null,null,null,null,null,null,null,null,null,null,null,false]
[null,null,null,null,null,null,null,null,null,null,null,null,null,null,null,null,null,null,null,null,null,null,null,null,null,null,null,null,null,false]
[null,null,null,null,null,null,null,null,null,null,null,null,null,null,null,null,null,null,null,null,null,null,null,null,null,null,null,null,null,false]
[]
[]
[]
[]
[null,null,null,null,null,null,null,null,null,null,null,null,null,null,null,null,null,null,null,null,null,null,null,null,null,null,null,null,null,false]
[]
[null,null,null,null,null,null,null,null,null,null,null,null,null,null,null,null,null,null,null,null,null,null,null,null,null,null,null,null,null,false]
[]
[]
[]
[]
[]
[]
[]
[]
[]
[]
[]
[]
[]
[]
[]
[]
[]
[]
[]
[]
[]
[]
[]
[]
[]
[]
[]
[]
[]
[]
[]
[]
[]
[]
[]
[]
[]
[]
[]
[]
[]
[]
[]
[]
[]
[]
[]
[]
[]
[]
[]
[]
[]
[]
[]
[]
[]
[null,null,null,null,null,null,null,null,null,null,null,null,null,null,null,null,null,null,null,null,null,null,null,null,null,null,null,null,null,false,false,false,false]
[null,null,null,null,null,null,null,null,null,null,null,null,null,null,null,null,null,null,null,null,null,null,null,null,null,null,null,null,null,false,true]
[null,null,null,null,null,null,null,null,null,null,null,null,null,null,null,null,null,null,null,null,null,null,null,null,null,null,null,null,null,false,false,false]
[null,null,null,null,null,null,null,null,null,null,null,null,null,null,null,null,null,null,null,null,null,null,null,null,null,null,null,null,null,false,false,false]
[null,null,null,null,null,null,null,null,null,null,null,null,null,null,null,null,null,null,null,null,null,null,null,null,null,null,null,null,null,false,false,false]
[null,null,null,null,null,null,null,null,null,null,null,null,null,null,null,null,null,null,null,null,null,null,null,null,null,null,null,null,null,false,false]
[null,null,null,null,null,null,null,null,null,null,null,null,null,null,null,null,null,null,null,null,null,null,null,null,null,null,null,null,null,false,false]
[null,null,null,null,null,null,null,null,null,null,null,null,null,null,null,null,null,null,null,null,null,null,null,null,null,null,null,null,null,false,false]
[]
[]
[]
[]
[]
[]
[]
[]
[]
[]
[]
[]
[]
[]
[]
[]
[]
[]
[]
[null,null,null,null,null,null,null,null,null,null,null,null,null,null,null,null,null,null,null,null,null,null,null,null,null,null,null,null,null,true]
[null,null,null,null,null,null,null,null,null,null,null,null,null,null,null,null,null,null,null,null,null,null,null,null,null,null,null,null,null,false]
[null,null,null,null,null,null,null,null,null,null,null,null,null,null,null,null,null,null,null,null,null,null,null,null,null,null,null,null,null,false]
[]
[]
[]
[null,null,null,null,null,null,null,null,null,null,null,null,null,null,null,null,null,null,null,null,null,null,null,null,null,null,null,null,null,false,false,false]
[null,null,null,null,null,null,null,null,null,null,null,null,null,null,null,null,null,null,null,null,null,null,null,null,null,null,null,null,null,false,false,false]
[null,null,null,null,null,null,null,null,null,null,null,null,null,null,null,null,null,null,null,null,null,null,null,null,null,null,null,null,null,false,false,false]
[]
[null,null,null,null,null,null,null,null,null,null,null,null,null,null,null,null,null,null,null,null,null,null,null,null,null,null,null,null,null,false,false,false]
[null,null,null,null,null,null,null,null,null,null,null,null,null,null,null,null,null,null,null,null,null,null,null,null,null,null,null,null,null,false,false,false]
[null,null,null,null,null,null,null,null,null,null,null,null,null,null,null,null,null,null,null,null,null,null,null,null,null,null,null,null,null,false,false,false]
[null,null,null,null,null,null,null,null,null,null,null,null,null,null,null,null,null,null,null,null,null,null,null,null,null,null,null,null,null,false,false,false]
[null,null,null,null,null,null,null,null,null,null,null,null,null,null,null,null,null,null,null,null,null,null,null,null,null,null,null,null,null,true,false,false]
[null,null,null,null,null,null,null,null,null,null,null,null,null,null,null,null,null,null,null,null,null,null,null,null,null,null,null,null,null,false,false,false]
[null,null,null,null,null,null,null,null,null,null,null,null,null,null,null,null,null,null,null,null,null,null,null,null,null,null,null,null,null,false,false,false]
[]
[null,null,null,null,null,null,null,null,null,null,null,null,null,null,null,null,null,null,null,null,null,null,null,null,null,null,null,null,null,false,false,false]
[]
[null,null,null,null,null,null,null,null,null,null,null,null,null,null,null,null,null,null,null,null,null,null,null,null,null,null,null,null,null,false,false,false]
[null,null,null,null,null,null,null,null,null,null,null,null,null,null,null,null,null,null,null,null,null,null,null,null,null,null,null,null,null,false,false,false]
[]
[null,null,null,null,null,null,null,null,null,null,null,null,null,null,null,null,null,null,null,null,null,null,null,null,null,null,null,null,null,true,false,false]
[]
[]
[]
[]
[]
[]
[]
[]
[]
[]
[]
[]
[]
[]
[null,null,null,null,null,null,null,null,null,null,null,null,null,null,null,null,null,null,null,null,null,null,null,null,null,null,null,null,null,true,false,false]
[null,null,null,null,null,null,null,null,null,null,null,null,null,null,null,null,null,null,null,null,null,null,null,null,null,null,null,null,null,false,false]
[null,null,null,null,null,null,null,null,null,null,null,null,null,null,null,null,null,null,null,null,null,null,null,null,null,null,null,null,null,true,false,false]
[null,null,null,null,null,null,null,null,null,null,null,null,null,null,null,null,null,null,null,null,null,null,null,null,null,null,null,null,null,false,false]
[null,null,null,null,null,null,null,null,null,null,null,null,null,null,null,null,null,null,null,null,null,null,null,null,null,null,null,null,null,true,false,false]
[null,null,null,null,null,null,null,null,null,null,null,null,null,null,null,null,null,null,null,null,null,null,null,null,null,null,null,null,null,false,false,false,false]
[null,null,null,null,null,null,null,null,null,null,null,null,null,null,null,null,null,null,null,null,null,null,null,null,null,null,null,null,null,false,false,false,false]
[null,null,null,null,null,null,null,null,null,null,null,null,null,null,null,null,null,null,null,null,null,null,null,null,null,null,null,null,null,false,false,false,false]
[null,null,null,null,null,null,null,null,null,null,null,null,null,null,null,null,null,null,null,null,null,null,null,null,null,null,null,null,null,true,false,false,false]
[]
[]
[]
[]
[]
[null,null,null,null,null,null,null,null,null,null,null,null,null,null,null,null,null,null,null,null,null,null,null,null,null,null,null,null,null,false]
[null,null,null,null,null,null,null,null,null,null,null,null,null,null,null,null,null,null,null,null,null,null,null,null,null,null,null,null,null,false]
[null,null,null,null,null,null,null,null,null,null,null,null,null,null,null,null,null,null,null,null,null,null,null,null,null,null,null,null,null,false]
[null,null,null,null,null,null,null,null,null,null,null,null,null,null,null,null,null,null,null,null,null,null,null,null,null,null,null,null,null,false,false]
[null,null,null,null,null,null,null,null,null,null,null,null,null,null,null,null,null,null,null,null,null,null,null,null,null,null,null,null,null,false,false]
[]
[]
[null,null,null,null,null,null,null,null,null,null,null,null,null,null,null,null,null,null,null,null,null,null,null,null,null,null,null,null,null,false,false,false]

{"sheet":"DATA","index":6,"n_rows":347,"n_cols":48,"rows_kept":347,"cut":false,"hidden":true,"merged":[[0,6,1,6],[0,0,2,0],[0,1,2,1],[0,2,2,2],[0,3,2,3],[0,5,2,5],[0,4,2,4],[0,7,1,7],[0,8,1,8],[0,12,0,13],[0,14,0,30],[0,31,0,47],[1,14,1,18],[1,31,1,35],[0,9,1,9],[1,40,1,43],[0,10,1,11],[1,19,1,23],[1,47,2,47],[1,30,2,30]]}
["№","県\nコード","都道府県名","市町村\nコード","群\n(新旧含む)","市町村名","地域の区分","年間\n日射量地域区分","暖房期\n日射量地域区分","基準風速","積雪",null,"所管行政庁\n（未記入は県）",null,"長期優良住宅",null,null,null,null,null,null,null,null,null,null,null,null,null,null,null,null,"低炭素建築物"]
[null,null,null,null,null,null,null,null,null,null,null,null,"１～３号","４号","審査項目",null,null,null,null,"居住環境配慮基準",null,null,null,null,"都計法\n第４条第４項","都計法\n第４条第６項","都計法\n第４条第７項","都計法\n第４条第８項","住宅地区改良法\n第２条第３項",null,"技術的審査料金\n区分","審査項目",null,null,null,null,"区域制限","都計法\n第12条","都計法\n第34条","都計法\n第45条","都市の緑地保全への配慮",null,null,null,null,null,null,"数字:都市計画区域の判断あり"]
[null,null,null,null,null,null,"[地域]","[区分]","[区分]","[m/s]","[cm]","多雪地域","特定\n行政庁","限定特定\n行政庁","長期使用構造等","住宅規模","居住環境配慮基準","維持保全計画","資金計画","地区計画等","景観計画","建築協定","景観協定","景観法\nに基づ\nかない\n景観に\n関する 条 例 ","促進区域","都市計画施設の区域","市街地再開発事業の区域","市街地開発事業等予定区域","改良地区",null,null,"外皮性能","一次エネルギー消費量","その他の措置","基本的な方針","資金計画","用途地域","特別緑地保全地区制度","緑化地域制度","緑化協定制度","生産緑地地区","建築協定","緑地保全に関する市町村条例","都市施設緑地"]
[1,21,"岐阜県",21,null,"岐阜県",null,null,null,null,null,null,"岐阜県","岐阜県","■","■","■","■","■",null,null,null,null,null,null,null,null,null,null,null,"イ","■","■","■","■","■"]
[2,21,"岐阜県",201,null,"岐阜市（旧岐阜市)",6,"A4","H4",34,40,null,"岐阜市","岐阜市","■","■","■","■","■","○","○",null,null,null,null,null,null,null,null,null,"イ","■","■","■","■","■"]
[19,21,"岐阜県",201,"羽島郡","岐阜市（旧柳津町)",6,"A4","H4",34,30,null,"岐阜市","岐阜市","■","■","■","■","■","○","○",null,null,null,null,null,null,null,null,null,"イ","■","■","■","■","■"]
[3,21,"岐阜県",202,null,"大垣市（旧大垣市)",6,"A4","H4",34,45,null,"大垣市","大垣市","■","■","■","■","■","○","○",null,null,null,null,null,null,null,null,null,"イ","■","■","■","■","■",null,null,null,null,null,null,null,null,null,null,null,1]
[24,21,"岐阜県",202,"養老郡","大垣市（旧上石津町)",5,"A4","H1",34,100,null,"大垣市","大垣市","■","■","■","■","■","○","○",null,null,null,null,null,null,null,null,null,"イ","■","■","■","■","■",null,null,null,null,null,null,null,null,null,null,null,1]
[30,21,"岐阜県",202,"安八郡","大垣市（旧墨俣町)",6,"A4","H4",34,40,null,"大垣市","大垣市","■","■","■","■","■","○","○",null,null,null,null,null,null,null,null,null,"イ","■","■","■","■","■",null,null,null,null,null,null,null,null,null,null,null,1]
[4,21,"岐阜県",203,null,"高山市（旧高山市)",4,"A3","H4",null,120,"○",null,"高山市","■","■","■","■","■","○","○",null,null,null,null,null,null,null,null,null,"イ","■","■","■","■","■",null,null,null,null,null,null,null,null,null,null,null,"C"]
[87,21,"岐阜県",203,"大野郡","高山市（旧丹生川村)",4,"A3","H4",null,150,"○",null,"高山市","■","■","■","■","■","○","○",null,null,null,null,null,null,null,null,null,"イ","■","■","■","■","■",null,null,null,null,null,null,null,null,null,null,null,"C"]
[88,21,"岐阜県",203,"大野郡","高山市（旧清見村)",4,"A3","H4",null,190,"○",null,"高山市","■","■","■","■","■","○","○",null,null,null,null,null,null,null,null,null,"イ","■","■","■","■","■",null,null,null,null,null,null,null,null,null,null,null,"C"]
[89,21,"岐阜県",203,"大野郡","高山市（旧荘川村)",4,"A3","H4",null,260,"○",null,"高山市","■","■","■","■","■","○","○",null,null,null,null,null,null,null,null,null,"イ","■","■","■","■","■",null,null,null,null,null,null,null,null,null,null,null,"C"]
[91,21,"岐阜県",203,"大野郡","高山市（旧宮村)",4,"A3","H4",null,120,"○",null,"高山市","■","■","■","■","■","○","○",null,null,null,null,null,null,null,null,null,"イ","■","■","■","■","■",null,null,null,null,null,null,null,null,null,null,null,"C"]
[92,21,"岐阜県",203,"大野郡","高山市（旧久々野町)",4,"A3","H4",null,120,"○",null,"高山市","■","■","■","■","■","○","○",null,null,null,null,null,null,null,null,null,"イ","■","■","■","■","■",null,null,null,null,null,null,null,null,null,null,null,"C"]
[93,21,"岐阜県",203,"大野郡","高山市（旧朝日村)",4,"A3","H4",null,120,"○",null,"高山市","■","■","■","■","■","○","○",null,null,null,null,null,null,null,null,null,"イ","■","■","■","■","■",null,null,null,null,null,null,null,null,null,null,null,"C"]
[94,21,"岐阜県",203,"大野郡","高山市（旧高根村)",4,"A3","H4",null,170,"○",null,"高山市","■","■","■","■","■","○","○",null,null,null,null,null,null,null,null,null,"イ","■","■","■","■","■",null,null,null,null,null,null,null,null,null,null,null,"C"]
[96,21,"岐阜県",203,"吉城郡","高山市（旧国府町)",4,"A3","H4",null,140,"○",null,"高山市","■","■","■","■","■","○","○",null,null,null,null,null,null,null,null,null,"イ","■","■","■","■","■",null,null,null,null,null,null,null,null,null,null,null,"C"]
[100,21,"岐阜県",203,"吉城郡","高山市（旧上宝村)",4,"A3","H4",null,250,"○",null,"高山市","■","■","■","■","■","○","○",null,null,null,null,null,null,null,null,null,"イ","■","■","■","■","■",null,null,null,null,null,null,null,null,null,null,null,"C"]
[5,21,"岐阜県",204,null,"多治見市（旧多治見市)",6,"A4","H2",32,30,null,null,"多治見市","■","■","■","■","■","○","○","△",null,null,null,null,null,null,null,null,"イ","■","■","■","■","■"]
[70,21,"岐阜県",204,"土岐郡","多治見市（旧笠原町)",6,"A4","H2",null,30,null,null,"多治見市","■","■","■","■","■","○","○","△",null,null,null,null,null,null,null,null,"イ","■","■","■","■","■"]
[6,21,"岐阜県",205,null,"関市（旧関市)",6,"A4","H2",32,40,null,null,null,"■","■","■","■","■","○","○",null,null,null,null,null,null,null,null,null,"イ","■","■","■","■","■",null,null,null,null,null,null,null,null,null,null,null,2]
[49,21,"岐阜県",205,"武儀郡","関市（旧洞戸村)",6,"A3","H2",32,100,"○",null,null,"■","■","■","■","■","○","○",null,null,null,null,null,null,null,null,null,"イ","■","■","■","■","■",null,null,null,null,null,null,null,null,null,null,null,2]
[50,21,"岐阜県",205,"武儀郡","関市（旧板取村)",6,"A3","H2",null,170,"○",null,null,"■","■","■","■","■","○","○",null,null,null,null,null,null,null,null,null,"イ","■","■","■","■","■",null,null,null,null,null,null,null,null,null,null,null,2]
[51,21,"岐阜県",205,"武儀郡","関市（旧武芸川町)",6,"A3","H2",32,60,null,null,null,"■","■","■","■","■","○","○",null,null,null,null,null,null,null,null,null,"イ","■","■","■","■","■",null,null,null,null,null,null,null,null,null,null,null,2]
[52,21,"岐阜県",205,"武儀郡","関市（旧武儀町)",6,"A4","H2",null,40,null,null,null,"■","■","■","■","■","○","○",null,null,null,null,null,null,null,null,null,"イ","■","■","■","■","■",null,null,null,null,null,null,null,null,null,null,null,2]
[53,21,"岐阜県",205,"武儀郡","関市（旧上之保村)",6,"A3","H3",null,80,null,null,null,"■","■","■","■","■","○","○",null,null,null,null,null,null,null,null,null,"イ","■","■","■","■","■",null,null,null,null,null,null,null,null,null,null,null,2]
[7,21,"岐阜県",206,null,"中津川市（旧中津川市)",5,"A3","H3",null,30,null,null,null,"■","■","■","■","■","○","○",null,null,null,null,null,null,null,null,null,"イ","■","■","■","■","■",null,null,null,null,null,null,null,null,null,null,null,"B"]
[71,21,"岐阜県",206,"恵那郡","中津川市（旧坂下町)",4,"A3","H2",null,50,null,null,null,"■","■","■","■","■","○","○",null,null,null,null,null,null,null,null,null,"イ","■","■","■","■","■",null,null,null,null,null,null,null,null,null,null,null,"B"]
[72,21,"岐阜県",206,"恵那郡","中津川市（旧川上村)",4,"A3","H2",null,60,null,null,null,"■","■","■","■","■","○","○",null,null,null,null,null,null,null,null,null,"イ","■","■","■","■","■",null,null,null,null,null,null,null,null,null,null,null,"B"]
[73,21,"岐阜県",206,"恵那郡","中津川市（旧加子母村)",4,"A3","H3",null,70,null,null,null,"■","■","■","■","■","○","○",null,null,null,null,null,null,null,null,null,"イ","■","■","■","■","■",null,null,null,null,null,null,null,null,null,null,null,"B"]
[74,21,"岐阜県",206,"恵那郡","中津川市（旧付知町)",4,"A3","H2",null,60,null,null,null,"■","■","■","■","■","○","○",null,null,null,null,null,null,null,null,null,"イ","■","■","■","■","■",null,null,null,null,null,null,null,null,null,null,null,"B"]
[75,21,"岐阜県",206,"恵那郡","中津川市（旧福岡町)",4,"A3","H2",null,50,null,null,null,"■","■","■","■","■","○","○",null,null,null,null,null,null,null,null,null,"イ","■","■","■","■","■",null,null,null,null,null,null,null,null,null,null,null,"B"]
[76,21,"岐阜県",206,"恵那郡","中津川市（旧蛭川村)",4,"A4","H2",null,40,null,null,null,"■","■","■","■","■","○","○",null,null,null,null,null,null,null,null,null,"イ","■","■","■","■","■",null,null,null,null,null,null,null,null,null,null,null,"B"]
[101,21,"岐阜県",206,null,"中津川市（旧長野県山口村)",4,"A3","H3",null,70,null,null,null,"■","■","■","■","■","○","○",null,null,null,null,null,null,null,null,null,"イ","■","■","■","■","■",null,null,null,null,null,null,null,null,null,null,null,"B"]
[8,21,"岐阜県",207,null,"美濃市",5,"A3","H2",32,60,null,null,null,"■","■","■","■","■","○","○",null,null,null,null,null,null,null,null,null,"イ","■","■","■","■","■"]
[9,21,"岐阜県",208,null,"瑞浪市",5,"A4","H3",null,30,null,null,null,"■","■","■","■","■","○","○",null,null,null,null,null,null,null,null,null,"イ","■","■","■","■","■",null,null,null,null,null,null,null,null,null,null,null,"A"]
[10,21,"岐阜県",209,null,"羽島市",6,"A4","H4",34,30,null,null,null,"■","■","■","■","■","○","○",null,null,null,null,null,null,null,null,null,"イ","■","■","■","■","■"]
[11,21,"岐阜県",210,null,"恵那市（旧恵那市)",5,"A4","H3",null,30,null,null,null,"■","■","■","■","■","○","○",null,null,null,null,null,null,null,null,null,"イ","■","■","■","■","■",null,null,null,null,null,null,null,null,null,null,null,"B"]
[77,21,"岐阜県",210,"恵那郡","恵那市（旧岩村町)",5,"A3","H3",null,30,null,null,null,"■","■","■","■","■","○","○",null,null,null,null,null,null,null,null,null,"イ","■","■","■","■","■",null,null,null,null,null,null,null,null,null,null,null,"B"]
[78,21,"岐阜県",210,"恵那郡","恵那市（旧山岡町)",5,"A4","H3",null,30,null,null,null,"■","■","■","■","■","○","○",null,null,null,null,null,null,null,null,null,"イ","■","■","■","■","■",null,null,null,null,null,null,null,null,null,null,null,"B"]
[79,21,"岐阜県",210,"恵那郡","恵那市（旧明智町)",5,"A3","H3",null,30,null,null,null,"■","■","■","■","■","○","○",null,null,null,null,null,null,null,null,null,"イ","■","■","■","■","■",null,null,null,null,null,null,null,null,null,null,null,"B"]
[80,21,"岐阜県",210,"恵那郡","恵那市（旧串原村)",4,"A3","H2",null,30,null,null,null,"■","■","■","■","■","○","○",null,null,null,null,null,null,null,null,null,"イ","■","■","■","■","■",null,null,null,null,null,null,null,null,null,null,null,"B"]
[81,21,"岐阜県",210,"恵那郡","恵那市（旧上矢作町)",4,"A3","H2",null,30,null,null,null,"■","■","■","■","■","○","○",null,null,null,null,null,null,null,null,null,"イ","■","■","■","■","■",null,null,null,null,null,null,null,null,null,null,null,"B"]
[12,21,"岐阜県",211,null,"美濃加茂市",6,"A4","H2",32,30,null,null,null,"■","■","■","■","■","○","○",null,null,null,null,null,null,null,null,null,"イ","■","■","■","■","■"]
[13,21,"岐阜県",212,null,"土岐市",5,"A4","H3",null,30,null,null,null,"■","■","■","■","■","○","○",null,null,null,null,null,null,null,null,null,"イ","■","■","■","■","■"]
[14,21,"岐阜県",213,null,"各務原市（旧各務原市)",6,"A4","H4",32,30,null,"各務原市","各務原市","■","■","■","■","■","○","○",null,null,null,null,null,null,null,null,null,"イ","■","■","■","■","■"]
[16,21,"岐阜県",213,"羽島郡","各務原市（旧川島町)",6,"A4","H4",34,30,null,"各務原市","各務原市","■","■","■","■","■","○","○",null,null,null,null,null,null,null,null,null,"イ","■","■","■","■","■"]
[15,21,"岐阜県",214,null,"可児市（旧可児市)",6,"A4","H2",32,30,null,null,"可児市","■","■","■","■","■","○","○",null,null,null,null,null,null,null,null,null,"イ","■","■","■","■","■"]
[69,21,"岐阜県",214,"可児郡","可児市（旧兼山町)",6,"A4","H2",null,30,null,null,"可児市","■","■","■","■","■","○","○",null,null,null,null,null,null,null,null,null,"イ","■","■","■","■","■"]
[46,21,"岐阜県",215,"山県郡","山県市（旧高富町)",6,"A3","H1",32,40,null,null,null,"■","■","■","■","■","○","○",null,null,null,null,null,null,null,null,null,"イ","■","■","■","■","■",null,null,null,null,null,null,null,null,null,null,null,2]
[47,21,"岐阜県",215,"山県郡","山県市（旧伊自良村)",6,"A3","H1",32,80,null,null,null,"■","■","■","■","■","○","○",null,null,null,null,null,null,null,null,null,"イ","■","■","■","■","■",null,null,null,null,null,null,null,null,null,null,null,2]
[48,21,"岐阜県",215,"山県郡","山県市（旧美山町)",6,"A3","H2",32,100,"○",null,null,"■","■","■","■","■","○","○",null,null,null,null,null,null,null,null,null,"イ","■","■","■","■","■",null,null,null,null,null,null,null,null,null,null,null,2]
[41,21,"岐阜県",216,"本巣郡","瑞穂市（旧穂積町)",6,"A4","H4",34,40,null,null,null,"■","■","■","■","■","○","○",null,null,null,null,null,null,null,null,null,"イ","■","■","■","■","■"]
[42,21,"岐阜県",216,"本巣郡","瑞穂市（旧巣南町)",6,"A4","H4",34,50,null,null,null,"■","■","■","■","■","○","○",null,null,null,null,null,null,null,null,null,"イ","■","■","■","■","■"]
[95,21,"岐阜県",217,"吉城郡","飛騨市（旧古川町)",3,"A3","H3",null,200,"○",null,null,"■","■","■","■","■","○","○",null,null,null,null,null,null,null,null,null,"イ","■","■","■","■","■",null,null,null,null,null,null,null,null,null,null,null,"C"]
[97,21,"岐阜県",217,"吉城郡","飛騨市（旧河合村)",3,"A3","H3",null,270,"○",null,null,"■","■","■","■","■","○","○",null,null,null,null,null,null,null,null,null,"イ","■","■","■","■","■",null,null,null,null,null,null,null,null,null,null,null,"C"]
[98,21,"岐阜県",217,"吉城郡","飛騨市（旧宮川村)",4,"A2","H1",null,280,"○",null,null,"■","■","■","■","■","○","○",null,null,null,null,null,null,null,null,null,"イ","■","■","■","■","■",null,null,null,null,null,null,null,null,null,null,null,"C"]
[99,21,"岐阜県",217,"吉城郡","飛騨市（旧神岡町)",4,"A3","H2",null,200,"○",null,null,"■","■","■","■","■","○","○",null,null,null,null,null,null,null,null,null,"イ","■","■","■","■","■",null,null,null,null,null,null,null,null,null,null,null,"C"]
[40,21,"岐阜県",218,"本巣郡","本巣市（旧本巣町)",6,"A3","H5",34,80,null,null,null,"■","■","■","■","■","○","○",null,null,null,null,null,null,null,null,null,"イ","■","■","■","■","■",null,null,null,null,null,null,null,null,null,null,null,2]
[43,21,"岐阜県",218,"本巣郡","本巣市（旧真正町)",6,"A4","H4",34,50,null,null,null,"■","■","■","■","■","○","○",null,null,null,null,null,null,null,null,null,"イ","■","■","■","■","■",null,null,null,null,null,null,null,null,null,null,null,2]
[44,21,"岐阜県",218,"本巣郡","本巣市（旧糸貫町)",6,"A4","H4",34,50,null,null,null,"■","■","■","■","■","○","○",null,null,null,null,null,null,null,null,null,"イ","■","■","■","■","■",null,null,null,null,null,null,null,null,null,null,null,2]
[45,21,"岐阜県",218,"本巣郡","本巣市（旧根尾村)",4,"A2","H2",32,150,"○",null,null,"■","■","■","■","■","○","○",null,null,null,null,null,null,null,null,null,"イ","■","■","■","■","■",null,null,null,null,null,null,null,null,null,null,null,2]
[54,21,"岐阜県",219,"郡上郡","郡上市（旧八幡町)",4,"A3","H2",null,130,"○",null,null,"■","■","■","■","■","○","○",null,null,null,null,null,null,null,null,null,"イ","■","■","■","■","■",null,null,null,null,null,null,null,null,null,null,null,"B"]
[55,21,"岐阜県",219,"郡上郡","郡上市（旧大和町)",4,"A3","H2",null,160,"○",null,null,"■","■","■","■","■","○","○",null,null,null,null,null,null,null,null,null,"イ","■","■","■","■","■",null,null,null,null,null,null,null,null,null,null,null,"B"]
[56,21,"岐阜県",219,"郡上郡","郡上市（旧白鳥町)",4,"A3","H2",null,230,"○",null,null,"■","■","■","■","■","○","○",null,null,null,null,null,null,null,null,null,"イ","■","■","■","■","■",null,null,null,null,null,null,null,null,null,null,null,"B"]
[57,21,"岐阜県",219,"郡上郡","郡上市（旧高鷲村)",4,"A3","H2",null,260,"○",null,null,"■","■","■","■","■","○","○",null,null,null,null,null,null,null,null,null,"イ","■","■","■","■","■",null,null,null,null,null,null,null,null,null,null,null,"B"]
[58,21,"岐阜県",219,"郡上郡","郡上市（旧美並村)",5,"A3","H3",null,60,null,null,null,"■","■","■","■","■","○","○",null,null,null,null,null,null,null,null,null,"イ","■","■","■","■","■",null,null,null,null,null,null,null,null,null,null,null,"B"]
[59,21,"岐阜県",219,"郡上郡","郡上市（旧明宝村)",4,"A3","H2",null,170,"○",null,null,"■","■","■","■","■","○","○",null,null,null,null,null,null,null,null,null,"イ","■","■","■","■","■",null,null,null,null,null,null,null,null,null,null,null,"B"]
[60,21,"岐阜県",219,"郡上郡","郡上市（旧和良村)",4,"A3","H2",null,140,"○",null,null,"■","■","■","■","■","○","○",null,null,null,null,null,null,null,null,null,"イ","■","■","■","■","■",null,null,null,null,null,null,null,null,null,null,null,"B"]
[82,21,"岐阜県",220,"益田郡","下呂市（旧萩原町)",4,"A3","H2",null,90,null,null,null,"■","■","■","■","■","○","○",null,null,null,null,null,null,null,null,null,"イ","■","■","■","■","■",null,null,null,null,null,null,null,null,null,null,null,"C"]
[83,21,"岐阜県",220,"益田郡","下呂市（旧小坂町)",4,"A3","H3",null,80,null,null,null,"■","■","■","■","■","○","○",null,null,null,null,null,null,null,null,null,"イ","■","■","■","■","■",null,null,null,null,null,null,null,null,null,null,null,"C"]
[84,21,"岐阜県",220,"益田郡","下呂市（旧下呂町)",4,"A3","H2",null,60,null,null,null,"■","■","■","■","■","○","○",null,null,null,null,null,null,null,null,null,"イ","■","■","■","■","■",null,null,null,null,null,null,null,null,null,null,null,"C"]
[85,21,"岐阜県",220,"益田郡","下呂市（旧金山町)",4,"A3","H3",null,50,null,null,null,"■","■","■","■","■","○","○",null,null,null,null,null,null,null,null,null,"イ","■","■","■","■","■",null,null,null,null,null,null,null,null,null,null,null,"C"]
[86,21,"岐阜県",220,"益田郡","下呂市（旧馬瀬村)",4,"A3","H2",null,120,"○",null,null,"■","■","■","■","■","○","○",null,null,null,null,null,null,null,null,null,"イ","■","■","■","■","■",null,null,null,null,null,null,null,null,null,null,null,"C"]
[20,21,"岐阜県",221,"海津郡","海津市（旧海津町)",6,"A4","H4",34,30,null,null,null,"■","■","■","■","■","○","○",null,null,null,null,null,null,null,null,null,"イ","■","■","■","■","■"]
[21,21,"岐阜県",221,"海津郡","海津市（旧平田町)",6,"A4","H4",34,40,null,null,null,"■","■","■","■","■","○","○",null,null,null,null,null,null,null,null,null,"イ","■","■","■","■","■"]
[22,21,"岐阜県",221,"海津郡","海津市（旧南濃町)",6,"A4","H4",34,50,null,null,null,"■","■","■","■","■","○","○",null,null,null,null,null,null,null,null,null,"イ","■","■","■","■","■"]
[17,21,"岐阜県",302,"羽島郡","岐南町",6,"A4","H4",34,30,null,null,null,"■","■","■","■","■","○","○",null,null,null,null,null,null,null,null,null,"イ","■","■","■","■","■"]
[18,21,"岐阜県",303,"羽島郡","笠松町",6,"A4","H4",34,30,null,null,null,"■","■","■","■","■","○","○",null,null,null,null,null,null,null,null,null,"イ","■","■","■","■","■"]
[23,21,"岐阜県",341,"養老郡","養老町",6,"A4","H1",34,60,null,null,null,"■","■","■","■","■","○","○",null,null,null,null,null,null,null,null,null,"イ","■","■","■","■","■"]
[25,21,"岐阜県",361,"不破郡","垂井町",6,"A4","H4",34,90,null,null,null,"■","■","■","■","■","○","○",null,null,null,null,null,null,null,null,null,"イ","■","■","■","■","■"]
[26,21,"岐阜県",362,"不破郡","関ケ原町",5,"A3","H1",34,140,"○",null,null,"■","■","■","■","■","○","○",null,null,null,null,null,null,null,null,null,"イ","■","■","■","■","■",null,null,null,null,null,null,null,null,null,null,null,"A"]
[27,21,"岐阜県",381,"安八郡","神戸町",6,"A4","H4",34,50,null,null,null,"■","■","■","■","■","○","○",null,null,null,null,null,null,null,null,null,"イ","■","■","■","■","■"]
[28,21,"岐阜県",382,"安八郡","輪之内町",6,"A4","H4",34,40,null,null,null,"■","■","■","■","■","○","○",null,null,null,null,null,null,null,null,null,"イ","■","■","■","■","■"]
[29,21,"岐阜県",383,"安八郡","安八町",6,"A4","H1",34,40,null,null,null,"■","■","■","■","■","○","○",null,null,null,null,null,null,null,null,null,"イ","■","■","■","■","■"]
[31,21,"岐阜県",401,"揖斐郡","揖斐川町（旧揖斐川町)",6,"A3","H4",34,100,"○",null,null,"■","■","■","■","■","○","○",null,null,null,null,null,null,null,null,null,"イ","■","■","■","■","■",null,null,null,null,null,null,null,null,null,null,null,"B"]
[32,21,"岐阜県",401,"揖斐郡","揖斐川町（旧谷汲村)",6,"A3","H1",34,110,"○",null,null,"■","■","■","■","■","○","○",null,null,null,null,null,null,null,null,null,"イ","■","■","■","■","■",null,null,null,null,null,null,null,null,null,null,null,"B"]
[35,21,"岐阜県",401,"揖斐郡","揖斐川町（旧春日村)",6,"A3","H1",34,160,"○",null,null,"■","■","■","■","■","○","○",null,null,null,null,null,null,null,null,null,"イ","■","■","■","■","■",null,null,null,null,null,null,null,null,null,null,null,"B"]
[36,21,"岐阜県",401,"揖斐郡","揖斐川町（旧久瀬村)",6,"A3","H2",34,170,"○",null,null,"■","■","■","■","■","○","○",null,null,null,null,null,null,null,null,null,"イ","■","■","■","■","■",null,null,null,null,null,null,null,null,null,null,null,"B"]
[37,21,"岐阜県",401,"揖斐郡","揖斐川町（旧藤橋村)",6,"A2","H2",32,220,"○",null,null,"■","■","■","■","■","○","○",null,null,null,null,null,null,null,null,null,"イ","■","■","■","■","■",null,null,null,null,null,null,null,null,null,null,null,"B"]
[38,21,"岐阜県",401,"揖斐郡","揖斐川町（旧坂内村)",6,"A3","H2",32,300,"○",null,null,"■","■","■","■","■","○","○",null,null,null,null,null,null,null,null,null,"イ","■","■","■","■","■",null,null,null,null,null,null,null,null,null,null,null,"B"]
[33,21,"岐阜県",403,"揖斐郡","大野町",6,"A3","H4",34,70,null,null,null,"■","■","■","■","■","○","○",null,null,null,null,null,null,null,null,null,"イ","■","■","■","■","■"]
[34,21,"岐阜県",404,"揖斐郡","池田町",6,"A3","H4",34,80,null,null,null,"■","■","■","■","■","○","○",null,null,null,null,null,null,null,null,null,"イ","■","■","■","■","■"]
[39,21,"岐阜県",421,"本巣郡","北方町",6,"A4","H4",34,50,null,null,null,"■","■","■","■","■","○","○",null,null,null,null,null,null,null,null,null,"イ","■","■","■","■","■"]
[61,21,"岐阜県",501,"加茂郡","坂祝町",5,"A4","H2",32,30,null,null,null,"■","■","■","■","■","○","○",null,null,null,null,null,null,null,null,null,"イ","■","■","■","■","■"]
[62,21,"岐阜県",502,"加茂郡","富加町",5,"A4","H2",32,30,null,null,null,"■","■","■","■","■","○","○",null,null,null,null,null,null,null,null,null,"イ","■","■","■","■","■"]
[63,21,"岐阜県",503,"加茂郡","川辺町",5,"A4","H3",null,30,null,null,null,"■","■","■","■","■","○","○",null,null,null,null,null,null,null,null,null,"イ","■","■","■","■","■",null,null,null,null,null,null,null,null,null,null,null,"A"]
[64,21,"岐阜県",504,"加茂郡","七宗町",5,"A4","H3",null,40,null,null,null,"■","■","■","■","■","○","○",null,null,null,null,null,null,null,null,null,"イ","■","■","■","■","■",null,null,null,null,null,null,null,null,null,null,null,"B"]
[65,21,"岐阜県",505,"加茂郡","八百津町",5,"A4","H3",null,40,null,null,null,"■","■","■","■","■","○","○",null,null,null,null,null,null,null,null,null,"イ","■","■","■","■","■",null,null,null,null,null,null,null,null,null,null,null,"A"]
[66,21,"岐阜県",506,"加茂郡","白川町",5,"A3","H3",null,40,null,null,null,"■","■","■","■","■","○","○",null,null,null,null,null,null,null,null,null,"イ","■","■","■","■","■",null,null,null,null,null,null,null,null,null,null,null,"B"]
[67,21,"岐阜県",507,"加茂郡","東白川村",4,"A3","H2",null,50,null,null,null,"■","■","■","■","■","○","○",null,null,null,null,null,null,null,null,null,"イ","■","■","■","■","■",null,null,null,null,null,null,null,null,null,null,null,"B"]
[68,21,"岐阜県",521,"可児郡","御嵩町",5,"A4","H3",null,40,null,null,null,"■","■","■","■","■","○","○",null,null,null,null,null,null,null,null,null,"イ","■","■","■","■","■",null,null,null,null,null,null,null,null,null,null,null,"A"]
[90,21,"岐阜県",604,"大野郡","白川村",3,"A3","H3",null,380,"○",null,null,"■","■","■","■","■","○","○",null,null,null,null,null,null,null,null,null,"イ","■","■","■","■","■",null,null,null,null,null,null,null,null,null,null,null,"C"]
[102,22,"静岡県",22,null,"静岡県",null,null,null,null,null,null,"静岡県","静岡県","■","□","□","□","□",null,null,null,null,null,null,null,null,null,null,null,"ハ","■","■","■","□","□",null,null,null,null,null,null,null,null,null,null,null,"B"]
[103,22,"静岡県",100,null,"静岡市（旧静岡市 都市計画区域)",7,"A4","H5",32,30,null,"静岡市","静岡市","■","□","□","□","□","○","○",null,null,null,null,null,null,null,null,null,"ハ","■","■","■","□","□",null,null,null,null,null,null,null,null,null,null,null,"B"]
[104,22,"静岡県",100,null,"静岡市（旧静岡市 積雪40cm地域 都市計画区域外)",7,"A4","H5",32,40,null,"静岡市","静岡市","■","□","□","□","□","○","○",null,null,null,null,null,null,null,null,null,"ハ","■","■","■","□","□",null,null,null,null,null,null,null,null,null,null,null,"B"]
[105,22,"静岡県",100,null,"静岡市（旧静岡市 積雪55cm地域 都市計画区域外)",7,"A4","H5",32,55,null,"静岡市","静岡市","■","□","□","□","□","○","○",null,null,null,null,null,null,null,null,null,"ハ","■","■","■","□","□",null,null,null,null,null,null,null,null,null,null,null,"B"]
[108,22,"静岡県",100,null,"静岡市（旧清水市 都市計画区域)",7,"A3","H3",32,30,null,"静岡市","静岡市","■","□","□","□","□","○","○",null,null,null,null,null,null,null,null,null,"ハ","■","■","■","□","□",null,null,null,null,null,null,null,null,null,null,null,"B"]
[109,22,"静岡県",100,null,"静岡市（旧清水市 都市計画区域外)",7,"A3","H3",32,40,null,"静岡市","静岡市","■","□","□","□","□","○","○",null,null,null,null,null,null,null,null,null,"ハ","■","■","■","□","□",null,null,null,null,null,null,null,null,null,null,null,"B"]
[147,22,"静岡県",100,"庵原郡","静岡市（旧蒲原町 都市計画区域)",7,"A3","H3",32,30,null,"静岡市","静岡市","■","□","□","□","□","○","○",null,null,null,null,null,null,null,null,null,"ハ","■","■","■","□","□",null,null,null,null,null,null,null,null,null,null,null,"B"]
[148,22,"静岡県",100,"庵原郡","静岡市（旧蒲原町 都市計画区域外)",7,"A3","H3",32,40,null,"静岡市","静岡市","■","□","□","□","□","○","○",null,null,null,null,null,null,null,null,null,"ハ","■","■","■","□","□",null,null,null,null,null,null,null,null,null,null,null,"B"]
[149,22,"静岡県",100,"庵原郡","静岡市（旧由比町 都市計画区域)",7,"A3","H3",32,30,null,"静岡市","静岡市","■","□","□","□","□","○","○",null,null,null,null,null,null,null,null,null,"ハ","■","■","■","□","□",null,null,null,null,null,null,null,null,null,null,null,"B"]
[150,22,"静岡県",100,"庵原郡","静岡市（旧由比町 都市計画区域外)",7,"A3","H3",32,40,null,"静岡市","静岡市","■","□","□","□","□","○","○",null,null,null,null,null,null,null,null,null,"ハ","■","■","■","□","□",null,null,null,null,null,null,null,null,null,null,null,"B"]
[106,22,"静岡県",130,null,"浜松市（旧浜松市)",6,"A4","H3",32,30,null,"浜松市","浜松市","■","□","□","□","□","○","○",null,null,null,null,null,null,null,null,null,"ハ","■","■","■","□","□"]
[122,22,"静岡県",130,null,"浜松市（旧天竜市)",6,"A3","H4",null,30,null,"浜松市","浜松市","■","□","□","□","□","○","○",null,null,null,null,null,null,null,null,null,"ハ","■","■","■","□","□",null,null,null,null,null,null,null,null,null,null,null,"A"]
[123,22,"静岡県",130,null,"浜松市（旧浜北市)",6,"A4","H4",null,30,null,"浜松市","浜松市","■","□","□","□","□","○","○",null,null,null,null,null,null,null,null,null,"ハ","■","■","■","□","□"]
[167,22,"静岡県",130,"周智郡","浜松市（旧春野町)",6,"A3","H5",null,35,null,"浜松市","浜松市","■","□","□","□","□","○","○",null,null,null,null,null,null,null,null,null,"ハ","■","■","■","□","□"]
[173,22,"静岡県",130,"磐田郡","浜松市（旧龍山村)",6,"A3","H4",null,35,null,"浜松市","浜松市","■","□","□","□","□","○","○",null,null,null,null,null,null,null,null,null,"ハ","■","■","■","□","□"]
[174,22,"静岡県",130,"磐田郡","浜松市（旧佐久間町)",6,"A3","H5",null,35,null,"浜松市","浜松市","■","□","□","□","□","○","○",null,null,null,null,null,null,null,null,null,"ハ","■","■","■","□","□"]
[175,22,"静岡県",130,"磐田郡","浜松市（旧水窪町)",6,"A4","H3",null,45,null,"浜松市","浜松市","■","□","□","□","□","○","○",null,null,null,null,null,null,null,null,null,"ハ","■","■","■","□","□"]
[176,22,"静岡県",130,"浜名郡","浜松市（旧舞阪町)",6,"A5","H4",32,30,null,"浜松市","浜松市","■","□","□","□","□","○","○",null,null,null,null,null,null,null,null,null,"ハ","■","■","■","□","□"]
[178,22,"静岡県",130,"浜名郡","浜松市（旧雄踏町)",6,"A5","H4",32,30,null,"浜松市","浜松市","■","□","□","□","□","○","○",null,null,null,null,null,null,null,null,null,"ハ","■","■","■","□","□"]
[179,22,"静岡県",130,"引佐郡","浜松市（旧細江町)",6,"A4","H4",32,30,null,"浜松市","浜松市","■","□","□","□","□","○","○",null,null,null,null,null,null,null,null,null,"ハ","■","■","■","□","□"]
[180,22,"静岡県",130,"引佐郡","浜松市（旧引佐町)",6,"A4","H4",null,30,null,"浜松市","浜松市","■","□","□","□","□","○","○",null,null,null,null,null,null,null,null,null,"ハ","■","■","■","□","□"]
[181,22,"静岡県",130,"引佐郡","浜松市（旧三ケ日町)",6,"A4","H4",32,30,null,"浜松市","浜松市","■","□","□","□","□","○","○",null,null,null,null,null,null,null,null,null,"ハ","■","■","■","□","□"]
[107,22,"静岡県",203,null,"沼津市（旧沼津市)",7,"A4","H1",34,30,null,"沼津市","沼津市","■","□","□","□","□","○","○",null,null,null,null,null,null,null,null,null,"ハ","■","■","■","□","□",null,null,null,null,null,null,null,null,null,null,null,"C"]
[135,22,"静岡県",203,"田方郡","沼津市（旧戸田村)",7,"A4","H2",34,30,null,"沼津市","沼津市","■","□","□","□","□","○","○",null,null,null,null,null,null,null,null,null,"ハ","■","■","■","□","□",null,null,null,null,null,null,null,null,null,null,null,"C"]
[110,22,"静岡県",205,null,"熱海市",6,"A4","H5",34,30,null,null,null,"■","□","□","□","□","○","○",null,null,null,null,null,null,null,null,null,"ハ","■","■","■","□","□",null,null,null,null,null,null,null,null,null,null,null,"D"]
[111,22,"静岡県",206,null,"三島市",6,"A4","H4",34,30,null,null,"三島市","■","□","□","□","□","○","○",null,null,null,null,null,null,null,null,null,"ハ","■","■","■","□","□",null,null,null,null,null,null,null,null,null,null,null,"C"]
[112,22,"静岡県",207,null,"富士宮市（旧富士宮市)",6,"A3","H5",32,35,null,"富士宮市","富士宮市","■","□","□","□","□","○","○",null,null,null,null,null,null,null,null,null,"ハ","■","■","■","□","□",null,null,null,null,null,null,null,null,null,null,null,"C"]
[145,22,"静岡県",207,"富士郡","富士宮市（旧芝川町)",6,"A3","H5",32,35,null,"富士宮市","富士宮市","■","□","□","□","□","○","○",null,null,null,null,null,null,null,null,null,"ハ","■","■","■","□","□",null,null,null,null,null,null,null,null,null,null,null,"C"]
[113,22,"静岡県",208,null,"伊東市",7,"A4","H2",36,25,null,null,"伊東市","■","□","□","□","□","○",null,null,null,null,null,null,null,null,null,null,"ハ","■","■","■","□","□",null,null,null,null,null,null,null,null,null,null,null,"D"]
[114,22,"静岡県",209,null,"島田市（旧島田市)",6,"A4","H4",32,30,null,null,"島田市","■","□","□","□","□","○",null,null,null,null,null,null,null,null,null,null,"ハ","■","■","■","□","□",null,null,null,null,null,null,null,null,null,null,null,"B"]
[157,22,"静岡県",209,"榛原郡","島田市（旧金谷町)",6,"A4","H4",32,30,null,null,"島田市","■","□","□","□","□","○",null,null,null,null,null,null,null,null,null,null,"ハ","■","■","■","□","□",null,null,null,null,null,null,null,null,null,null,null,"B"]
[158,22,"静岡県",209,"榛原郡","島田市（旧川根町)",6,"A4","H5",null,40,null,null,"島田市","■","□","□","□","□","○",null,null,null,null,null,null,null,null,null,null,"ハ","■","■","■","□","□",null,null,null,null,null,null,null,null,null,null,null,"B"]
[115,22,"静岡県",210,null,"富士市（旧富士市)",7,"A3","H5",34,30,null,"富士市","富士市","■","□","□","□","□","○","○",null,null,null,null,null,null,null,null,null,"ハ","■","■","■","□","□",null,null,null,null,null,null,null,null,null,null,null,"C"]
[146,22,"静岡県",210,"庵原郡","富士市（旧富士川町)",7,"A3","H4",32,30,null,"富士市","富士市","■","□","□","□","□","○","○",null,null,null,null,null,null,null,null,null,"ハ","■","■","■","□","□",null,null,null,null,null,null,null,null,null,null,null,"C"]
[116,22,"静岡県",211,null,"磐田市（旧磐田市)",7,"A4","H4",32,30,null,null,"磐田市","■","□","□","□","□","○","○",null,null,null,null,null,null,null,null,null,"ハ","■","■","■","□","□",null,null,null,null,null,null,null,null,null,null,null,"A"]
[169,22,"静岡県",211,"磐田郡","磐田市（旧福田町)",7,"A4","H1",32,30,null,null,"磐田市","■","□","□","□","□","○","○",null,null,null,null,null,null,null,null,null,"ハ","■","■","■","□","□",null,null,null,null,null,null,null,null,null,null,null,"A"]
[170,22,"静岡県",211,"磐田郡","磐田市（旧竜洋町)",7,"A5","H3",32,30,null,null,"磐田市","■","□","□","□","□","○","○",null,null,null,null,null,null,null,null,null,"ハ","■","■","■","□","□",null,null,null,null,null,null,null,null,null,null,null,"A"]
[171,22,"静岡県",211,"磐田郡","磐田市（旧豊田町)",7,"A4","H4",32,30,null,null,"磐田市","■","□","□","□","□","○","○",null,null,null,null,null,null,null,null,null,"ハ","■","■","■","□","□",null,null,null,null,null,null,null,null,null,null,null,"A"]
[172,22,"静岡県",211,"磐田郡","磐田市（旧豊岡村)",7,"A4","H4",null,30,null,null,"磐田市","■","□","□","□","□","○","○",null,null,null,null,null,null,null,null,null,"ハ","■","■","■","□","□",null,null,null,null,null,null,null,null,null,null,null,"A"]
[117,22,"静岡県",212,null,"焼津市（旧焼津市)",7,"A4","H3",32,30,null,"焼津市","焼津市","■","□","□","□","□","○","○",null,null,null,null,null,null,null,null,null,"ハ","■","■","■","□","□",null,null,null,null,null,null,null,null,null,null,null,"B"]
[152,22,"静岡県",212,"志太郡","焼津市（旧大井川町)",7,"A4","H4",32,30,null,"焼津市","焼津市","■","□","□","□","□","○","○",null,null,null,null,null,null,null,null,null,"ハ","■","■","■","□","□",null,null,null,null,null,null,null,null,null,null,null,"B"]
[118,22,"静岡県",213,null,"掛川市（旧掛川市)",6,"A4","H4",32,30,null,null,"掛川市","■","□","□","□","□","○","○",null,null,null,null,null,null,null,null,null,"ハ","■","■","■","□","□",null,null,null,null,null,null,null,null,null,null,null,"B"]
[161,22,"静岡県",213,"小笠郡","掛川市（旧大須賀町)",6,"A4","H2",32,30,null,null,"掛川市","■","□","□","□","□","○","○",null,null,null,null,null,null,null,null,null,"ハ","■","■","■","□","□",null,null,null,null,null,null,null,null,null,null,null,"B"]
[165,22,"静岡県",213,"小笠郡","掛川市（旧大東町)",6,"A4","H2",32,30,null,null,"掛川市","■","□","□","□","□","○","○",null,null,null,null,null,null,null,null,null,"ハ","■","■","■","□","□",null,null,null,null,null,null,null,null,null,null,null,"B"]
[119,22,"静岡県",214,null,"藤枝市（旧藤枝市)",7,"A4","H4",32,30,null,null,"藤枝市","■","□","□","□","□","○","○",null,null,null,null,null,null,null,null,null,"ハ","■","■","■","□","□",null,null,null,null,null,null,null,null,null,null,null,"B"]
[151,22,"静岡県",214,"志太郡","藤枝市（旧岡部町)",7,"A4","H4",32,30,null,null,"藤枝市","■","□","□","□","□","○","○",null,null,null,null,null,null,null,null,null,"ハ","■","■","■","□","□",null,null,null,null,null,null,null,null,null,null,null,"B"]
[120,22,"静岡県",215,null,"御殿場市",5,"A3","H3",34,55,null,null,"御殿場市","■","□","□","□","□","○","○",null,null,null,null,null,null,null,null,null,"ハ","■","■","■","□","□",null,null,null,null,null,null,null,null,null,null,null,"D"]
[121,22,"静岡県",216,null,"袋井市（旧袋井市)",6,"A4","H4",32,30,null,null,"袋井市","■","□","□","□","□","○","○",null,null,null,null,null,null,null,null,null,"ハ","■","■","■","□","□",null,null,null,null,null,null,null,null,null,null,null,"A"]
[168,22,"静岡県",216,"磐田郡","袋井市（旧浅羽町)",6,"A4","H4",32,30,null,null,"袋井市","■","□","□","□","□","○","○",null,null,null,null,null,null,null,null,null,"ハ","■","■","■","□","□",null,null,null,null,null,null,null,null,null,null,null,"A"]
[124,22,"静岡県",219,null,"下田市",7,"A4","H5",36,25,null,null,null,"■","□","□","□","□","○","○",null,null,null,null,null,null,null,null,null,"ハ","■","■","■","□","□",null,null,null,null,null,null,null,null,null,null,null,"D"]
[125,22,"静岡県",220,null,"裾野市",6,"A3","H5",34,35,null,null,"裾野市","■","□","□","□","□","○",null,null,null,null,null,null,null,null,null,null,"ハ","■","■","■","□","□",null,null,null,null,null,null,null,null,null,null,null,"C"]
[126,22,"静岡県",221,null,"湖西市（旧湖西市)",6,"A5","H4",32,30,null,null,"湖西市","■","□","□","□","□","○","○",null,null,null,null,null,null,null,null,null,"ハ","■","■","■","□","□"]
[177,22,"静岡県",221,"浜名郡","湖西市（旧新居町)",6,"A5","H2",32,30,null,null,"湖西市","■","□","□","□","□","○","○",null,null,null,null,null,null,null,null,null,"ハ","■","■","■","□","□"]
[134,22,"静岡県",222,"田方郡","伊豆市（旧修善寺町)",6,"A4","H2",34,30,null,null,null,"■","□","□","□","□","○","○",null,null,null,null,null,null,null,null,null,"ハ","■","■","■","□","□",null,null,null,null,null,null,null,null,null,null,null,"D"]
[136,22,"静岡県",222,"田方郡","伊豆市（旧土肥町)",6,"A4","H2",34,30,null,null,null,"■","□","□","□","□","○","○",null,null,null,null,null,null,null,null,null,"ハ","■","■","■","□","□",null,null,null,null,null,null,null,null,null,null,null,"D"]
[140,22,"静岡県",222,"田方郡","伊豆市（旧天城湯ケ島町)",6,"A4","H2",34,35,null,null,null,"■","□","□","□","□","○","○",null,null,null,null,null,null,null,null,null,"ハ","■","■","■","□","□",null,null,null,null,null,null,null,null,null,null,null,"D"]
[141,22,"静岡県",222,"田方郡","伊豆市（旧中伊豆町)",6,"A4","H2",34,35,null,null,null,"■","□","□","□","□","○","○",null,null,null,null,null,null,null,null,null,"ハ","■","■","■","□","□",null,null,null,null,null,null,null,null,null,null,null,"D"]
[153,22,"静岡県",223,"榛原郡","御前崎市（旧御前崎町)",7,"A5","H1",32,30,null,null,null,"■","□","□","□","□","○","○",null,null,null,null,null,null,null,null,null,"ハ","■","■","■","□","□",null,null,null,null,null,null,null,null,null,null,null,"B"]
[162,22,"静岡県",223,"小笠郡","御前崎市（旧浜岡町)",7,"A4","H5",32,25,null,null,null,"■","□","□","□","□","○","○",null,null,null,null,null,null,null,null,null,"ハ","■","■","■","□","□",null,null,null,null,null,null,null,null,null,null,null,"B"]
[163,22,"静岡県",224,"小笠郡","菊川市（旧小笠町)",6,"A4","H4",32,30,null,null,null,"■","□","□","□","□","○","○",null,null,null,null,null,null,null,null,null,"ハ","■","■","■","□","□",null,null,null,null,null,null,null,null,null,null,null,"B"]
[164,22,"静岡県",224,"小笠郡","菊川市（旧菊川町)",6,"A4","H4",32,30,null,null,null,"■","□","□","□","□","○","○",null,null,null,null,null,null,null,null,null,"ハ","■","■","■","□","□",null,null,null,null,null,null,null,null,null,null,null,"B"]
[133,22,"静岡県",225,"田方郡","伊豆の国市（旧伊豆長岡町)",6,"A4","H2",34,30,null,null,null,"■","□","□","□","□","○","○",null,null,null,null,null,null,null,null,null,"ハ","■","■","■","□","□",null,null,null,null,null,null,null,null,null,null,null,"D"]
[138,22,"静岡県",225,"田方郡","伊豆の国市（旧韮山町)",6,"A4","H3",34,30,null,null,null,"■","□","□","□","□","○","○",null,null,null,null,null,null,null,null,null,"ハ","■","■","■","□","□",null,null,null,null,null,null,null,null,null,null,null,"D"]
[139,22,"静岡県",225,"田方郡","伊豆の国市（旧大仁町)",6,"A4","H2",34,30,null,null,null,"■","□","□","□","□","○","○",null,null,null,null,null,null,null,null,null,"ハ","■","■","■","□","□",null,null,null,null,null,null,null,null,null,null,null,"D"]
[154,22,"静岡県",226,"榛原郡","牧之原市（旧相良町)",7,"A4","H4",32,25,null,null,null,"■","□","□","□","□","○","○",null,null,null,null,null,null,null,null,null,"ハ","■","■","■","□","□",null,null,null,null,null,null,null,null,null,null,null,"B"]
[155,22,"静岡県",226,"榛原郡","牧之原市（旧榛原町)",7,"A4","H4",32,30,null,null,null,"■","□","□","□","□","○","○",null,null,null,null,null,null,null,null,null,"ハ","■","■","■","□","□",null,null,null,null,null,null,null,null,null,null,null,"B"]
[128,22,"静岡県",302,"賀茂郡","河津町",7,"A4","H5",36,25,null,null,null,"■","□","□","□","□","○","○",null,null,null,null,null,null,null,null,null,"ハ","■","■","■","□","□",null,null,null,null,null,null,null,null,null,null,null,"D"]
[129,22,"静岡県",304,"賀茂郡","南伊豆町",7,"A4","H5",36,25,null,null,null,"■","□","□","□","□","○","○",null,null,null,null,null,null,null,null,null,"ハ","■","■","■","□","□",null,null,null,null,null,null,null,null,null,null,null,"D"]
[130,22,"静岡県",305,"賀茂郡","松崎町",7,"A4","H5",34,25,null,null,null,"■","□","□","□","□","○","○",null,null,null,null,null,null,null,null,null,"ハ","■","■","■","□","□",null,null,null,null,null,null,null,null,null,null,null,"D"]
[131,22,"静岡県",306,"賀茂郡","西伊豆町（旧西伊豆町)",6,"A4","H5",34,25,null,null,null,"■","□","□","□","□","○","○",null,null,null,null,null,null,null,null,null,"ハ","■","■","■","□","□",null,null,null,null,null,null,null,null,null,null,null,"D"]
[132,22,"静岡県",306,"賀茂郡","西伊豆町（旧賀茂村)",6,"A4","H2",34,25,null,null,null,"■","□","□","□","□","○","○",null,null,null,null,null,null,null,null,null,"ハ","■","■","■","□","□",null,null,null,null,null,null,null,null,null,null,null,"D"]
[127,22,"静岡県",310,"賀茂郡","東伊豆町",7,"A4","H3",36,25,null,null,null,"■","□","□","□","□","○","○",null,null,null,null,null,null,null,null,null,"ハ","■","■","■","□","□",null,null,null,null,null,null,null,null,null,null,null,"D"]
[137,22,"静岡県",325,"田方郡","函南町",6,"A4","H3",34,30,null,null,null,"■","□","□","□","□","○","○",null,null,null,null,null,null,null,null,null,"ハ","■","■","■","□","□",null,null,null,null,null,null,null,null,null,null,null,"D"]
[142,22,"静岡県",341,"駿東郡","清水町",7,"A4","H3",34,30,null,null,null,"■","□","□","□","□","○","○",null,null,null,null,null,null,null,null,null,"ハ","■","■","■","□","□",null,null,null,null,null,null,null,null,null,null,null,"C"]
[143,22,"静岡県",342,"駿東郡","長泉町",6,"A4","H5",34,30,null,null,null,"■","□","□","□","□","○","○",null,null,null,null,null,null,null,null,null,"ハ","■","■","■","□","□",null,null,null,null,null,null,null,null,null,null,null,"C"]
[144,22,"静岡県",344,"駿東郡","小山町",5,"A3","H4",34,45,null,null,null,"■","□","□","□","□","○","○",null,null,null,null,null,null,null,null,null,"ハ","■","■","■","□","□",null,null,null,null,null,null,null,null,null,null,null,"D"]
[156,22,"静岡県",424,"榛原郡","吉田町",7,"A4","H4",32,30,null,null,null,"■","□","□","□","□","○","○",null,null,null,null,null,null,null,null,null,"ハ","■","■","■","□","□",null,null,null,null,null,null,null,null,null,null,null,"B"]
[159,22,"静岡県",429,"榛原郡","川根本町（旧中川根町)",5,"A4","H2",null,40,null,null,null,"■","□","□","□","□","○","○",null,null,null,null,null,null,null,null,null,"ハ","■","■","■","□","□",null,null,null,null,null,null,null,null,null,null,null,"B"]
[160,22,"静岡県",429,"榛原郡","川根本町（旧本川根町)",5,"A4","H4",null,45,null,null,null,"■","□","□","□","□","○","○",null,null,null,null,null,null,null,null,null,"ハ","■","■","■","□","□",null,null,null,null,null,null,null,null,null,null,null,"B"]
[166,22,"静岡県",461,"周智郡","森町",6,"A3","H4",null,30,null,null,null,"■","□","□","□","□","○","○",null,null,null,null,null,null,null,null,null,"ハ","■","■","■","□","□",null,null,null,null,null,null,null,null,null,null,null,"B"]
[182,23,"愛知県",23,null,"愛知県",null,null,null,null,null,null,"愛知県","愛知県","■","■","□","■","■",null,null,null,null,null,null,null,null,null,null,null,"ロ","■","■","■","■","■"]
[183,23,"愛知県",100,null,"名古屋市",6,"A4","H4",34,30,null,"名古屋市","名古屋市","■","■","□","■","■","○","○","○",null,null,null,null,null,null,null,null,"ロ","■","■","■","■","■",null,null,"○","○","○","○","○","○","○"]
[184,23,"愛知県",201,null,"豊橋市",7,"A4","H4",32,30,null,"豊橋市","豊橋市","■","■","□","■","■","○",null,"○",null,null,null,null,null,null,null,null,"ロ","■","■","■","■","■",null,null,null,null,null,null,"○","○","○"]
[185,23,"愛知県",202,null,"岡崎市（旧岡崎市)",6,"A4","H5",34,30,null,"岡崎市","岡崎市","■","■","□","■","■","○",null,null,null,null,null,null,null,null,null,null,"ロ","■","■","■","■","■",null,null,null,null,"○","○","○","○","○"]
[249,23,"愛知県",202,"額田郡","岡崎市（旧額田町)",6,"A4","H5",32,40,null,"岡崎市","岡崎市","■","■","□","■","■","○",null,null,null,null,null,null,null,null,null,null,"ロ","■","■","■","■","■",null,null,null,null,"○","○","○","○","○"]
[186,23,"愛知県",203,null,"一宮市（旧一宮市)",6,"A4","H4",34,30,null,"一宮市","一宮市","■","■","□","■","■","○",null,null,"○",null,null,null,null,null,null,null,"ロ","■","■","■","■","■",null,null,null,null,null,"○","○",null,"○"]
[201,23,"愛知県",203,null,"一宮市（旧尾西市)",6,"A4","H4",34,30,null,"一宮市","一宮市","■","■","□","■","■","○",null,null,"○",null,null,null,null,null,null,null,"ロ","■","■","■","■","■",null,null,null,null,null,"○","○",null,"○"]
[225,23,"愛知県",203,"葉栗郡","一宮市（旧木曽川町)",6,"A4","H4",34,30,null,"一宮市","一宮市","■","■","□","■","■","○",null,null,"○",null,null,null,null,null,null,null,"ロ","■","■","■","■","■",null,null,null,null,null,"○","○",null,"○"]
[187,23,"愛知県",204,null,"瀬戸市",6,"A4","H5",32,35,null,null,"瀬戸市","■","■","□","■","■","○","○","○",null,null,null,null,null,null,null,null,"ロ","■","■","■","■","■",null,null,null,null,null,"○","○",null,"○"]
[188,23,"愛知県",205,null,"半田市",6,"A4","H4",34,30,null,null,"半田市","■","■","□","■","■","○","○","○",null,null,null,null,null,null,null,null,"ロ","■","■","■","■","■",null,null,null,null,null,"○","○","○","○"]
[189,23,"愛知県",206,null,"春日井市",6,"A4","H5",32,30,null,"春日井市","春日井市","■","■","□","■","■","○","○","○","○",null,null,null,null,null,null,null,"ロ","■","■","■","■","■",null,null,"○",null,"○","○","○",null,"○"]
[190,23,"愛知県",207,null,"豊川市（旧豊川市)",6,"A4","H5",32,30,null,null,"豊川市","■","■","□","■","■","○",null,"○",null,null,null,null,null,null,null,null,"ロ","■","■","■","■","■",null,null,null,null,null,null,"○",null,"○"]
[264,23,"愛知県",207,"宝飯郡","豊川市（旧音羽町)",6,"A4","H5",32,30,null,null,"豊川市","■","■","□","■","■","○",null,"○",null,null,null,null,null,null,null,null,"ロ","■","■","■","■","■",null,null,null,null,null,null,"○",null,"○"]
[265,23,"愛知県",207,"宝飯郡","豊川市（旧一宮町)",6,"A4","H5",32,30,null,null,"豊川市","■","■","□","■","■","○",null,"○",null,null,null,null,null,null,null,null,"ロ","■","■","■","■","■",null,null,null,null,null,null,"○",null,"○"]
[266,23,"愛知県",207,"宝飯郡","豊川市（旧小坂井町)",6,"A4","H4",32,30,null,null,"豊川市","■","■","□","■","■","○",null,"○",null,null,null,null,null,null,null,null,"ロ","■","■","■","■","■",null,null,null,null,null,null,"○",null,"○"]
[267,23,"愛知県",207,"宝飯郡","豊川市（旧御津町)",6,"A4","H4",32,30,null,null,"豊川市","■","■","□","■","■","○",null,"○",null,null,null,null,null,null,null,null,"ロ","■","■","■","■","■",null,null,null,null,null,null,"○",null,"○"]
[191,23,"愛知県",208,null,"津島市",6,"A4","H4",34,30,null,null,null,"■","■","□","■","■",null,null,null,null,null,null,null,null,null,null,null,"ロ","■","■","■","■","■",null,null,null,null,null,"○",null,"○","○"]
[192,23,"愛知県",209,null,"碧南市",6,"A4","H4",34,30,null,null,null,"■","■","□","■","■",null,null,null,null,null,null,null,null,null,null,null,"ロ","■","■","■","■","■",null,null,null,null,null,"○",null,null,"○"]
[193,23,"愛知県",210,null,"刈谷市",6,"A4","H4",34,30,null,null,"刈谷市","■","■","□","■","■","○","○",null,null,null,null,null,null,null,null,null,"ロ","■","■","■","■","■",null,null,null,null,null,"○",null,"○","○"]
[194,23,"愛知県",211,null,"豊田市（旧豊田市)",6,"A4","H2",32,30,null,"豊田市","豊田市","■","■","□","■","■","○","○","○",null,null,null,null,null,null,null,null,"ロ","■","■","■","■","■",null,null,null,"○",null,"○","○","○","○"]
[251,23,"愛知県",211,"西加茂郡","豊田市（旧藤岡町)",6,"A4","H2",null,35,null,"豊田市","豊田市","■","■","□","■","■","○","○","○",null,null,null,null,null,null,null,null,"ロ","■","■","■","■","■"]
[252,23,"愛知県",211,"西加茂郡","豊田市（旧小原村)",6,"A4","H3",null,45,null,"豊田市","豊田市","■","■","□","■","■","○","○","○",null,null,null,null,null,null,null,null,"ロ","■","■","■","■","■"]
[253,23,"愛知県",211,"東加茂郡","豊田市（旧足助町)",6,"A3","H3",null,35,null,"豊田市","豊田市","■","■","□","■","■","○","○","○",null,null,null,null,null,null,null,null,"ロ","■","■","■","■","■"]
[254,23,"愛知県",211,"東加茂郡","豊田市（旧下山村)",6,"A3","H2",null,50,null,"豊田市","豊田市","■","■","□","■","■","○","○","○",null,null,null,null,null,null,null,null,"ロ","■","■","■","■","■"]
[255,23,"愛知県",211,"東加茂郡","豊田市（旧旭町)",6,"A3","H3",null,40,null,"豊田市","豊田市","■","■","□","■","■","○","○","○",null,null,null,null,null,null,null,null,"ロ","■","■","■","■","■"]
[261,23,"愛知県",211,"北設楽郡","豊田市（旧稲武町)",4,"A3","H2",32,55,null,"豊田市","豊田市","■","■","□","■","■","○","○","○",null,null,null,null,null,null,null,null,"ロ","■","■","■","■","■"]
[195,23,"愛知県",212,null,"安城市",6,"A4","H4",34,30,null,null,"安城市","■","■","□","■","■","○",null,null,null,null,null,null,null,null,null,null,"ロ","■","■","■","■","■",null,null,null,null,null,"○",null,"○"]
[196,23,"愛知県",213,null,"西尾市（旧西尾市)",6,"A4","H4",34,30,null,null,"西尾市","■","■","□","■","■","○",null,null,null,null,null,null,null,null,null,null,"ロ","■","■","■","■","■",null,null,null,null,null,"○",null,"○","○"]
[245,23,"愛知県",213,"幡豆郡","西尾市（旧一色町)",6,"A4","H1",34,25,null,null,"西尾市","■","■","□","■","■","○",null,null,null,null,null,null,null,null,null,null,"ロ","■","■","■","■","■",null,null,null,null,null,"○",null,"○","○"]
[246,23,"愛知県",213,"幡豆郡","西尾市（旧吉良町)",6,"A4","H4",34,25,null,null,"西尾市","■","■","□","■","■","○",null,null,null,null,null,null,null,null,null,null,"ロ","■","■","■","■","■",null,null,null,null,null,"○",null,"○","○"]
[247,23,"愛知県",213,"幡豆郡","西尾市（旧幡豆町)",6,"A4","H4",34,30,null,null,"西尾市","■","■","□","■","■","○",null,null,null,null,null,null,null,null,null,null,"ロ","■","■","■","■","■",null,null,null,null,null,"○",null,"○","○"]
[197,23,"愛知県",214,null,"蒲郡市",6,"A4","H3",34,30,null,null,null,"■","■","□","■","■","○",null,null,null,null,null,null,null,null,null,null,"ロ","■","■","■","■","■",null,null,null,null,null,null,null,null,"○"]
[198,23,"愛知県",215,null,"犬山市",6,"A4","H5",32,30,null,null,null,"■","■","□","■","■","○","○","○",null,null,null,null,null,null,null,null,"ロ","■","■","■","■","■",null,null,null,null,null,"○","○",null,"○"]
[199,23,"愛知県",216,null,"常滑市",6,"A4","H4",34,30,null,null,null,"■","■","□","■","■","○","○","○",null,null,null,null,null,null,null,null,"ロ","■","■","■","■","■",null,null,null,null,null,"○","○"]
[200,23,"愛知県",217,null,"江南市",6,"A4","H4",34,30,null,null,"江南市","■","■","□","■","■","○",null,null,null,null,null,null,null,null,null,null,"ロ","■","■","■","■","■",null,null,null,null,null,"○",null,"○","○"]
[202,23,"愛知県",219,null,"小牧市",6,"A4","H4",32,30,null,null,"小牧市","■","■","□","■","■","○",null,"○",null,"○",null,null,null,null,null,null,"ロ","■","■","■","■","■",null,null,null,null,null,"○","○",null,"○"]
[203,23,"愛知県",220,null,"稲沢市（旧稲沢市)",6,"A4","H4",34,30,null,null,"稲沢市","■","■","□","■","■","○",null,"○",null,null,null,null,null,null,null,null,"ロ","■","■","■","■","■",null,null,null,null,null,"○","○","○","○"]
[226,23,"愛知県",220,"中島郡","稲沢市（旧祖父江町)",6,"A4","H4",34,30,null,null,"稲沢市","■","■","□","■","■","○",null,"○",null,null,null,null,null,null,null,null,"ロ","■","■","■","■","■",null,null,null,null,null,"○","○","○","○"]
[227,23,"愛知県",220,"中島郡","稲沢市（旧平和町)",6,"A4","H4",34,30,null,null,"稲沢市","■","■","□","■","■","○",null,"○",null,null,null,null,null,null,null,null,"ロ","■","■","■","■","■",null,null,null,null,null,"○","○","○","○"]
[204,23,"愛知県",221,null,"新城市（旧新城市)",6,"A4","H5",null,30,null,null,null,"■","■","□","■","■","○",null,null,null,null,null,null,null,null,null,null,"ロ","■","■","■","■","■"]
[262,23,"愛知県",221,"南設楽郡","新城市（旧鳳来町)",6,"A3","H5",null,35,null,null,null,"■","■","□","■","■","○",null,null,null,null,null,null,null,null,null,null,"ロ","■","■","■","■","■"]
[263,23,"愛知県",221,"南設楽郡","新城市（旧作手村)",6,"A3","H5",null,55,null,null,null,"■","■","□","■","■","○",null,null,null,null,null,null,null,null,null,null,"ロ","■","■","■","■","■"]
[205,23,"愛知県",222,null,"東海市",6,"A4","H4",34,30,null,null,"東海市","■","■","□","■","■","○",null,null,null,null,null,null,null,null,null,null,"ロ","■","■","■","■","■",null,null,null,null,null,"○",null,"○","○"]
[206,23,"愛知県",223,null,"大府市",6,"A4","H4",34,30,null,null,"大府市","■","■","□","■","■","○",null,null,null,null,null,null,null,null,null,null,"ロ","■","■","■","■","■",null,null,null,null,null,"○",null,"○"]
[207,23,"愛知県",224,null,"知多市",6,"A4","H4",34,30,null,null,null,"■","■","□","■","■","○",null,null,null,null,null,null,null,null,null,null,"ロ","■","■","■","■","■",null,null,null,null,null,"○",null,"○","○"]
[208,23,"愛知県",225,null,"知立市",6,"A4","H4",34,30,null,null,null,"■","■","□","■","■","○",null,null,null,null,null,null,null,null,null,null,"ロ","■","■","■","■","■",null,null,null,null,null,"○"]
[209,23,"愛知県",226,null,"尾張旭市",6,"A4","H5",32,35,null,null,null,"■","■","□","■","■","○",null,null,null,null,null,null,null,null,null,null,"ロ","■","■","■","■","■",null,null,null,null,null,"○",null,"○","○"]
[210,23,"愛知県",227,null,"高浜市",6,"A4","H4",34,30,null,null,null,"■","■","□","■","■","○",null,null,null,null,null,null,null,null,null,null,"ロ","■","■","■","■","■",null,null,null,null,null,"○",null,null,"○"]
[211,23,"愛知県",228,null,"岩倉市",6,"A4","H4",34,30,null,null,null,"■","■","□","■","■","○",null,null,null,null,null,null,null,null,null,null,"ロ","■","■","■","■","■",null,null,null,null,"○","○",null,"○"]
[212,23,"愛知県",229,null,"豊明市",6,"A4","H4",34,30,null,null,null,"■","■","□","■","■","○",null,null,null,null,null,null,null,null,null,null,"ロ","■","■","■","■","■",null,null,null,null,null,"○",null,null,"○"]
[213,23,"愛知県",230,null,"日進市",6,"A4","H5",32,35,null,null,null,"■","■","□","■","■","○",null,"○",null,null,null,null,null,null,null,null,"ロ","■","■","■","■","■",null,null,null,null,null,"○","○","○","○"]
[268,23,"愛知県",231,"渥美郡","田原市（旧田原町)",6,"A5","H3",34,30,null,null,null,"■","■","□","■","■","○",null,"○",null,null,null,null,null,null,null,null,"ロ","■","■","■","■","■",null,null,null,null,null,null,"○",null,"○"]
[269,23,"愛知県",231,"渥美郡","田原市（旧赤羽根町)",6,"A5","H1",34,30,null,null,null,"■","■","□","■","■","○",null,null,null,null,null,null,null,null,null,null,"ロ","■","■","■","■","■",null,null,null,null,null,null,"○",null,"○"]
[270,23,"愛知県",231,"渥美郡","田原市（旧渥美町)",6,"A5","H2",34,30,null,null,null,"■","■","□","■","■","○",null,null,null,null,null,null,null,null,null,null,"ロ","■","■","■","■","■",null,null,null,null,null,null,"○",null,"○"]
[236,23,"愛知県",232,"海部郡","愛西市（旧佐屋町)",6,"A4","H4",34,30,null,null,null,"■","■","□","■","■","○",null,null,null,null,null,null,null,null,null,null,"ロ","■","■","■","■","■",null,null,null,null,null,"○",null,null,"○"]
[237,23,"愛知県",232,"海部郡","愛西市（旧立田村)",6,"A4","H4",34,30,null,null,null,"■","■","□","■","■","○",null,null,null,null,null,null,null,null,null,null,"ロ","■","■","■","■","■",null,null,null,null,null,"○",null,null,"○"]
[238,23,"愛知県",232,"海部郡","愛西市（旧八開村)",6,"A4","H4",34,30,null,null,null,"■","■","□","■","■","○",null,null,null,null,null,null,null,null,null,null,"ロ","■","■","■","■","■",null,null,null,null,null,"○",null,null,"○"]
[239,23,"愛知県",232,"海部郡","愛西市（旧佐織町)",6,"A4","H4",34,30,null,null,null,"■","■","□","■","■","○",null,null,null,null,null,null,null,null,null,null,"ロ","■","■","■","■","■",null,null,null,null,null,"○",null,null,"○"]
[216,23,"愛知県",233,"西春日井郡","清須市（旧西枇杷島町)",6,"A4","H4",34,30,null,null,null,"■","■","□","■","■","○",null,null,null,null,null,null,null,null,null,null,"ロ","■","■","■","■","■",null,null,null,null,null,"○",null,null,"○"]
[220,23,"愛知県",233,"西春日井郡","清須市（旧春日町)",6,"A4","H4",34,30,null,null,null,"■","■","□","■","■","○",null,null,null,null,null,null,null,null,null,null,"ロ","■","■","■","■","■",null,null,null,null,null,"○",null,null,"○"]
[221,23,"愛知県",233,"西春日井郡","清須市（旧清洲町)",6,"A4","H4",34,30,null,null,null,"■","■","□","■","■","○",null,null,null,null,null,null,null,null,null,null,"ロ","■","■","■","■","■",null,null,null,null,null,"○",null,null,"○"]
[222,23,"愛知県",233,"西春日井郡","清須市（旧新川町)",6,"A4","H4",34,30,null,null,null,"■","■","□","■","■","○",null,null,null,null,null,null,null,null,null,null,"ロ","■","■","■","■","■",null,null,null,null,null,"○",null,null,"○"]
[218,23,"愛知県",234,"西春日井郡","北名古屋市（旧師勝町)",6,"A4","H4",34,30,null,null,null,"■","■","□","■","■","○",null,null,null,null,null,null,null,null,null,null,"ロ","■","■","■","■","■",null,null,null,null,null,"○",null,null,"○"]
[219,23,"愛知県",234,"西春日井郡","北名古屋市（旧西春町)",6,"A4","H4",34,30,null,null,null,"■","■","□","■","■","○",null,null,null,null,null,null,null,null,null,null,"ロ","■","■","■","■","■",null,null,null,null,null,"○",null,null,"○"]
[233,23,"愛知県",235,"海部郡","弥富市（旧十四山村)",6,"A4","H4",34,30,null,null,null,"■","■","□","■","■",null,null,null,null,null,null,null,null,null,null,null,"ロ","■","■","■","■","■",null,null,null,null,null,"○",null,null,"○"]
[235,23,"愛知県",235,"海部郡","弥富市（旧弥富町)",6,"A4","H2",34,30,null,null,null,"■","■","□","■","■",null,null,null,null,null,null,null,null,null,null,null,"ロ","■","■","■","■","■",null,null,null,null,null,"○",null,null,"○"]
[250,23,"愛知県",236,"西加茂郡","みよし市（旧三好町)",6,"A4","H5",32,30,null,null,null,"■","■","□","■","■","○","○","○",null,null,null,null,null,null,null,null,"ロ","■","■","■","■","■",null,null,null,null,null,"○","○","○","○"]
[228,23,"愛知県",237,"海部郡","あま市（旧七宝町)",6,"A4","H4",34,30,null,null,null,"■","■","□","■","■","○",null,null,null,null,null,null,null,null,null,null,"ロ","■","■","■","■","■",null,null,null,null,null,"○"]
[229,23,"愛知県",237,"海部郡","あま市（旧美和町)",6,"A4","H4",34,30,null,null,null,"■","■","□","■","■","○",null,null,null,null,null,null,null,null,null,null,"ロ","■","■","■","■","■",null,null,null,null,null,"○"]
[230,23,"愛知県",237,"海部郡","あま市（旧甚目寺町)",6,"A4","H4",34,30,null,null,null,"■","■","□","■","■","○",null,null,null,null,null,null,null,null,null,null,"ロ","■","■","■","■","■",null,null,null,null,null,"○"]
[215,23,"愛知県",238,"愛知郡","長久手市（旧長久手町)",6,"A4","H5",32,35,null,null,null,"■","■","□","■","■","○",null,null,null,"○",null,null,null,null,null,null,"ロ","■","■","■","■","■",null,null,null,null,null,"○",null,"○","○"]
[214,23,"愛知県",302,"愛知郡","東郷町",6,"A4","H5",32,30,null,null,null,"■","■","□","■","■","○",null,"○",null,null,null,null,null,null,null,null,"ロ","■","■","■","■","■",null,null,null,null,null,null,"○",null,"○"]
[217,23,"愛知県",342,"西春日井郡","豊山町",6,"A4","H4",34,30,null,null,null,"■","■","□","■","■","○",null,null,null,null,null,null,null,null,null,null,"ロ","■","■","■","■","■"]
[223,23,"愛知県",361,"丹羽郡","大口町",6,"A4","H4",32,30,null,null,null,"■","■","□","■","■",null,null,null,null,null,null,null,null,null,null,null,"ロ","■","■","■","■","■",null,null,null,null,null,"○",null,"○","○"]
[224,23,"愛知県",362,"丹羽郡","扶桑町",6,"A4","H4",32,30,null,null,null,"■","■","□","■","■",null,null,null,null,null,null,null,null,null,null,null,"ロ","■","■","■","■","■",null,null,null,null,null,null,null,"○","○"]
[231,23,"愛知県",424,"海部郡","大治町",6,"A4","H4",34,30,null,null,null,"■","■","□","■","■",null,null,null,null,null,null,null,null,null,null,null,"ロ","■","■","■","■","■",null,null,null,null,null,null,"○"]
[232,23,"愛知県",425,"海部郡","蟹江町",6,"A4","H4",34,30,null,null,null,"■","■","□","■","■",null,null,null,null,null,null,null,null,null,null,null,"ロ","■","■","■","■","■",null,null,null,null,null,null,null,null,"○"]
[234,23,"愛知県",427,"海部郡","飛島村",6,"A4","H4",34,30,null,null,null,"■","■","□","■","■","○",null,null,null,null,null,null,null,null,null,null,"ロ","■","■","■","■","■"]
[240,23,"愛知県",441,"知多郡","阿久比町",6,"A4","H4",34,30,null,null,null,"■","■","□","■","■","○",null,"○",null,null,null,null,null,null,null,null,"ロ","■","■","■","■","■",null,null,null,null,null,null,"○"]
[241,23,"愛知県",442,"知多郡","東浦町",6,"A4","H4",34,30,null,null,null,"■","■","□","■","■","○",null,null,null,null,null,null,null,null,null,null,"ロ","■","■","■","■","■",null,null,null,null,null,null,null,null,"○"]
[242,23,"愛知県",445,"知多郡","南知多町",6,"A4","H3",34,30,null,null,null,"■","■","□","■","■","○",null,null,null,null,null,null,null,null,null,null,"ロ","■","■","■","■","■"]
[243,23,"愛知県",446,"知多郡","美浜町",6,"A4","H3",34,25,null,null,null,"■","■","□","■","■","○",null,"○",null,null,null,null,null,null,null,null,"ロ","■","■","■","■","■",null,null,null,null,null,null,"○"]
[244,23,"愛知県",447,"知多郡","武豊町",6,"A4","H4",34,30,null,null,null,"■","■","□","■","■","○",null,"○",null,null,null,null,null,null,null,null,"ロ","■","■","■","■","■",null,null,null,null,null,null,"○",null,"○"]
[248,23,"愛知県",501,"額田郡","幸田町",6,"A4","H4",34,30,null,null,null,"■","■","□","■","■","○",null,null,null,null,null,null,null,null,null,null,"ロ","■","■","■","■","■"]
[256,23,"愛知県",561,"北設楽郡","設楽町（旧設楽町)",5,"A3","H3",null,55,null,null,null,"■","■","□","■","■",null,null,null,null,null,null,null,null,null,null,null,"ロ","■","■","■","■","■","×"]
[260,23,"愛知県",561,"北設楽郡","設楽町（旧津具村)",4,"A3","H3",null,65,null,null,null,"■","■","□","■","■",null,null,null,null,null,null,null,null,null,null,null,"ロ","■","■","■","■","■","×"]
[257,23,"愛知県",562,"北設楽郡","東栄町",5,"A3","H2",null,40,null,null,null,"■","■","□","■","■",null,null,null,null,null,null,null,null,null,null,null,"ロ","■","■","■","■","■","×"]
[258,23,"愛知県",563,"北設楽郡","豊根村（旧豊根村)",4,"A3","H3",null,55,null,null,null,"■","■","□","■","■",null,null,null,null,null,null,null,null,null,null,null,"ロ","■","■","■","■","■","×"]
[259,23,"愛知県",563,"北設楽郡","豊根村（旧富山村)",4,"A3","H3",null,45,null,null,null,"■","■","□","■","■",null,null,null,null,null,null,null,null,null,null,null,"ロ","■","■","■","■","■","×"]
[271,24,"三重県",24,null,"三重県",null,null,null,null,null,null,"三重県","三重県","■","■","■","■","■",null,null,null,null,null,null,null,null,null,null,null,"イ","■","■","■","■","■"]
[272,24,"三重県",201,null,"津市（旧津市)",6,"A4","H4",34,30,null,"津市","津市","■","■","□","■","■","○","○",null,null,null,null,null,null,null,null,null,"ロ","■","■","■","■","■",null,null,null,null,null,null,null,null,null,null,null,"B"]
[288,24,"三重県",201,null,"津市（旧久居市)",6,"A4","H4",34,30,null,"津市","津市","■","■","□","■","■","○","○",null,null,null,null,null,null,null,null,null,"ロ","■","■","■","■","■",null,null,null,null,null,null,null,null,null,null,null,"B"]
[302,24,"三重県",201,"安芸郡","津市（旧河芸町)",6,"A4","H4",34,30,null,"津市","津市","■","■","□","■","■","○","○",null,null,null,null,null,null,null,null,null,"ロ","■","■","■","■","■",null,null,null,null,null,null,null,null,null,null,null,"B"]
[303,24,"三重県",201,"安芸郡","津市（旧芸濃町)",6,"A4","H5",34,30,null,"津市","津市","■","■","□","■","■","○","○",null,null,null,null,null,null,null,null,null,"ロ","■","■","■","■","■",null,null,null,null,null,null,null,null,null,null,null,"B"]
[304,24,"三重県",201,"安芸郡","津市（旧美里村)",6,"A4","H5",34,30,null,"津市","津市","■","■","□","■","■","○","○",null,null,null,null,null,null,null,null,null,"ロ","■","■","■","■","■",null,null,null,null,null,null,null,null,null,null,null,"B"]
[305,24,"三重県",201,"安芸郡","津市（旧安濃町)",6,"A4","H4",34,30,null,"津市","津市","■","■","□","■","■","○","○",null,null,null,null,null,null,null,null,null,"ロ","■","■","■","■","■",null,null,null,null,null,null,null,null,null,null,null,"B"]
[306,24,"三重県",201,"一志郡","津市（旧香良洲町)",6,"A4","H4",34,30,null,"津市","津市","■","■","□","■","■","○","○",null,null,null,null,null,null,null,null,null,"ロ","■","■","■","■","■",null,null,null,null,null,null,null,null,null,null,null,"B"]
[307,24,"三重県",201,"一志郡","津市（旧一志町)",6,"A4","H4",34,30,null,"津市","津市","■","■","□","■","■","○","○",null,null,null,null,null,null,null,null,null,"ロ","■","■","■","■","■",null,null,null,null,null,null,null,null,null,null,null,"B"]
[308,24,"三重県",201,"一志郡","津市（旧白山町)",6,"A3","H5",34,30,null,"津市","津市","■","■","□","■","■","○","○",null,null,null,null,null,null,null,null,null,"ロ","■","■","■","■","■",null,null,null,null,null,null,null,null,null,null,null,"B"]
[310,24,"三重県",201,"一志郡","津市（旧美杉村)",5,"A3","H2",34,40,null,"津市","津市","■","■","□","■","■","○","○",null,null,null,null,null,null,null,null,null,"ロ","■","■","■","■","■",null,null,null,null,null,null,null,null,null,null,null,"B"]
[273,24,"三重県",202,null,"四日市市（旧四日市市 積雪30cm地域)",6,"A4","H4",34,30,null,"四日市市","四日市市","■","■","□","■","■","○","○","○",null,null,null,"○","○",null,null,null,"ロ","■","■","■","■","■"]
[274,24,"三重県",202,null,"四日市市（旧四日市市 積雪40cm地域)",6,"A4","H4",34,40,null,"四日市市","四日市市","■","■","□","■","■","○","○","○",null,null,null,null,null,null,null,null,"ロ","■","■","■","■","■"]
[275,24,"三重県",202,null,"四日市市（旧四日市市 積雪50cm地域)",6,"A4","H4",34,50,null,"四日市市","四日市市","■","■","□","■","■","○","○","○",null,null,null,null,null,null,null,null,"ロ","■","■","■","■","■"]
[298,24,"三重県",202,"三重郡","四日市市（旧楠町)",6,"A4","H4",34,30,null,"四日市市","四日市市","■","■","□","■","■","○","○","○",null,null,null,null,null,null,null,null,"ロ","■","■","■","■","■"]
[276,24,"三重県",203,null,"伊勢市（旧伊勢市)",6,"A4","H4",34,30,null,null,null,"■","■","■","■","■","○","○",null,null,null,null,null,null,null,null,null,"イ","■","■","■","■","■",null,null,null,null,null,null,null,null,null,null,null,"C"]
[320,24,"三重県",203,"度会郡","伊勢市（旧二見町)",6,"A4","H4",34,30,null,null,null,"■","■","■","■","■","○","○",null,null,null,null,null,null,null,null,null,"イ","■","■","■","■","■",null,null,null,null,null,null,null,null,null,null,null,"C"]
[321,24,"三重県",203,"度会郡","伊勢市（旧小俣町)",6,"A4","H4",34,30,null,null,null,"■","■","■","■","■","○","○",null,null,null,null,null,null,null,null,null,"イ","■","■","■","■","■",null,null,null,null,null,null,null,null,null,null,null,"C"]
[326,24,"三重県",203,"度会郡","伊勢市（旧御薗村)",6,"A4","H4",34,30,null,null,null,"■","■","■","■","■","○","○",null,null,null,null,null,null,null,null,null,"イ","■","■","■","■","■",null,null,null,null,null,null,null,null,null,null,null,"C"]
[277,24,"三重県",204,null,"松阪市（旧松阪市)",6,"A4","H4",34,30,null,"松阪市","松阪市","■","■","□","■","■","○","○",null,null,null,null,null,null,null,null,null,"ロ","■","■","■","■","■",null,null,null,null,null,null,null,null,null,null,null,"B"]
[309,24,"三重県",204,"一志郡","松阪市（旧嬉野町)",6,"A4","H4",34,30,null,"松阪市","松阪市","■","■","□","■","■","○","○",null,null,null,null,null,null,null,null,null,"ロ","■","■","■","■","■",null,null,null,null,null,null,null,null,null,null,null,"B"]
[311,24,"三重県",204,"一志郡","松阪市（旧三雲町)",6,"A4","H4",34,30,null,"松阪市","松阪市","■","■","□","■","■","○","○",null,null,null,null,null,null,null,null,null,"ロ","■","■","■","■","■",null,null,null,null,null,null,null,null,null,null,null,"B"]
[312,24,"三重県",204,"飯南郡","松阪市（旧飯南町)",5,"A3","H1",34,35,null,"松阪市","松阪市","■","■","□","■","■","○","○",null,null,null,null,null,null,null,null,null,"ロ","■","■","■","■","■",null,null,null,null,null,null,null,null,null,null,null,"B"]
[313,24,"三重県",204,"飯南郡","松阪市（旧飯高町)",5,"A3","H2",34,40,null,"松阪市","松阪市","■","■","□","■","■","○","○",null,null,null,null,null,null,null,null,null,"ロ","■","■","■","■","■",null,null,null,null,null,null,null,null,null,null,null,"B"]
[278,24,"三重県",205,null,"桑名市（旧桑名市)",6,"A4","H4",34,30,null,"桑名市","桑名市","■","■","■","■","■","○","○",null,null,null,null,null,null,null,null,null,"イ","■","■","■","■","■"]
[289,24,"三重県",205,"桑名郡","桑名市（旧多度町)",6,"A4","H4",34,40,null,"桑名市","桑名市","■","■","■","■","■","○","○",null,null,null,null,null,null,null,null,null,"イ","■","■","■","■","■"]
[290,24,"三重県",205,"桑名郡","桑名市（旧長島町)",6,"A4","H4",34,30,null,"桑名市","桑名市","■","■","■","■","■","○","○",null,null,null,null,null,null,null,null,null,"イ","■","■","■","■","■"]
[280,24,"三重県",207,null,"鈴鹿市（積雪30cm地域)",6,"A4","H5",34,30,null,"鈴鹿市","鈴鹿市","■","■","□","■","■","○","○",null,null,null,null,null,null,null,null,null,"ロ","■","■","■","■","■",null,null,null,null,null,null,null,null,null,null,null,"A"]
[281,24,"三重県",207,null,"鈴鹿市（積雪40cm地域)",6,"A4","H5",34,40,null,"鈴鹿市","鈴鹿市","■","■","□","■","■","○","○",null,null,null,null,null,null,null,null,null,"ロ","■","■","■","■","■",null,null,null,null,null,null,null,null,null,null,null,"A"]
[282,24,"三重県",207,null,"鈴鹿市（積雪50cm地域)",6,"A4","H5",34,50,null,"鈴鹿市","鈴鹿市","■","■","□","■","■","○","○",null,null,null,null,null,null,null,null,null,"ロ","■","■","■","■","■",null,null,null,null,null,null,null,null,null,null,null,"A"]
[283,24,"三重県",208,null,"名張市",5,"A3","H2",34,40,null,null,"名張市","■","■","■","■","■","○","○","○",null,null,null,null,null,null,null,null,"イ","■","■","■","■","■",null,null,null,null,null,null,null,null,null,null,null,"B"]
[284,24,"三重県",209,null,"尾鷲市",6,"A4","H5",34,25,null,null,null,"■","■","■","■","■","○","○",null,null,null,null,null,null,null,null,null,"イ","■","■","■","■","■",null,null,null,null,null,null,null,null,null,null,null,"C"]
[285,24,"三重県",210,null,"亀山市（旧亀山市)",6,"A4","H5",34,40,null,null,"亀山市","■","■","□","■","■","○","○","○",null,null,null,null,null,null,null,null,"ロ","■","■","■","■","■",null,null,null,null,null,null,null,null,null,null,null,"B"]
[301,24,"三重県",210,"鈴鹿郡","亀山市（旧関町)",6,"A3","H2",34,40,null,null,"亀山市","■","■","□","■","■","○","○","○",null,null,null,null,null,null,null,null,"ロ","■","■","■","■","■",null,null,null,null,null,null,null,null,null,null,null,"B"]
[286,24,"三重県",211,null,"鳥羽市",6,"A4","H3",34,30,null,null,null,"■","■","■","■","■","○","○",null,null,null,null,null,null,null,null,null,"イ","■","■","■","■","■",null,null,null,null,null,null,null,null,null,null,null,"C"]
[287,24,"三重県",212,null,"熊野市（旧熊野市)",7,"A4","H5",34,25,null,null,null,"■","■","■","■","■","○","○",null,null,null,null,null,null,null,null,null,"イ","■","■","■","■","■",null,null,null,null,null,null,null,null,null,null,null,"D"]
[343,24,"三重県",212,"南牟婁郡","熊野市（旧紀和町)",7,"A3","H4",34,30,null,null,null,"■","■","■","■","■","○","○",null,null,null,null,null,null,null,null,null,"イ","■","■","■","■","■",null,null,null,null,null,null,null,null,null,null,null,"D"]
[292,24,"三重県",214,"員弁郡","いなべ市（旧北勢町)",5,"A4","H5",34,50,null,null,null,"■","■","■","■","■","○","○",null,null,null,null,null,null,null,null,null,"イ","■","■","■","■","■",null,null,null,null,null,null,null,null,null,null,null,1]
[293,24,"三重県",214,"員弁郡","いなべ市（旧員弁町)",6,"A4","H4",34,40,null,null,null,"■","■","■","■","■","○","○",null,null,null,null,null,null,null,null,null,"イ","■","■","■","■","■",null,null,null,null,null,null,null,null,null,null,null,1]
[294,24,"三重県",214,"員弁郡","いなべ市（旧大安町)",6,"A4","H5",34,40,null,null,null,"■","■","■","■","■","○","○",null,null,null,null,null,null,null,null,null,"イ","■","■","■","■","■",null,null,null,null,null,null,null,null,null,null,null,1]
[296,24,"三重県",214,"員弁郡","いなべ市（旧藤原町)",5,"A4","H5",34,50,null,null,null,"■","■","■","■","■","○","○",null,null,null,null,null,null,null,null,null,"イ","■","■","■","■","■",null,null,null,null,null,null,null,null,null,null,null,1]
[334,24,"三重県",215,"志摩郡","志摩市（旧浜島町)",6,"A4","H1",34,25,null,null,null,"■","■","■","■","■","○","○",null,null,null,null,null,null,null,null,null,"イ","■","■","■","■","■",null,null,null,null,null,null,null,null,null,null,null,"C"]
[335,24,"三重県",215,"志摩郡","志摩市（旧大王町)",6,"A5","H2",34,25,null,null,null,"■","■","■","■","■","○","○",null,null,null,null,null,null,null,null,null,"イ","■","■","■","■","■",null,null,null,null,null,null,null,null,null,null,null,"C"]
[336,24,"三重県",215,"志摩郡","志摩市（旧志摩町)",6,"A5","H2",34,25,null,null,null,"■","■","■","■","■","○","○",null,null,null,null,null,null,null,null,null,"イ","■","■","■","■","■",null,null,null,null,null,null,null,null,null,null,null,"C"]
[337,24,"三重県",215,"志摩郡","志摩市（旧阿児町)",6,"A5","H3",34,25,null,null,null,"■","■","■","■","■","○","○",null,null,null,null,null,null,null,null,null,"イ","■","■","■","■","■",null,null,null,null,null,null,null,null,null,null,null,"C"]
[338,24,"三重県",215,"志摩郡","志摩市（旧磯部町)",6,"A4","H3",34,25,null,null,null,"■","■","■","■","■","○","○",null,null,null,null,null,null,null,null,null,"イ","■","■","■","■","■",null,null,null,null,null,null,null,null,null,null,null,"C"]
[279,24,"三重県",216,null,"伊賀市（旧上野市)",5,"A3","H2",34,40,null,null,"伊賀市","■","■","■","■","■","○","○",null,null,null,null,null,null,null,null,null,"イ","■","■","■","■","■",null,null,null,null,null,null,null,null,null,null,null,"B"]
[329,24,"三重県",216,"阿山郡","伊賀市（旧伊賀町)",5,"A3","H2",34,40,null,null,"伊賀市","■","■","■","■","■","○","○",null,null,null,null,null,null,null,null,null,"イ","■","■","■","■","■",null,null,null,null,null,null,null,null,null,null,null,"B"]
[330,24,"三重県",216,"阿山郡","伊賀市（旧島ケ原村)",5,"A3","H2",34,40,null,null,"伊賀市","■","■","■","■","■","○","○",null,null,null,null,null,null,null,null,null,"イ","■","■","■","■","■",null,null,null,null,null,null,null,null,null,null,null,"B"]
[331,24,"三重県",216,"阿山郡","伊賀市（旧阿山町)",5,"A3","H2",34,40,null,null,"伊賀市","■","■","■","■","■","○","○",null,null,null,null,null,null,null,null,null,"イ","■","■","■","■","■",null,null,null,null,null,null,null,null,null,null,null,"B"]
[332,24,"三重県",216,"阿山郡","伊賀市（旧大山田村)",5,"A3","H2",34,40,null,null,"伊賀市","■","■","■","■","■","○","○",null,null,null,null,null,null,null,null,null,"イ","■","■","■","■","■",null,null,null,null,null,null,null,null,null,null,null,"B"]
[333,24,"三重県",216,"名賀郡","伊賀市（旧青山町)",5,"A3","H2",34,40,null,null,"伊賀市","■","■","■","■","■","○","○",null,null,null,null,null,null,null,null,null,"イ","■","■","■","■","■",null,null,null,null,null,null,null,null,null,null,null,"B"]
[291,24,"三重県",303,"桑名郡","木曽岬町",6,"A4","H4",34,30,null,null,null,"■","■","■","■","■","○","○",null,null,null,null,null,null,null,null,null,"イ","■","■","■","■","■"]
[295,24,"三重県",324,"員弁郡","東員町",6,"A4","H4",34,40,null,null,null,"■","■","■","■","■","○","○",null,null,null,null,null,null,null,null,null,"イ","■","■","■","■","■"]
[297,24,"三重県",341,"三重郡","菰野町",6,"A4","H5",34,40,null,null,null,"■","■","■","■","■","○","○",null,null,null,null,null,null,null,null,null,"イ","■","■","■","■","■",null,null,null,null,null,null,null,null,null,null,null,1]
[299,24,"三重県",343,"三重郡","朝日町",6,"A4","H4",34,30,null,null,null,"■","■","■","■","■","○","○",null,null,null,null,null,null,null,null,null,"イ","■","■","■","■","■"]
[300,24,"三重県",344,"三重郡","川越町",6,"A4","H4",34,30,null,null,null,"■","■","■","■","■","○","○",null,null,null,null,null,null,null,null,null,"イ","■","■","■","■","■"]
[314,24,"三重県",441,"多気郡","多気町（旧多気町)",6,"A4","H4",34,30,null,null,null,"■","■","■","■","■","○","○",null,null,null,null,null,null,null,null,null,"イ","■","■","■","■","■",null,null,null,null,null,null,null,null,null,null,null,"C"]
[317,24,"三重県",441,"多気郡","多気町（旧勢和村)",6,"A3","H4",34,30,null,null,null,"■","■","■","■","■","○","○",null,null,null,null,null,null,null,null,null,"イ","■","■","■","■","■",null,null,null,null,null,null,null,null,null,null,null,"C"]
[315,24,"三重県",442,"多気郡","明和町",6,"A4","H4",34,30,null,null,null,"■","■","■","■","■","○","○",null,null,null,null,null,null,null,null,null,"イ","■","■","■","■","■",null,null,null,null,null,null,null,null,null,null,null,"C"]
[316,24,"三重県",443,"多気郡","大台町（旧大台町)",6,"A3","H4",34,30,null,null,null,"■","■","■","■","■","○","○",null,null,null,null,null,null,null,null,null,"イ","■","■","■","■","■",null,null,null,null,null,null,null,null,null,null,null,"C"]
[318,24,"三重県",443,"多気郡","大台町（旧宮川村)",6,"A3","H5",34,40,null,null,null,"■","■","■","■","■","○","○",null,null,null,null,null,null,null,null,null,"イ","■","■","■","■","■",null,null,null,null,null,null,null,null,null,null,null,"C"]
[319,24,"三重県",461,"度会郡","玉城町",6,"A4","H4",34,30,null,null,null,"■","■","■","■","■","○","○",null,null,null,null,null,null,null,null,null,"イ","■","■","■","■","■",null,null,null,null,null,null,null,null,null,null,null,"C"]
[328,24,"三重県",470,"度会郡","度会町",6,"A4","H4",34,30,null,null,null,"■","■","■","■","■","○","○",null,null,null,null,null,null,null,null,null,"イ","■","■","■","■","■",null,null,null,null,null,null,null,null,null,null,null,"C"]
[324,24,"三重県",471,"度会郡","大紀町（旧大宮町)",6,"A3","H4",34,30,null,null,null,"■","■","■","■","■","○","○",null,null,null,null,null,null,null,null,null,"イ","■","■","■","■","■",null,null,null,null,null,null,null,null,null,null,null,"C"]
[325,24,"三重県",471,"度会郡","大紀町（旧紀勢町)",6,"A4","H4",34,30,null,null,null,"■","■","■","■","■","○","○",null,null,null,null,null,null,null,null,null,"イ","■","■","■","■","■",null,null,null,null,null,null,null,null,null,null,null,"C"]
[327,24,"三重県",471,"度会郡","大紀町（旧大内山村)",6,"A4","H5",34,40,null,null,null,"■","■","■","■","■","○","○",null,null,null,null,null,null,null,null,null,"イ","■","■","■","■","■",null,null,null,null,null,null,null,null,null,null,null,"C"]
[322,24,"三重県",472,"度会郡","南伊勢町（旧南勢町)",6,"A4","H3",34,25,null,null,null,"■","■","■","■","■","○","○",null,null,null,null,null,null,null,null,null,"イ","■","■","■","■","■",null,null,null,null,null,null,null,null,null,null,null,"C"]
[323,24,"三重県",472,"度会郡","南伊勢町（旧南島町)",6,"A4","H2",34,25,null,null,null,"■","■","■","■","■","○","○",null,null,null,null,null,null,null,null,null,"イ","■","■","■","■","■",null,null,null,null,null,null,null,null,null,null,null,"C"]
[339,24,"三重県",543,"北牟婁郡","紀北町（旧紀伊長島町)",6,"A4","H4",34,25,null,null,null,"■","■","■","■","■","○","○",null,null,null,null,null,null,null,null,null,"イ","■","■","■","■","■",null,null,null,null,null,null,null,null,null,null,null,"C"]
[340,24,"三重県",543,"北牟婁郡","紀北町（旧海山町)",6,"A4","H5",34,25,null,null,null,"■","■","■","■","■","○","○",null,null,null,null,null,null,null,null,null,"イ","■","■","■","■","■",null,null,null,null,null,null,null,null,null,null,null,"C"]
[341,24,"三重県",561,"南牟婁郡","御浜町",7,"A4","H5",34,25,null,null,null,"■","■","■","■","■","○","○",null,null,null,null,null,null,null,null,null,"イ","■","■","■","■","■",null,null,null,null,null,null,null,null,null,null,null,"D"]
[342,24,"三重県",562,"南牟婁郡","紀宝町（旧紀宝町)",7,"A4","H5",34,25,null,null,null,"■","■","■","■","■","○","○",null,null,null,null,null,null,null,null,null,"イ","■","■","■","■","■",null,null,null,null,null,null,null,null,null,null,null,"D"]
[344,24,"三重県",562,"南牟婁郡","紀宝町（旧鵜殿村)",7,"A4","H5",34,25,null,null,null,"■","■","■","■","■","○","○",null,null,null,null,null,null,null,null,null,"イ","■","■","■","■","■",null,null,null,null,null,null,null,null,null,null,null,"D"]

{"sheet":"項目リスト","index":7,"n_rows":69,"n_cols":24,"rows_kept":69,"cut":false,"hidden":true,"merged":[]}
["確認申請ファイルファージョン","申請書",null,null,null,null,null,null,null,null,null,null,null,null,null,"工事届",null,"住宅性能評価"]
["Ver","資格","一級","二級","木造","施工者","事務所登録","作成図書","判定機関","判定機関所在地","用途地域","建物構造","用途区分（建築物）","名称（建築物）","特定工程","主要用途工事届１","主要用途工事届２","温熱環境・エネルギー消費量に関すること","確認済証","検査３","検査４","第二面","№","液状化"]
["2021/01/01 Ver.13.0","一級","大臣","愛知県知事","愛知県知事","なし","愛知県",null,"㈱建築構造センター","愛知県名古屋市中区","第一種低層住居専用地域",null,"08010","一戸建ての住宅","屋根ふき工事及び構造耐力上主要な軸組（枠組壁工法の場合は、耐力壁）の工事","01",11,"5-1 断熱性能等級","確認建築愛建住セ","基礎配筋工事の完了時","基礎配筋工事の完了時","代理者",1,"地盤の液状化に関する情報提供を行わない"]
["2020/09/07 Ver.12.0","二級",null,"岐阜県知事","岐阜県知事","大臣","岐阜県","設計図書一式","㈱確認サービス","愛知県名古屋市中区","第二種低層住居専用地域","木造","08020","長屋","鉄骨造の部分において、初めて工事を施工する階の建方工事","02",12,"5-2 一次エネルギー消費量等級","確変建築愛建住セ","躯体工事の完了時","躯体工事の完了時","設計者",2,"地盤の液状化に関する情報提供を行う"]
["2020/04/17 Ver.11.0","木造",null,"三重県知事","三重県知事","愛知県知事","三重県","設計図書（意匠図）","㈱東京建築検査機構","愛知県名古屋市中区","第一種中高層住居専用地域","在来木造","08030","共同住宅","RC造の部分において、初めて工事を施工する階の直上の階の主要構造部である床版の配筋（プレキャストコンクリート部材にあっては、接合部）の工事","03",13,"5-1 断熱性能等級、5-2 一次エネルギー消費量等級",null,"下地張りの直前の工事の完了時","屋根工事の完了時","工事監理者",3,"地盤の液状化に関する情報は設計評価で提出済み（建設評価時のみ選択可能）"]
["2019/07/17 Ver.10.0",null,null,"静岡県知事","静岡県知事","岐阜県知事","静岡県","設計図書(構造図）","㈱グッド・アイズ建築検査機構","東京都新宿区","第二種中高層住居専用地域","木造（枠組壁工法）","08040","寄宿舎","2階の床及びこれを支持するはりに鉄筋を配置する工事","04",14,null,null,"竣工時","下地張りの直前の工事の完了時","工事施工者",4]
["2019/05/01 Ver.9.2",null,null,"愛媛県知事","愛媛県知事","三重県知事","愛媛県","設計図書（構造計算書）","(一財)日本建築センター　本部","東京都千代田区","第一種住居地域","丸太組構法","08050","下宿","構造耐力上主要な軸組を構成する各部材を接続する接合部の工事","05",15,null,null,null,"竣工時","上記以外は、下に入力してください。",5]
["2018/10/26 Ver.9.1",null,null,"茨城県知事","茨城県知事","静岡県知事","茨城県",null,"(一財)日本建築センター　大阪事務所","大阪府大阪市中央区","第二種住居地域","木質系パネル造","08060","住宅で事務所、店舗その他これらに類する用途を兼ねるもの",null,null,16]
["2018/09/25 Ver.9.0",null,null,"岡山県知事","岡山県知事","愛媛県知事","岡山県",null,"(一財)ベターリビング　本部","東京都千代田区","準住居地域","鉄骨造","08070","幼稚園",null,null,17]
["2017/04/01 Ver.8.0",null,null,"沖縄県知事","沖縄県知事","茨城県知事","沖縄県",null,"(一財)ベターリビング　名古屋事務所","愛知県名古屋市中区","近隣商業地域","鉄筋コンクリート造","08080","小学校",null,null,18]
[null,null,null,"岩手県知事","岩手県知事","岡山県知事","岩手県",null,"(一財)日本建築設備・昇降機センター","東京都港区","商業地域","鉄骨鉄筋コンクリート造","08090","中学校又は高等学校",null,null,19]
[null,null,null,"宮崎県知事","宮崎県知事","沖縄県知事","宮崎県",null,"(一財)住宅金融普及協会","東京都文京区","準工業地域","壁式鉄筋コンクリート造","08100","養護学校、盲学校又は聾学校",null,null,20]
[null,null,null,"宮城県知事","宮城県知事","岩手県知事","宮城県",null,null,null,"工業地域","プレキャストコンクリート造","08110","大学又は高等専門学校",null,null,21]
[null,null,null,"京都府知事","京都府知事","宮崎県知事","京都府",null,null,null,"工業専用地域",null,"08120","専修学校",null,null,22]
[null,null,null,"熊本県知事","熊本県知事","宮城県知事","熊本県",null,null,null,"指定なし",null,"08130","各種学校",null,null,23]
[null,null,null,"群馬県知事","群馬県知事","京都府知事","群馬県",null,null,null,null,null,"08132","幼保連携型認定こども園",null,null,24]
[null,null,null,"広島県知事","広島県知事","熊本県知事","広島県",null,null,null,null,null,"08140","図書館その他これらに類するもの",null,null,25]
[null,null,null,"香川県知事","香川県知事","群馬県知事","香川県",null,null,null,null,null,"08150","博物館その他これらに類するもの",null,null,26]
[null,null,null,"高知県知事","高知県知事","広島県知事","高知県",null,null,null,null,null,"08160","神社、寺院、教会その他これらに類するもの",null,null,27]
[null,null,null,"佐賀県知事","佐賀県知事","香川県知事","佐賀県",null,null,null,null,null,"08170","老人ホーム、身体障害者福祉ホームその他これに類するもの",null,null,28]
[null,null,null,"埼玉県知事","埼玉県知事","高知県知事","埼玉県",null,null,null,null,null,"08180","保育所その他これに類するもの",null,null,29]
[null,null,null,"山形県知事","山形県知事","佐賀県知事","山形県",null,null,null,null,null,"08190","助産所",null,null,30]
[null,null,null,"山口県知事","山口県知事","埼玉県知事","山口県",null,null,null,null,null,"08210","児童福祉施設等（前３項に掲げるものを除く。）",null,null,31]
[null,null,null,"山梨県知事","山梨県知事","山形県知事","山梨県",null,null,null,null,null,"08220","隣保館",null,null,32]
[null,null,null,"滋賀県知事","滋賀県知事","山口県知事","滋賀県",null,null,null,null,null,"08230","公衆浴場（個室付浴場業に係る公衆浴場を除く。）",null,null,33]
[null,null,null,"鹿児島県知事","鹿児島県知事","山梨県知事","鹿児島県",null,null,null,null,null,"08240","診療所（患者の収容施設のあるものに限る。）",null,null,34]
[null,null,null,"秋田県知事","秋田県知事","滋賀県知事","秋田県",null,null,null,null,null,"08250","診療所（患者の収容施設のないものに限る。）",null,null,35]
[null,null,null,"新潟県知事","新潟県知事","鹿児島県知事","新潟県",null,null,null,null,null,"08260","病院",null,null,36]
[null,null,null,"神奈川県知事","神奈川県知事","秋田県知事","神奈川県",null,null,null,null,null,"08270","巡査派出所",null,null,37]
[null,null,null,"青森県知事","青森県知事","新潟県知事","青森県",null,null,null,null,null,"08280","公衆電話所",null,null,38]
[null,null,null,"石川県知事","石川県知事","神奈川県知事","石川県",null,null,null,null,null,"08290","郵便局",null,null,39]
[null,null,null,"千葉県知事","千葉県知事","青森県知事","千葉県",null,null,null,null,null,"08300","地方公共団体の支庁又は支所",null,null,40]
[null,null,null,"大阪府知事","大阪府知事","石川県知事","大阪府",null,null,null,null,null,"08310","公衆便所、休憩所又は路線バスの停留所の上屋",null,null,41]
[null,null,null,"大分県知事","大分県知事","千葉県知事","大分県",null,null,null,null,null,"08320","建築基準法施行令第130条の4第5号に基づき国土交通大臣が指定する施設",null,null,42]
[null,null,null,"長崎県知事","長崎県知事","大阪府知事","長崎県",null,null,null,null,null,"08330","税務署、警察署、保健所又は消防署その他これらに類するもの",null,null,43]
[null,null,null,"長野県知事","長野県知事","大分県知事","長野県",null,null,null,null,null,"08340","工場（自動車修理工場を除く。）",null,null,44]
[null,null,null,"鳥取県知事","鳥取県知事","長崎県知事","鳥取県",null,null,null,null,null,"08350","自動車修理工場",null,null,45]
[null,null,null,"島根県知事","島根県知事","長野県知事","島根県",null,null,null,null,null,"08360","危険物の貯蔵又は処理に供するもの",null,null,46]
[null,null,null,"東京都知事","東京都知事","鳥取県知事","東京都",null,null,null,null,null,"08370","ボーリング場、スケート場、水泳場、スキー場、ゴルフ練習場又はバッティング練習場",null,null,99]
[null,null,null,"徳島県知事","徳島県知事","島根県知事","徳島県",null,null,null,null,null,"08380","体育館又はスポーツの練習場（前項に掲げるものを除く。）"]
[null,null,null,"栃木県知事","栃木県知事","東京都知事","栃木県",null,null,null,null,null,"08390","マージャン屋、ぱちんこ屋、射的場、勝馬投票券発売所、場外車券売り場その他これらに類するもの又はカラオケボックスその他これらに類するもの"]
[null,null,null,"奈良県知事","奈良県知事","徳島県知事","奈良県",null,null,null,null,null,"08400","ホテル又は旅館"]
[null,null,null,"富山県知事","富山県知事","栃木県知事","富山県",null,null,null,null,null,"08410","自動車教習所"]
[null,null,null,"福井県知事","福井県知事","奈良県知事","福井県",null,null,null,null,null,"08420","畜舎"]
[null,null,null,"福岡県知事","福岡県知事","富山県知事","福岡県",null,null,null,null,null,"08430","堆肥舎又は水産物の増殖場若しくは養殖場"]
[null,null,null,"福島県知事","福島県知事","福井県知事","福島県",null,null,null,null,null,"08438","日用品の販売を主たる目的とする店舗"]
[null,null,null,"兵庫県知事","兵庫県知事","福岡県知事","兵庫県",null,null,null,null,null,"08440","百貨店、マーケットその他の物品販売業を営む店舗（前項に掲げるもの及び専ら性的好奇心をおそる写真その他の物品の販売を行うものを除く。）"]
[null,null,null,"北海道知事","北海道知事","福島県知事","北海道",null,null,null,null,null,"08450","飲食店（次項に掲げるものを除く。）"]
[null,null,null,"和歌山県知事","和歌山県知事","兵庫県知事","和歌山県",null,null,null,null,null,"08452","食堂又は喫茶店"]
[null,null,null,null,null,"北海道知事",null,null,null,null,null,null,"08456","理髪店、美容院、クリーニング取次店、質屋、貸衣装屋、貸本屋その他これらに類するサービス業を営む店舗、洋服店、畳屋、建具屋、自転車店、家庭電気器具店その他これらに類するサービス業を営む店舗で作業場の床面積の合計が50平方メートル以内のもの（原動機を使用する場合にあっては、その出力の合計が0.75キロワット以下のものに限る。）、自家販売のために食品製造業を営むパン屋、米屋、豆腐屋、菓子屋その他これらに類するもので作業場の床面積の合計が50平方メートル以内のもの（原動機を使用する場合にあっては、その出力の合計が0.75キロワット以下のものに限る。）又は学習塾、華道教室、囲碁教室その他これらに類する施設"]
[null,null,null,null,null,"和歌山県知事",null,null,null,null,null,null,"08458","銀行の支店、損害保険代理店、宅地建物取引業を営む店舗その他これらに類するサービス業を営む店舗"]
[null,null,null,null,null,null,null,null,null,null,null,null,"08460","物品販売業を営む店舗以外の店舗（前2項に掲げるものを除く。） "]
[null,null,null,null,null,null,null,null,null,null,null,null,"08470","事務所"]
[null,null,null,null,null,null,null,null,null,null,null,null,"08480","映画スタジオ又はテレビスタジオ"]
[null,null,null,null,null,null,null,null,null,null,null,null,"08490","自動車車庫"]
[null,null,null,null,null,null,null,null,null,null,null,null,"08500","自転車駐輪場"]
[null,null,null,null,null,null,null,null,null,null,null,null,"08510","倉庫業を営む倉庫"]
[null,null,null,null,null,null,null,null,null,null,null,null,"08520","倉庫業を営まない倉庫"]
[null,null,null,null,null,null,null,null,null,null,null,null,"08530","劇場、映画館又は演芸場"]
[null,null,null,null,null,null,null,null,null,null,null,null,"08540","観覧場"]
[null,null,null,null,null,null,null,null,null,null,null,null,"08550","公会堂又は集会場"]
[null,null,null,null,null,null,null,null,null,null,null,null,"08560","展示場"]
[null,null,null,null,null,null,null,null,null,null,null,null,"08570","料理店"]
[null,null,null,null,null,null,null,null,null,null,null,null,"08580","キャバレー、カフェー、ナイトクラブ又はバー"]
[null,null,null,null,null,null,null,null,null,null,null,null,"08590","ダンスホール"]
[null,null,null,null,null,null,null,null,null,null,null,null,"08600","個室付浴場業に係る公衆浴場、ヌードスタジオ、のぞき劇場、ストリップ劇場、専ら異性を同伴する客の休憩の用に供する施設、専ら性的好奇心をそそる写真その他の物品の販売を目的とする店舗その他これらに類するもの"]
[null,null,null,null,null,null,null,null,null,null,null,null,"08610","卸売市場"]
[null,null,null,null,null,null,null,null,null,null,null,null,"08620","火葬場又はと畜場、汚物処理場、ごみ焼却場その他の処理施設"]
[null,null,null,null,null,null,null,null,null,null,null,null,"08990","その他 "]